Workbook

Sheet CAMP PILOTO EVOL
A1: PARA DESTACAR UM PILOTO MARQUE/DESMARQUE COM UM "X" AO LADO DO NOME E CLIQUE NO BOTÃO. => | D1: OK | F1: OK | H1: OK | J1: OK | L1: OK | N1: OK | P1: OK | R1: OK | T1: OK | V1: OK | X1: OK | Z1: DIF. LIDER | AA1: DIF. 5º | AB1: DIF. PRÓXIMO | AC1: OK | AE1: DIF. LIDER | AF1: DIF. 5º | AG1: DIF. PRÓXIMO
D2: 1ª etapa | F2: 2ª etapa | H2: 3ª etapa | J2: 4ª etapa | L2: 5ª etapa | N2: 6ª etapa | P2: 7ª etapa | R2: 8ª etapa | T2: 9ª etapa | V2: 10ª etapa | X2: 11ª etapa | AC2: 12ª etapa
B4: Nome do (a) Piloto (a) | D4: PILOTO | E4: PONTOS | F4: PILOTO | G4: PONTOS | H4: PILOTO | I4: PONTOS | J4: PILOTO | K4: PONTOS | L4: PILOTO | M4: PONTOS | N4: PILOTO | O4: PONTOS | P4: PILOTO | Q4: PONTOS | R4: PILOTO | S4: PONTOS | T4: PILOTO | U4: PONTOS | V4: PILOTO | W4: PONTOS | X4: PILOTO | Y4: PONTOS | AC4: PILOTO | AD4: PONTOS
A5: X | B5: Alexandre Melillo | C5: 1 | D5: Marcelo Clemente | E5: 46 | F5: Marcelo Clemente | G5: 87 | H5: Marcelo Clemente | I5: 88 | J5: Marcelo Clemente | K5: 93 | L5: Marcelo Clemente | M5: 134 | N5: Marcelo Clemente | O5: 176 | P5: Marcelo Clemente | Q5: 221 | R5: Marcelo Clemente | S5: 255 | T5: Marcelo Clemente | U5: 283 | V5: Marcelo Clemente | W5: 328 | X5: Marcelo Clemente | Y5: 373 | Z5: - | AA5: - | AB5: - | AC5: Marcelo Clemente | AD5: 397 | AE5: - | AF5: - | AG5: -
B6: Caetano | C6: 2 | D6: Guilherme Janot | E6: 41 | F6: Cláudio Dumont | G6: 79 | H6: Cláudio Dumont | I6: 79 | J6: Cláudio Dumont | K6: 86 | L6: Cláudio Dumont | M6: 120 | N6: Alexandre Melillo | O6: 145 | P6: Alexandre Melillo | Q6: 182 | R6: Alexandre Melillo | S6: 219 | T6: Alexandre Melillo | U6: 264 | V6: Guilherme Janot | W6: 287 | X6: Alexandre Melillo | Y6: 324 | Z6: =Y$5-Y6 -> 49 | AA6: - | AB6: =Y5-Y6 -> 49 | AC6: Alexandre Melillo | AD6: 370 | AE6: =AD$5-AD6 -> 27 | AF6: - | AG6: =AD5-AD6 -> 27
B7: Carlos Eduardo | C7: 3 | D7: Marcelo Sant'anna | E7: 38 | F7: Marcelo Sant'anna | G7: 72 | H7: Marcelo Sant'anna | I7: 72 | J7: Jarbas Reis | K7: 79 | L7: Alexandre Melillo | M7: 111 | N7: Rodrigo Mercadante | O7: 139 | P7: Marcelo Sant'anna | Q7: 177 | R7: Guilherme Janot | S7: 208 | T7: Guilherme Janot | U7: 246 | V7: Alexandre Melillo | W7: 282 | X7: Guilherme Janot | Y7: 307 | Z7: 66 | AA7: - | AB7: 17 | AC7: Guilherme Janot | AD7: 348 | AE7: 49 | AF7: - | AG7: 22
B8: Carlos Filizolla | C8: 4 | D8: SSSS | E8: 36 | F8: Guilherme Janot | G8: 71 | H8: Guilherme Janot | I8: 71 | J8: Rodrigo Rotheia | K8: 74 | L8: Rodrigo Mercadante | M8: 109 | N8: Marcelo Sant'anna | O8: 136 | P8: Jarbas Reis | Q8: 165 | R8: Marcelo Sant'anna | S8: 205 | T8: Rodrigo Mercadante | U8: 231 | V8: Marcelo Sant'anna | W8: 257 | X8: Marcelo Sant'anna | Y8: 293 | Z8: 80 | AA8: - | AB8: 14 | AC8: Marcelo Sant'anna | AD8: 331 | AE8: 66 | AF8: - | AG8: 17
B9: Carlos Sampaio | C9: 5 | D9: Cláudio Dumont | E9: 34 | F9: Rodrigo Mercadante | G9: 62 | H9: Rodrigo Rotheia | I9: 70 | J9: Claudio Junqueira | K9: 72 | L9: Marcelo Sant'anna | M9: 108 | N9: Jarbas Reis | O9: 135 | P9: Rodrigo Mercadante | Q9: 165 | R9: Rodrigo Mercadante | S9: 197 | T9: Marcelo Sant'anna | U9: 221 | V9: Rodrigo Mercadante | W9: 251 | X9: Rodrigo Mercadante | Y9: 283 | Z9: 90 | AA9: - | AB9: 10 | AC9: Rodrigo Mercadante | AD9: 319 | AE9: 78 | AF9: - | AG9: 12
B10: Claudio Junqueira | C10: 6 | D10: SS | E10: 32 | F10: Rodrigo Rotheia | G10: 60 | H10: Jarbas Reis | I10: 69 | J10: Marcelo Sant'anna | K10: 72 | L10: Jarbas Reis | M10: 107 | N10: SSSS | O10: 134 | P10: Guilherme Janot | Q10: 163 | R10: Jarbas Reis | S10: 189 | T10: Claudio Junqueira | U10: 212 | V10: Claudio Junqueira | W10: 238 | X10: Jarbas Reis | Y10: 273 | Z10: 100 | AA10: =Y$9-Y10 -> 10 | AB10: 10 | AC10: Jarbas Reis | AD10: 307 | AE10: 90 | AF10: =AD$9-AD10 -> 12 | AG10: 12
B11: Cláudio Dumont | C11: 7 | D11: Rodrigo Mercadante | E11: 30 | F11: SSSS | G11: 59 | H11: Rodrigo Mercadante | I11: 68 | J11: Guilherme Janot | K11: 71 | L11: Rodrigo Rotheia | M11: 106 | N11: Guilherme Janot | O11: 131 | P11: Claudio Junqueira | Q11: 146 | R11: Claudio Junqueira | S11: 176 | T11: Jarbas Reis | U11: 207 | V11: Jarbas Reis | W11: 235 | X11: Claudio Junqueira | Y11: 268 | Z11: 105 | AA11: 15 | AB11: 5 | AC11: Claudio Junqueira | AD11: 279 | AE11: 118 | AF11: 40 | AG11: 28
B12: Cláudio Naves | C12: 8 | D12: Jarbas Reis | E12: 28 | F12: Jarbas Reis | G12: 56 | H12: Claudio Junqueira | I12: 64 | J12: Rodrigo Mercadante | K12: 68 | L12: Carlos Eduardo | M12: 98 | N12: Rodrigo Rotheia | O12: 128 | P12: SSSS | Q12: 139 | R12: Lucio Chequer | S12: 159 | T12: Lucio Chequer | U12: 185 | V12: Lucio Chequer | W12: 217 | X12: Carlos Sampaio | Y12: 239 | Z12: 134 | AA12: 44 | AB12: 29 | AC12: Carlos Sampaio | AD12: 267 | AE12: 130 | AF12: 52 | AG12: 12
B13: Edson Ribeiro | C13: 9 | D13: Claudio Junqueira | E13: 26 | F13: Lucio Chequer | G13: 50 | H13: SSSS | I13: 59 | J13: Alexandre Melillo | K13: 65 | L13: Guilherme Janot | M13: 93 | N13: Cláudio Dumont | O13: 126 | P13: Rodrigo Rotheia | Q13: 129 | R13: Carlos Sampaio | S13: 147 | T13: Carlos Sampaio | U13: 179 | V13: Carlos Sampaio | W13: 213 | X13: Lucio Chequer | Y13: 231 | Z13: 142 | AA13: 52 | AB13: 8 | AC13: Lucio Chequer | AD13: 263 | AE13: 134 | AF13: 56 | AG13: 4
B14: Enio Júnior | C14: 10 | D14: Lucio Chequer | E14: 24 | F14: SS | G14: 49 | H14: Alexandre Melillo | I14: 57 | J14: Lucio Chequer | K14: 62 | L14: SSSS | M14: 89 | N14: Carlos Eduardo | O14: 116 | P14: Lucio Chequer | Q14: 125 | R14: Rodrigo Rotheia | S14: 133 | T14: Carlos Eduardo | U14: 167 | V14: Carlos Eduardo | W14: 184 | X14: Carlos Eduardo | Y14: 218 | Z14: 155 | AA14: 65 | AB14: 13 | AC14: Carlos Eduardo | AD14: 244 | AE14: 153 | AF14: 75 | AG14: 19
B15: Euclides Almeida | C15: 11 | D15: Rodrigo Rotheia | E15: 22 | F15: Carlos Eduardo | G15: 44 | H15: Lucio Chequer | I15: 56 | J15: Carlos Eduardo | K15: 60 | L15: Lucio Chequer | M15: 88 | N15: Lucio Chequer | O15: 112 | P15: Cláudio Dumont | Q15: 121 | R15: Marcelo Junqueira | S15: 127 | T15: Marcelo Junqueira | U15: 141 | V15: Euclides Almeida | W15: 165 | X15: Euclides Almeida | Y15: 182 | Z15: 191 | AA15: 101 | AB15: 36 | AC15: Euclides Almeida | AD15: 182 | AE15: 215 | AF15: 137 | AG15: 62
B16: Fernando Lobo | C16: 12 | D16: Marcelo Junqueira | E16: 20 | F16: Claudio Junqueira | G16: 38 | H16: SS | I16: 49 | J16: SSSS | K16: 59 | L16: Claudio Junqueira | M16: 82 | N16: Claudio Junqueira | O16: 108 | P16: Carlos Eduardo | Q16: 119 | R16: Carlos Eduardo | S16: 125 | T16: Rodrigo Rotheia | U16: 133 | V16: Marcelo Junqueira | W16: 136 | X16: Morvan | Y16: 135 | Z16: 238 | AA16: 148 | AB16: 47 | AC16: Hélio Chagas | AD16: 147 | AE16: 250 | AF16: 172 | AG16: 35
B17: Flávio Marques | C17: 13 | D17: Carlos Filizolla | E17: 18 | F17: Morvan | G17: 38 | H17: Carlos Eduardo | I17: 44 | J17: Marcelo Junqueira | K17: 54 | L17: Marcelo Junqueira | M17: 80 | N17: Marcelo Junqueira | O17: 100 | P17: SS | Q17: 117 | R17: Gijo | S17: 119 | T17: Euclides Almeida | U17: 127 | V17: Rodrigo Rotheia | W17: 128 | X17: Marcelo Junqueira | Y17: 131 | Z17: 242 | AA17: 152 | AB17: 4 | AC17: Maurílio Carmo | AD17: 145 | AE17: 252 | AF17: 174 | AG17: 2
B18: Gijo | C18: 14 | D18: Carlos Sampaio | E18: 17 | F18: Marcelo Junqueira | G18: 35 | H18: Marcelo Junqueira | I18: 44 | J18: Fernando Lobo | K18: 48 | L18: Fernando Lobo | M18: 59 | N18: SS | O18: 90 | P18: Marcelo Junqueira | Q18: 112 | R18: Cláudio Dumont | S18: 116 | T18: Roberto Veloso | U18: 125 | V18: Roberto Veloso | W18: 120 | X18: Hélio Chagas | Y18: 131 | Z18: 242 | AA18: 152 | AB18: 0 | AC18: Morvan | AD18: 144 | AE18: 253 | AF18: 175 | AG18: 1
A19: X | B19: Guilherme Janot | C19: 15 | D19: Marcelo Santiago | E19: 16 | F19: Carlos Sampaio | G19: 31 | H19: Carlos Sampaio | I19: 43 | J19: Carlos Sampaio | K19: 43 | L19: Carlos Sampaio | M19: 59 | N19: Gijo | O19: 85 | P19: Gijo | Q19: 111 | R19: Euclides Almeida | S19: 109 | T19: Morvan | U19: 125 | V19: Morvan | W19: 120 | X19: Maurílio Carmo | Y19: 125 | Z19: 248 | AA19: 158 | AB19: 6 | AC19: Enio Júnior | AD19: 137 | AE19: 260 | AF19: 182 | AG19: 7
B20: Henrique Castilho | C20: 16 | D20: Flávio Marques | E20: 15 | F20: Fernando Lobo | G20: 31 | H20: Morvan | I20: 38 | J20: Morvan | K20: 38 | L20: SS | M20: 54 | N20: Carlos Sampaio | O20: 75 | P20: Carlos Sampaio | Q20: 109 | R20: Morvan | S20: 109 | T20: Gijo | U20: 114 | V20: Gijo | W20: 109 | X20: Rodrigo Rotheia | Y20: 123 | Z20: 250 | AA20: 160 | AB20: 2 | AC20: Marcelo Junqueira | AD20: 131 | AE20: 266 | AF20: 188 | AG20: 6
B21: Hélio Chagas | C21: 17 | D21: Morvan | E21: 14 | F21: Marcelo Santiago | G21: 25 | H21: Ricardo Araújo | I21: 33 | J21: Ricardo Araújo | K21: 36 | L21: Ricardo Araújo | M21: 54 | N21: Fernando Lobo | O21: 74 | P21: Morvan | Q21: 89 | R21: Roberto Veloso | S21: 95 | T21: Cláudio Dumont | U21: 111 | V21: Maurílio Carmo | W21: 107 | X21: Roberto Veloso | Y21: 120 | Z21: 253 | AA21: 163 | AB21: 3 | AC21: Ivan Renault | AD21: 127 | AE21: 270 | AF21: 192 | AG21: 4
B22: Ivan Renault | C22: 18 | D22: Cláudio Naves | E22: 13 | F22: Carlos Filizolla | G22: 20 | H22: Fernando Lobo | I22: 31 | J22: Enio Júnior | K22: 29 | L22: Euclides Almeida | M22: 46 | N22: Ricardo Araújo | O22: 69 | P22: Fernando Lobo | Q22: 81 | R22: Enio Júnior | S22: 93 | T22: Fernando Lobo | U22: 98 | V22: Hélio Chagas | W22: 107 | X22: Gijo | Y22: 120 | Z22: 253 | AA22: 163 | AB22: 0 | AC22: Rodrigo Rotheia | AD22: 123 | AE22: 274 | AF22: 196 | AG22: 4
B23: Jader Abreu | C23: 19 | D23: Alexandre Melillo | E23: 12 | F23: Ricardo Araújo | G23: 18 | H23: Marcelo Santiago | I23: 28 | J23: Carlos Filizolla | K23: 25 | L23: Enio Júnior | M23: 46 | N23: Morvan | O23: 65 | P23: Enio Júnior | Q23: 81 | R23: Ricardo Araújo | S23: 86 | T23: Enio Júnior | U23: 93 | V23: Cláudio Dumont | W23: 106 | X23: Enio Júnior | Y23: 115 | Z23: 258 | AA23: 168 | AB23: 5 | AC23: Roberto Veloso | AD23: 115 | AE23: 282 | AF23: 204 | AG23: 8
B24: Jarbas Reis | C24: 20 | D24: Fernando Lobo | E24: 11 | F24: Flávio Marques | G24: 16 | H24: Jader Abreu | I24: 24 | J24: Flávio Marques | K24: 25 | L24: Morvan | M24: 43 | N24: Roberto Veloso | O24: 59 | P24: Ricardo Araújo | Q24: 77 | R24: Fernando Lobo | S24: 81 | T24: Hélio Chagas | U24: 85 | V24: Fernando Lobo | W24: 93 | X24: Cláudio Dumont | Y24: 101 | Z24: 272 | AA24: 182 | AB24: 14 | AC24: Gijo | AD24: 115 | AE24: 282 | AF24: 204 | AG24: 0
B25: Jorge Prado | C25: 21 | D25: Hélio Chagas | E25: 10 | F25: Cláudio Naves | G25: 16 | H25: Enio Júnior | I25: 23 | J25: Euclides Almeida | K25: 24 | L25: Hélio Chagas | M25: 39 | N25: Euclides Almeida | O25: 57 | P25: Hélio Chagas | Q25: 69 | R25: Hélio Chagas | S25: 80 | T25: Maurílio Carmo | U25: 81 | V25: Enio Júnior | W25: 93 | X25: Ivan Renault | Y25: 97 | Z25: 276 | AA25: 186 | AB25: 4 | AC25: Leodegario Junior | AD25: 97 | AE25: 300 | AF25: 222 | AG25: 18
B26: Leodegario Junior | C26: 22 | D26: Ivan Renault | E26: 9 | F26: Hélio Chagas | G26: 14 | H26: Flávio Marques | I26: 22 | J26: SS | K26: 20 | L26: Gijo | M26: 38 | N26: Enio Júnior | O26: 53 | P26: Euclides Almeida | Q26: 67 | R26: Maurílio Carmo | S26: 61 | T26: Ricardo Araújo | U26: 81 | V26: Ricardo Araújo | W26: 81 | X26: Fernando Lobo | Y26: 88 | Z26: 285 | AA26: 195 | AB26: 9 | AC26: Cláudio Dumont | AD26: 96 | AE26: 301 | AF26: 223 | AG26: 1
B27: Lucio Chequer | C27: 23 | D27: Carlos Eduardo | E27: 8 | F27: Euclides Almeida | G27: 13 | H27: Carlos Filizolla | I27: 20 | J27: Cláudio Naves | K27: 19 | L27: Ivan Renault | M27: 31 | N27: Hélio Chagas | O27: 47 | P27: Roberto Veloso | Q27: 54 | R27: Michel Abouud | S27: 55 | T27: Leodegario Junior | U27: 65 | V27: Leodegario Junior | W27: 80 | X27: Ricardo Araújo | Y27: 76 | Z27: 297 | AA27: 207 | AB27: 12 | AC27: Fernando Lobo | AD27: 93 | AE27: 304 | AF27: 226 | AG27: 3
B28: Luiz Otávio | C28: 24 | D28: Ricardo Araújo | E28: 0 | F28: Alexandre Melillo | G28: 12 | H28: Cláudio Naves | I28: 19 | J28: Hélio Chagas | K28: 19 | L28: Marcelo Santiago | M28: 29 | N28: Marcelo Santiago | O28: 38 | P28: Ivan Renault | Q28: 44 | R28: Jader Abreu | S28: 48 | T28: Jader Abreu | U28: 65 | V28: Ivan Renault | W28: 69 | X28: Leodegario Junior | Y28: 75 | Z28: 298 | AA28: 208 | AB28: 1 | AC28: Ricardo Araújo | AD28: 76 | AE28: 321 | AF28: 243 | AG28: 17
B29: Marcelo Santiago | C29: 25 | D29: Roberto Veloso | E29: 0 | F29: Leodegario Junior | G29: 11 | H29: Hélio Chagas | I29: 19 | J29: Jader Abreu | K29: 18 | L29: Jader Abreu | M29: 28 | N29: Ivan Renault | O29: 38 | P29: Maurílio Carmo | Q29: 38 | R29: Flávio Marques | S29: 45 | T29: Michel Abouud | U29: 55 | V29: Jader Abreu | W29: 60 | X29: Michel Abouud | Y29: 68 | Z29: 305 | AA29: 215 | AB29: 7 | AC29: Flávio Marques | AD29: 71 | AE29: 326 | AF29: 248 | AG29: 5
A30: X | B30: Marcelo Sant'anna | C30: 26 | D30: Gijo | E30: 0 | F30: Jader Abreu | G30: 10 | H30: Ivan Renault | I30: 17 | J30: Marcelo Santiago | K30: 17 | L30: Carlos Filizolla | M30: 27 | N30: Jader Abreu | O30: 34 | P30: Marcelo Santiago | Q30: 38 | R30: Leodegario Junior | S30: 41 | T30: Carlos Filizolla | U30: 50 | V30: Michel Abouud | W30: 55 | X30: Jader Abreu | Y30: 55 | Z30: 318 | AA30: 228 | AB30: 13 | AC30: Michel Abouud | AD30: 63 | AE30: 334 | AF30: 256 | AG30: 8
A31: X | B31: Marcelo Clemente | C31: 27 | D31: Leodegario Junior | E31: 0 | F31: Ivan Renault | G31: 9 | H31: Euclides Almeida | I31: 13 | J31: Ivan Renault | K31: 17 | L31: Flávio Marques | M31: 26 | N31: Caetano | O31: 32 | P31: Michel Abouud | Q31: 37 | R31: Ivan Renault | S31: 39 | T31: Flávio Marques | U31: 40 | V31: Carlos Filizolla | W31: 50 | X31: Flávio Marques | Y31: 53 | Z31: 320 | AA31: 230 | AB31: 2 | AC31: Jader Abreu | AD31: 60 | AE31: 337 | AF31: 259 | AG31: 3
B32: SSSS | C32: 28 | D32: Enio Júnior | E32: 0 | F32: Enio Júnior | G32: 7 | H32: Leodegario Junior | I32: 11 | J32: SSSSSSS | K32: 11 | L32: Caetano | M32: 23 | N32: Flávio Marques | O32: 28 | P32: Flávio Marques | Q32: 29 | R32: Marcelo Santiago | S32: 38 | T32: Ivan Renault | U32: 39 | V32: Flávio Marques | W32: 41 | X32: Carlos Filizolla | Y32: 50 | Z32: 323 | AA32: 233 | AB32: 3 | AC32: Carlos Filizolla | AD32: 45 | AE32: 352 | AF32: 274 | AG32: 15
B33: Marcelo Junqueira | C33: 29 | D33: Jader Abreu | E33: 0 | F33: Gijo | G33: 6 | H33: SSSSSSS | I33: 11 | J33: Gijo | K33: 6 | L33: Cláudio Naves | M33: 22 | N33: Carlos Filizolla | O33: 27 | P33: Jader Abreu | Q33: 29 | R33: Carlos Filizolla | S33: 37 | T33: Marcelo Santiago | U33: 38 | V33: Luiz Otávio | W33: 36 | X33: Luiz Otávio | Y33: 36 | Z33: 337 | AA33: 247 | AB33: 14 | AC33: Marcelo Santiago | AD33: 33 | AE33: 364 | AF33: 286 | AG33: 12
B34: SS | C34: 30 | D34: Euclides Almeida | E34: 0 | F34: Michel Abouud | G34: 3 | H34: Gijo | I34: 6 | J34: Jorge Prado | K34: 3 | L34: SSSSSSS | M34: 19 | N34: Maurílio Carmo | O34: 22 | P34: Caetano | Q34: 27 | R34: Luiz Otávio | S34: 36 | T34: Luiz Otávio | U34: 36 | V34: Marcelo Santiago | W34: 33 | X34: Marcelo Santiago | Y34: 33 | Z34: 340 | AA34: 250 | AB34: 3 | AC34: Luiz Otávio | AD34: 31 | AE34: 366 | AF34: 288 | AG34: 2
B35: Marcus Reis | C35: 31 | D35: Maurílio Carmo | E35: 0 | F35: Edson Ribeiro | G35: 1 | H35: Michel Abouud | I35: 3 | J35: Roberto Veloso | K35: 0 | L35: Michel Abouud | M35: 4 | N35: Cláudio Naves | O35: 22 | P35: Luiz Otávio | Q35: 26 | R35: Caetano | S35: 22 | T35: Cláudio Naves | U35: 22 | V35: Cláudio Naves | W35: 22 | X35: Cláudio Naves | Y35: 22 | Z35: 351 | AA35: 261 | AB35: 11 | AC35: Jorge Prado | AD35: 23 | AE35: 374 | AF35: 296 | AG35: 8
B36: Maurílio Carmo | C36: 32 | D36: SSSSSSS | E36: 0 | F36: Roberto Veloso | G36: 0 | H36: Roberto Veloso | I36: 0 | J36: Leodegario Junior | K36: 0 | L36: Roberto Veloso | M36: 0 | N36: SSSSSSS | O36: 22 | P36: Leodegario Junior | Q36: 24 | R36: Cláudio Naves | S36: 22 | T36: Caetano | U36: 17 | V36: Caetano | W36: 12 | X36: Caetano | Y36: 7 | Z36: 366 | AA36: 276 | AB36: 15 | AC36: Cláudio Naves | AD36: 22 | AE36: 375 | AF36: 297 | AG36: 1
B37: Michel Abouud | C37: 33 | D37: Michel Abouud | E37: 0 | F37: Maurílio Carmo | G37: 0 | H37: Maurílio Carmo | I37: 0 | J37: Caetano | K37: 0 | L37: Leodegario Junior | M37: 0 | N37: Leodegario Junior | O37: 21 | P37: Carlos Filizolla | Q37: 22 | R37: SS | S37: 0 | T37: SS | U37: 0 | V37: Jorge Prado | W37: 7 | X37: Jorge Prado | Y37: 7 | Z37: 366 | AA37: 276 | AB37: 0 | AC37: Caetano | AD37: 2 | AE37: 395 | AF37: 317 | AG37: 20
B38: Morvan | C38: 34 | D38: Edson Ribeiro | E38: 0 | F38: SSSSSSS | G38: 0 | H38: Edson Ribeiro | I38: 0 | J38: Maurílio Carmo | K38: 0 | L38: Maurílio Carmo | M38: 0 | N38: Michel Abouud | O38: 17 | P38: Cláudio Naves | Q38: 22 | R38: SSSS | S38: 0 | T38: SSSS | U38: 0 | V38: SS | W38: 0 | X38: SS | Y38: 0 | Z38: 373 | AA38: 283 | AB38: 7 | AC38: SS | AD38: 0 | AE38: 397 | AF38: 319 | AG38: 2
B39: Ricardo Araújo | C39: 35 | D39: Luiz Otávio | E39: 0 | F39: Luiz Otávio | G39: 0 | H39: Luiz Otávio | I39: 0 | J39: Michel Abouud | K39: 0 | L39: Jorge Prado | M39: 0 | N39: Luiz Otávio | O39: 8 | P39: SSSSSSS | Q39: 17 | R39: SSSSSSS | S39: 0 | T39: SSSSSSS | U39: 0 | V39: SSSS | W39: 0 | X39: SSSS | Y39: 0 | Z39: 373 | AA39: 283 | AB39: 0 | AC39: SSSS | AD39: 0 | AE39: 397 | AF39: 319 | AG39: 0
B40: Roberto Veloso | C40: 36 | D40: Caetano | E40: 0 | F40: Caetano | G40: 0 | H40: Caetano | I40: 0 | J40: Edson Ribeiro | K40: 0 | L40: Edson Ribeiro | M40: 0 | N40: Jorge Prado | O40: 0 | P40: Jorge Prado | Q40: 0 | R40: Jorge Prado | S40: 0 | T40: Jorge Prado | U40: 0 | V40: SSSSSSS | W40: 0 | X40: SSSSSSS | Y40: 0 | Z40: 373 | AA40: 283 | AB40: 0 | AC40: SSSSSSS | AD40: 0 | AE40: 397 | AF40: 319 | AG40: 0
A41: X | B41: Rodrigo Mercadante | C41: 37 | D41: Henrique Castilho | E41: 0 | F41: Henrique Castilho | G41: 0 | H41: Henrique Castilho | I41: 0 | J41: Luiz Otávio | K41: 0 | L41: Luiz Otávio | M41: 0 | N41: Edson Ribeiro | O41: 0 | P41: Edson Ribeiro | Q41: 0 | R41: Edson Ribeiro | S41: 0 | T41: Edson Ribeiro | U41: 0 | V41: Edson Ribeiro | W41: 0 | X41: Edson Ribeiro | Y41: 0 | Z41: 373 | AA41: 283 | AB41: 0 | AC41: Edson Ribeiro | AD41: 0 | AE41: 397 | AF41: 319 | AG41: 0
B42: Rodrigo Rotheia | C42: 38 | D42: Jorge Prado | E42: 0 | F42: Jorge Prado | G42: 0 | H42: Jorge Prado | I42: 0 | J42: Henrique Castilho | K42: 0 | L42: Henrique Castilho | M42: 0 | N42: Henrique Castilho | O42: 0 | P42: Henrique Castilho | Q42: 0 | R42: Henrique Castilho | S42: 0 | T42: Henrique Castilho | U42: 0 | V42: Henrique Castilho | W42: 0 | X42: Henrique Castilho | Y42: 0 | Z42: 373 | AA42: 283 | AB42: 0 | AC42: Henrique Castilho | AD42: 0 | AE42: 397 | AF42: 319 | AG42: 0
B43: SSSSSSS | C43: 39 | D43: Marcus Reis | E43: 0 | F43: Marcus Reis | G43: 0 | H43: Marcus Reis | I43: 0 | J43: Marcus Reis | K43: 0 | L43: Marcus Reis | M43: 0 | N43: Marcus Reis | O43: 0 | P43: Marcus Reis | Q43: 0 | R43: Marcus Reis | S43: 0 | T43: Marcus Reis | U43: 0 | V43: Marcus Reis | W43: 0 | X43: Marcus Reis | Y43: 0 | Z43: 373 | AA43: 283 | AB43: 0 | AC43: Marcus Reis | AD43: 0 | AE43: 397 | AF43: 319 | AG43: 0
C44: 40 | Z44: 373 | AA44: 283 | AB44: 0 | AE44: 397 | AF44: 319 | AG44: 0
C45: 41 | Z45: 373 | AA45: 283 | AB45: 0 | AE45: 397 | AF45: 319 | AG45: 0
C46: 42 | Z46: 373 | AA46: 283 | AB46: 0 | AE46: 397 | AF46: 319 | AG46: 0
C47: 43 | Z47: 373 | AA47: 283 | AB47: 0 | AE47: 397 | AF47: 319 | AG47: 0
C48: 44 | Z48: 373 | AA48: 283 | AB48: 0 | AE48: 397 | AF48: 319 | AG48: 0
C49: 45 | Z49: 373 | AA49: 283 | AB49: 0 | AE49: 397 | AF49: 319 | AG49: 0

Sheet CAMP EQUIPE EVOL
A1: 2022 | B1: OK | D1: OK | F1: OK | H1: OK | J1: OK | L1: OK | N1: OK | P1: OK | R1: OK | T1: OK | V1: OK | X1: DIF. LIDER | Y1: DIF. 3º | Z1: DIF. PRÓXIMO | AA1: OK | AC1: DIF. LIDER | AD1: DIF. 3º | AE1: DIF. PRÓXIMO
B2: 1ª etapa | D2: 2ª etapa | F2: 3ª etapa | H2: 4ª etapa | J2: 5ª etapa | L2: 6ª etapa | N2: 7ª etapa | P2: 8ª etapa | R2: 9ª etapa | T2: 10ª etapa | V2: 11ª etapa | AA2: 12ª etapa
D3: 0 | F3: 00:00:00 | H3: 00:00:00 | J3: 00:00:00 | L3: 00:00:00 | N3: 00:00:00 | P3: 00:00:00 | R3: 00:00:00 | T3: 00:00:00 | V3: 00:00:00 | AA3: 00:00:00
A4: EQUIPES | B4: EQUIPES | C4: Pontuação Geral | D4: EQUIPES | E4: Pontuação Geral | F4: EQUIPES | G4: Pontuação Geral | H4: EQUIPES | I4: Pontuação Geral | J4: EQUIPES | K4: Pontuação Geral | L4: EQUIPES | M4: Pontuação Geral | N4: Posição | O4: Pontos | P4: Posição | Q4: Pontos | R4: Posição | S4: Pontos | T4: Posição | U4: Pontos | V4: Posição | W4: Pontos | AA4: Posição | AB4: Pontos
A5: 1º | B5: Incosel | C5: 87 | D5: Frigoindaiá | E5: 179 | F5: Frigoindaiá | G5: 179 | H5: Frigoindaiá | I5: 212 | J5: Frigoindaiá | K5: 297 | L5: Frigoindaiá | M5: 369 | N5: Incosel | O5: 458 | P5: Incosel | Q5: 542 | R5: Incosel | S5: 628 | T5: Incosel | U5: 739 | V5: Incosel | W5: 832 | X5: - | Y5: - | Z5: - | AA5: Incosel | AB5: 916 | AC5: - | AD5: - | AE5: -
B6: Carlos Sampaio | C6: 17 | D6: Jarbas Reis | E6: 56 | F6: Jarbas Reis | G6: 56 | H6: Jarbas Reis | I6: 66 | J6: Jarbas Reis | K6: 81 | L6: Jarbas Reis | M6: 105 | N6: Carlos Sampaio | O6: 91 | P6: Carlos Sampaio | Q6: 129 | R6: Carlos Sampaio | S6: 161 | T6: Carlos Sampaio | U6: 195 | V6: Carlos Sampaio | W6: 221 | X6: - | Y6: - | Z6: - | AA6: Carlos Sampaio | AB6: 249 | AC6: - | AD6: - | AE6: - | AF6: =VLOOKUP(AA6,PRESENÇAS!$A$1:$N$46,14,FALSE) -> 0
B7: Enio Júnior | C7: 0 | D7: Gijo | E7: 0 | F7: Gijo | G7: 0 | H7: Gijo | I7: 0 | J7: Gijo | K7: 32 | L7: Gijo | M7: 62 | N7: Enio Júnior | O7: 41 | P7: Enio Júnior | Q7: 53 | R7: Enio Júnior | S7: 53 | T7: Enio Júnior | U7: 53 | V7: Enio Júnior | W7: 75 | X7: - | Y7: - | Z7: - | AA7: Enio Júnior | AB7: 75 | AC7: - | AD7: - | AE7: -
B8: Marcelo Clemente | C8: 46 | D8: Cláudio Dumont | E8: 79 | F8: Cláudio Dumont | G8: 79 | H8: Cláudio Dumont | I8: 86 | J8: Cláudio Dumont | K8: 86 | L8: Cláudio Dumont | M8: 86 | N8: Marcelo Clemente | O8: 214 | P8: Marcelo Clemente | Q8: 214 | R8: Marcelo Clemente | S8: 242 | T8: Marcelo Clemente | U8: 287 | V8: Marcelo Clemente | W8: 332 | X8: - | Y8: - | Z8: - | AA8: Marcelo Clemente | AB8: 356 | AC8: - | AD8: - | AE8: -
B9: Lucio Chequer | C9: 24 | D9: Carlos Eduardo | E9: 44 | F9: Carlos Eduardo | G9: 44 | H9: Carlos Eduardo | I9: 60 | J9: Carlos Eduardo | K9: 98 | L9: Carlos Eduardo | M9: 116 | N9: Lucio Chequer | O9: 112 | P9: Lucio Chequer | Q9: 146 | R9: Lucio Chequer | S9: 172 | T9: Lucio Chequer | U9: 204 | V9: Lucio Chequer | W9: 204 | X9: - | Y9: - | Z9: - | AA9: Lucio Chequer | AB9: 236 | AC9: - | AD9: - | AE9: -
B10: XXXXXXXX | C10: 0 | D10: XXXXX | E10: 0 | F10: XXXXX | G10: 0 | H10: XXXXX | I10: 0 | J10: XXXXX | K10: 0 | L10: XXXXX | M10: 0 | N10: XXXXXXXX | O10: 0 | P10: XXXXXXXX | Q10: 0 | R10: XXXXXXXX | S10: 0 | T10: XXXXXXXX | U10: 0 | V10: XXXXXXXX | W10: 0 | X10: - | Y10: - | Z10: - | AA10: XXXXXXXX | AB10: 0 | AC10: - | AD10: - | AE10: -
A11: 2º | B11: Lider | C11: 80 | D11: Incosel | E11: 168 | F11: Incosel | G11: 178 | H11: Incosel | I11: 183 | J11: Incosel | K11: 269 | L11: Incosel | M11: 351 | N11: Frigoindaiá | O11: 439 | P11: Frigoindaiá | Q11: 501 | R11: Frigoindaiá | S11: 556 | T11: Frigoindaiá | U11: 609 | V11: Frigoindaiá | W11: 697 | X11: =W5-W11 -> 135 | Y11: - | Z11: =W5-W11 -> 135 | AA11: Frigoindaiá | AB11: 757 | AC11: =AB5-AB11 -> 159 | AD11: - | AE11: =AB5-AB11 -> 159
B12: Marcelo Sant'anna | C12: 38 | D12: Carlos Sampaio | E12: 31 | F12: Carlos Sampaio | G12: 43 | H12: Carlos Sampaio | I12: 26 | J12: Carlos Sampaio | K12: 43 | L12: Carlos Sampaio | M12: 57 | N12: Jarbas Reis | O12: 133 | P12: Jarbas Reis | Q12: 174 | R12: Jarbas Reis | S12: 204 | T12: Jarbas Reis | U12: 216 | V12: Jarbas Reis | W12: 254 | X12: - | Y12: - | Z12: - | AA12: Jarbas Reis | AB12: 288 | AC12: - | AD12: - | AE12: -
B13: Flávio Marques | C13: 0 | D13: Enio Júnior | E13: 0 | F13: Enio Júnior | G13: 0 | H13: Enio Júnior | I13: 13 | J13: Enio Júnior | K13: 13 | L13: Enio Júnior | M13: 13 | N13: Gijo | O13: 62 | P13: Gijo | Q13: 79 | R13: Gijo | S13: 103 | T13: Gijo | U13: 103 | V13: Gijo | W13: 119 | X13: - | Y13: - | Z13: - | AA13: Gijo | AB13: 119 | AC13: - | AD13: - | AE13: -
B14: Rodrigo Rotheia | C14: 22 | D14: Marcelo Clemente | E14: 87 | F14: Marcelo Clemente | G14: 81 | H14: Marcelo Clemente | I14: 82 | J14: Marcelo Clemente | K14: 127 | L14: Marcelo Clemente | M14: 169 | N14: Cláudio Dumont | O14: 120 | P14: Cláudio Dumont | Q14: 120 | R14: Cláudio Dumont | S14: 120 | T14: Cláudio Dumont | U14: 120 | V14: Cláudio Dumont | W14: 120 | X14: - | Y14: - | Z14: - | AA14: Cláudio Dumont | AB14: 120 | AC14: - | AD14: - | AE14: -
B15: Jader Abreu | C15: 0 | D15: Lucio Chequer | E15: 50 | F15: Lucio Chequer | G15: 54 | H15: Lucio Chequer | I15: 62 | J15: Lucio Chequer | K15: 86 | L15: Lucio Chequer | M15: 112 | N15: Carlos Eduardo | O15: 124 | P15: Carlos Eduardo | Q15: 128 | R15: Carlos Eduardo | S15: 129 | T15: Carlos Eduardo | U15: 170 | V15: Carlos Eduardo | W15: 204 | X15: - | Y15: - | Z15: - | AA15: Carlos Eduardo | AB15: 230 | AC15: - | AD15: - | AE15: -
B16: Marcelo Junqueira | C16: 20 | D16: XXXXXXXX | E16: 0 | F16: XXXXXXXX | G16: 0 | H16: XXXXXXXX | I16: 0 | J16: XXXXXXXX | K16: 0 | L16: XXXXXXXX | M16: 0 | N16: XXXXX | O16: 0 | P16: XXXXX | Q16: 0 | R16: XXXXX | S16: 0 | T16: XXXXX | U16: 0 | V16: XXXXX | W16: 0 | X16: - | Y16: - | Z16: - | AA16: XXXXX | AB16: 0 | AC16: - | AD16: - | AE16: -
A17: 3º | B17: Frigoindaiá | C17: 70 | D17: Lider | E17: 167 | F17: Lider | G17: 167 | H17: Lider | I17: 169 | J17: Lider | K17: 249 | L17: Lider | M17: 319 | N17: Lider | O17: 387 | P17: Lider | Q17: 445 | R17: Ventura | S17: 500 | T17: LQN | U17: 545 | V17: LQN | W17: 605 | X17: =W5-W17 -> 227 | Y17: - | Z17: =W11-W17 -> 92 | AA17: LQN | AB17: 659 | AC17: =AB5-AB17 -> 257 | AD17: - | AE17: =AB11-AB17 -> 98
B18: Jarbas Reis | C18: 28 | D18: Marcelo Sant'anna | E18: 72 | F18: Marcelo Sant'anna | G18: 72 | H18: Marcelo Sant'anna | I18: 50 | J18: Marcelo Sant'anna | K18: 88 | L18: Marcelo Sant'anna | M18: 88 | N18: Marcelo Sant'anna | O18: 124 | P18: Marcelo Sant'anna | Q18: 152 | R18: Rodrigo Mercadante | S18: 221 | T18: SSSS | U18: 153 | V18: SSSS | W18: 153 | X18: - | Y18: - | Z18: - | AA18: SSSS | AB18: 153 | AC18: - | AD18: - | AE18: -
B19: Gijo | C19: 0 | D19: Flávio Marques | E19: 0 | F19: Flávio Marques | G19: 0 | H19: Flávio Marques | I19: 0 | J19: Flávio Marques | K19: 0 | L19: Flávio Marques | M19: 0 | N19: Flávio Marques | O19: 0 | P19: Flávio Marques | Q19: 16 | R19: Maurílio Carmo | S19: 49 | T19: Michel Abouud | U19: 51 | V19: Michel Abouud | W19: 64 | X19: - | Y19: - | Z19: - | AA19: Michel Abouud | AB19: 64 | AC19: - | AD19: - | AE19: -
B20: Cláudio Dumont | C20: 34 | D20: Rodrigo Rotheia | E20: 60 | F20: Rodrigo Rotheia | G20: 60 | H20: Rodrigo Rotheia | I20: 74 | J20: Rodrigo Rotheia | K20: 96 | L20: Rodrigo Rotheia | M20: 128 | N20: Rodrigo Rotheia | O20: 128 | P20: Rodrigo Rotheia | Q20: 128 | R20: Fernando Lobo | S20: 85 | T20: Euclides Almeida | U20: 103 | V20: Euclides Almeida | W20: 120 | X20: - | Y20: - | Z20: - | AA20: Euclides Almeida | AB20: 158 | AC20: - | AD20: - | AE20: -
B21: Carlos Eduardo | C21: 8 | D21: Jader Abreu | E21: 0 | F21: Jader Abreu | G21: 0 | H21: Jader Abreu | I21: 0 | J21: Jader Abreu | K21: 0 | L21: Jader Abreu | M21: 14 | N21: Jader Abreu | O21: 20 | P21: Jader Abreu | Q21: 34 | R21: Roberto Veloso | S21: 145 | T21: Claudio Junqueira | U21: 238 | V21: Claudio Junqueira | W21: 268 | X21: - | Y21: - | Z21: - | AA21: Claudio Junqueira | AB21: 284 | AC21: - | AD21: - | AE21: -
B22: XXXXX | C22: 0 | D22: Marcelo Junqueira | E22: 35 | F22: Marcelo Junqueira | G22: 35 | H22: Marcelo Junqueira | I22: 45 | J22: Marcelo Junqueira | K22: 65 | L22: Marcelo Junqueira | M22: 89 | N22: Marcelo Junqueira | O22: 115 | P22: Marcelo Junqueira | Q22: 115 | R22: XXXXXX | S22: 0 | T22: XXXX | U22: 0 | V22: XXXX | W22: 0 | X22: - | Y22: - | Z22: - | AA22: XXXX | AB22: 0 | AC22: - | AD22: - | AE22: -
A23: 4º | B23: Santiago | C23: 66 | D23: LQN | E23: 110 | F23: LQN | G23: 121 | H23: LQN | I23: 130 | J23: Ventura | K23: 198 | L23: LQN | M23: 276 | N23: LQN | O23: 344 | P23: LQN | Q23: 433 | R23: Lider | S23: 496 | T23: Lider | U23: 542 | V23: Ventura | W23: 591 | X23: =W$5-W23 -> 241 | Y23: =W$17-W23 -> 14 | Z23: =W17-W23 -> 14 | AA23: Ventura | AB23: 647 | AC23: =AB$5-AB23 -> 269 | AD23: =AB$17-AB23 -> 12 | AE23: =AB17-AB23 -> 12
B24: SS | C24: 32 | D24: SSSS | E24: 59 | F24: SSSS | G24: 57 | H24: SSSS | I24: 59 | J24: Rodrigo Mercadante | K24: 103 | L24: SSSS | M24: 134 | N24: SSSS | O24: 134 | P24: SSSS | Q24: 133 | R24: Marcelo Sant'anna | S24: 180 | T24: Marcelo Sant'anna | U24: 195 | V24: Rodrigo Mercadante | W24: 283 | X24: - | Y24: - | Z24: - | AA24: Rodrigo Mercadante | AB24: 319 | AC24: - | AD24: - | AE24: -
B25: Carlos Filizolla | C25: 18 | D25: Michel Abouud | E25: 0 | F25: Michel Abouud | G25: 0 | H25: Michel Abouud | I25: 0 | J25: Maurílio Carmo | K25: 25 | L25: Michel Abouud | M25: 13 | N25: Michel Abouud | O25: 33 | P25: Michel Abouud | Q25: 51 | R25: Flávio Marques | S25: 16 | T25: Flávio Marques | U25: 16 | V25: Maurílio Carmo | W25: 67 | X25: - | Y25: - | Z25: - | AA25: Maurílio Carmo | AB25: 87 | AC25: - | AD25: - | AE25: -
B26: Marcelo Santiago | C26: 16 | D26: Euclides Almeida | E26: 13 | F26: Euclides Almeida | G26: 0 | H26: Euclides Almeida | I26: 11 | J26: Fernando Lobo | K26: 28 | L26: Euclides Almeida | M26: 33 | N26: Euclides Almeida | O26: 43 | P26: Euclides Almeida | Q26: 85 | R26: Rodrigo Rotheia | S26: 134 | T26: Rodrigo Rotheia | U26: 134 | V26: Fernando Lobo | W26: 96 | X26: - | Y26: - | Z26: - | AA26: Fernando Lobo | AB26: 96 | AC26: - | AD26: - | AE26: -
B27: Henrique Castilho | C27: 0 | D27: Claudio Junqueira | E27: 38 | F27: Claudio Junqueira | G27: 64 | H27: Claudio Junqueira | I27: 60 | J27: Roberto Veloso | K27: 42 | L27: Claudio Junqueira | M27: 96 | N27: Claudio Junqueira | O27: 134 | P27: Claudio Junqueira | Q27: 164 | R27: Jader Abreu | S27: 34 | T27: Jader Abreu | U27: 51 | V27: Roberto Veloso | W27: 145 | X27: - | Y27: - | Z27: - | AA27: Roberto Veloso | AB27: 145 | AC27: - | AD27: - | AE27: -
B28: Marcus Reis | C28: 0 | D28: XXXX | E28: 0 | F28: XXXX | G28: 0 | H28: XXXX | I28: 0 | J28: XXXXXX | K28: 0 | L28: XXXX | M28: 0 | N28: XXXX | O28: 0 | P28: XXXX | Q28: 0 | R28: Marcelo Junqueira | S28: 132 | T28: Marcelo Junqueira | U28: 146 | V28: XXXXXX | W28: 0 | X28: - | Y28: - | Z28: - | AA28: XXXXXX | AB28: 0 | AC28: - | AD28: - | AE28: -
A29: 5º | B29: LQN | C29: 62 | D29: Clinorte | E29: 107 | F29: Ventura | G29: 119 | H29: Ventura | I29: 121 | J29: LQN | K29: 192 | L29: Ventura | M29: 265 | N29: Ventura | O29: 317 | P29: Ventura | Q29: 414 | R29: LQN | S29: 491 | T29: Ventura | U29: 541 | V29: Lider | W29: 590 | X29: =W$5-W29 -> 242 | Y29: =W$17-W29 -> 15 | Z29: =W23-W29 -> 1 | AA29: Lider | AB29: 646 | AC29: =AB$5-AB29 -> 270 | AD29: =AB$17-AB29 -> 13 | AE29: =AB23-AB29 -> 1
B30: SSSS | C30: 36 | D30: Guilherme Janot | E30: 71 | F30: Rodrigo Mercadante | G30: 68 | H30: Rodrigo Mercadante | I30: 62 | J30: SSSS | K30: 89 | L30: Rodrigo Mercadante | M30: 123 | N30: Rodrigo Mercadante | O30: 155 | P30: Rodrigo Mercadante | Q30: 187 | R30: SSSS | S30: 153 | T30: Rodrigo Mercadante | U30: 251 | V30: Marcelo Sant'anna | W30: 231 | X30: - | Y30: - | Z30: - | AA30: Marcelo Sant'anna | AB30: 269 | AC30: - | AD30: - | AE30: -
B31: Michel Abouud | C31: 0 | D31: Ricardo Araújo | E31: 18 | F31: Maurílio Carmo | G31: 13 | H31: Maurílio Carmo | I31: 13 | J31: Michel Abouud | K31: 0 | L31: Maurílio Carmo | M31: 25 | N31: Maurílio Carmo | O31: 25 | P31: Maurílio Carmo | Q31: 49 | R31: Michel Abouud | S31: 51 | T31: Maurílio Carmo | U31: 49 | V31: Flávio Marques | W31: 28 | X31: - | Y31: - | Z31: - | AA31: Flávio Marques | AB31: 46 | AC31: - | AD31: - | AE31: -
B32: Euclides Almeida | C32: 0 | D32: Cláudio Naves | E32: 13 | F32: Fernando Lobo | G32: 20 | H32: Fernando Lobo | I32: 28 | J32: Euclides Almeida | K32: 33 | L32: Fernando Lobo | M32: 43 | N32: Fernando Lobo | O32: 63 | P32: Fernando Lobo | Q32: 63 | R32: Euclides Almeida | S32: 85 | T32: Fernando Lobo | U32: 96 | V32: Rodrigo Rotheia | W32: 134 | X32: - | Y32: - | Z32: - | AA32: Rodrigo Rotheia | AB32: 134 | AC32: - | AD32: - | AE32: -
B33: Claudio Junqueira | C33: 26 | D33: Luiz Otávio | E33: 5 | F33: Roberto Veloso | G33: 18 | H33: Roberto Veloso | I33: 18 | J33: Claudio Junqueira | K33: 70 | L33: Roberto Veloso | M33: 74 | N33: Roberto Veloso | O33: 74 | P33: Roberto Veloso | Q33: 115 | R33: Claudio Junqueira | S33: 202 | T33: Roberto Veloso | U33: 145 | V33: Jader Abreu | W33: 51 | X33: - | Y33: - | Z33: - | AA33: Jader Abreu | AB33: 51 | AC33: - | AD33: - | AE33: -
B34: XXXX | C34: 0 | D34: XXXXXXXXX | E34: 0 | F34: XXXXXX | G34: 0 | H34: XXXXXX | I34: 0 | J34: XXXX | K34: 0 | L34: XXXXXX | M34: 0 | N34: XXXXXX | O34: 0 | P34: XXXXXX | Q34: 0 | R34: XXXX | S34: 0 | T34: XXXXXX | U34: 0 | V34: Marcelo Junqueira | W34: 146 | X34: - | Y34: - | Z34: - | AA34: Marcelo Junqueira | AB34: 146 | AC34: - | AD34: - | AE34: -
A35: 6º | B35: Clinorte | C35: 54 | D35: Santiago | E35: 94 | F35: Clinorte | G35: 107 | H35: Clinorte | I35: 107 | J35: Alpha | K35: 153 | L35: Alpha | M35: 216 | N35: Alpha | O35: 277 | P35: Alpha | Q35: 334 | R35: Alpha | S35: 395 | T35: Alpha | U35: 467 | V35: Alpha | W35: 552 | X35: =W$5-W35 -> 280 | Y35: =W$17-W35 -> 53 | Z35: =W29-W35 -> 38 | AA35: Alpha | AB35: 639 | AC35: =AB$5-AB35 -> 277 | AD35: =AB$17-AB35 -> 20 | AE35: =AB29-AB35 -> 7
B36: Guilherme Janot | C36: 41 | D36: SS | E36: 49 | F36: Guilherme Janot | G36: 71 | H36: Guilherme Janot | I36: 71 | J36: Alexandre Melillo | K36: 103 | L36: Alexandre Melillo | M36: 137 | N36: Alexandre Melillo | O36: 174 | P36: Alexandre Melillo | Q36: 211 | R36: Alexandre Melillo | S36: 256 | T36: Alexandre Melillo | U36: 274 | V36: Alexandre Melillo | W36: 316 | X36: - | Y36: - | Z36: - | AA36: Alexandre Melillo | AB36: 362 | AC36: - | AD36: - | AE36: -
B37: Ricardo Araújo | C37: 0 | D37: Carlos Filizolla | E37: 20 | F37: Ricardo Araújo | G37: 18 | H37: Ricardo Araújo | I37: 18 | J37: Ivan Renault | K37: 31 | L37: Ivan Renault | M37: 38 | N37: Ivan Renault | O37: 38 | P37: Ivan Renault | Q37: 38 | R37: Ivan Renault | S37: 38 | T37: Ivan Renault | U37: 68 | V37: Ivan Renault | W37: 96 | X37: - | Y37: - | Z37: - | AA37: Ivan Renault | AB37: 126 | AC37: - | AD37: - | AE37: -
B38: Cláudio Naves | C38: 13 | D38: Marcelo Santiago | E38: 25 | F38: Cláudio Naves | G38: 13 | H38: Cláudio Naves | I38: 13 | J38: Morvan | K38: 19 | L38: Morvan | M38: 41 | N38: Morvan | O38: 65 | P38: Morvan | Q38: 85 | R38: Morvan | S38: 101 | T38: Morvan | U38: 101 | V38: Morvan | W38: 116 | X38: - | Y38: - | Z38: - | AA38: Morvan | AB38: 116 | AC38: - | AD38: - | AE38: -
B39: Luiz Otávio | C39: 0 | D39: Henrique Castilho | E39: 0 | F39: Luiz Otávio | G39: 5 | H39: Luiz Otávio | I39: 5 | J39: Jorge Prado | K39: 0 | L39: Jorge Prado | M39: 0 | N39: Jorge Prado | O39: 0 | P39: Jorge Prado | Q39: 0 | R39: Jorge Prado | S39: 0 | T39: Jorge Prado | U39: 24 | V39: Jorge Prado | W39: 24 | X39: - | Y39: - | Z39: - | AA39: Jorge Prado | AB39: 35 | AC39: - | AD39: - | AE39: -
B40: XXXXXXXXX | C40: 0 | D40: Marcus Reis | E40: 0 | F40: XXXXXXXXX | G40: 0 | H40: XXXXXXXXX | I40: 0 | J40: XXX | L40: XXX | N40: XXX | P40: XXX | R40: XXX | T40: XXX | V40: XXX | X40: - | Y40: - | Z40: - | AA40: XXX | AC40: - | AD40: - | AE40: -
A41: 7º | B41: Ventura | C41: 41 | D41: Ventura | E41: 93 | F41: Santiago | G41: 106 | H41: Santiago | I41: 106 | J41: Clinorte | K41: 150 | L41: Clinorte | M41: 211 | N41: Clinorte | O41: 269 | P41: Clinorte | Q41: 324 | R41: Clinorte | S41: 363 | T41: Clinorte | U41: 404 | V41: Clinorte | W41: 442 | X41: =W$5-W41 -> 390 | Y41: =W$17-W41 -> 163 | Z41: =W35-W41 -> 110 | AA41: Clinorte | AB41: 483 | AC41: =AB$5-AB41 -> 433 | AD41: =AB$17-AB41 -> 176 | AE41: =AB35-AB41 -> 156
B42: Rodrigo Mercadante | C42: 30 | D42: Rodrigo Mercadante | E42: 62 | F42: SS | G42: 60 | H42: SS | I42: 60 | J42: Guilherme Janot | K42: 93 | L42: Guilherme Janot | M42: 131 | N42: Guilherme Janot | O42: 163 | P42: Guilherme Janot | Q42: 208 | R42: Guilherme Janot | S42: 225 | T42: Guilherme Janot | U42: 266 | V42: Guilherme Janot | W42: 304 | X42: - | Y42: - | Z42: - | AA42: Guilherme Janot | AB42: 345 | AC42: - | AD42: - | AE42: -
B43: Maurílio Carmo | C43: 0 | D43: Maurílio Carmo | E43: 0 | F43: Carlos Filizolla | G43: 18 | H43: Carlos Filizolla | I43: 18 | J43: Ricardo Araújo | K43: 33 | L43: Ricardo Araújo | M43: 42 | N43: Ricardo Araújo | O43: 50 | P43: Ricardo Araújo | Q43: 50 | R43: Ricardo Araújo | S43: 68 | T43: Ricardo Araújo | U43: 68 | V43: Ricardo Araújo | W43: 68 | X43: - | Y43: - | Z43: - | AA43: Ricardo Araújo | AB43: 68 | AC43: - | AD43: - | AE43: -
B44: Fernando Lobo | C44: 11 | D44: Fernando Lobo | E44: 31 | F44: Marcelo Santiago | G44: 28 | H44: Marcelo Santiago | I44: 28 | J44: Cláudio Naves | K44: 19 | L44: Cláudio Naves | M44: 19 | N44: Cláudio Naves | O44: 19 | P44: Cláudio Naves | Q44: 19 | R44: Cláudio Naves | S44: 19 | T44: Cláudio Naves | U44: 19 | V44: Cláudio Naves | W44: 19 | X44: - | Y44: - | Z44: - | AA44: Cláudio Naves | AB44: 19 | AC44: - | AD44: - | AE44: -
B45: Roberto Veloso | C45: 0 | D45: Roberto Veloso | E45: 0 | F45: Henrique Castilho | G45: 0 | H45: Henrique Castilho | I45: 0 | J45: Luiz Otávio | K45: 5 | L45: Luiz Otávio | M45: 19 | N45: Luiz Otávio | O45: 37 | P45: Luiz Otávio | Q45: 47 | R45: Luiz Otávio | S45: 51 | T45: Luiz Otávio | U45: 51 | V45: Luiz Otávio | W45: 51 | X45: - | Y45: - | Z45: - | AA45: Luiz Otávio | AB45: 51 | AC45: - | AD45: - | AE45: -
B46: XXXXXX | C46: 0 | D46: XXXXXX | E46: 0 | F46: Marcus Reis | G46: 0 | H46: Marcus Reis | I46: 0 | J46: XXXXXXXXX | K46: 0 | L46: XXXXXXXXX | M46: 0 | N46: XXXXXXXXX | O46: 0 | P46: XXXXXXXXX | Q46: 0 | R46: XXXXXXXXX | S46: 0 | T46: XXXXXXXXX | U46: 0 | V46: XXXXXXXXX | W46: 0 | X46: - | Y46: - | Z46: - | AA46: XXXXXXXXX | AB46: 0 | AC46: - | AD46: - | AE46: -
A47: 8º | B47: Alpha | C47: 35 | D47: Alpha | E47: 59 | F47: Alpha | G47: 88 | H47: Alpha | I47: 88 | J47: Santiago | K47: 140 | L47: Santiago | M47: 176 | N47: Santiago | O47: 204 | P47: Santiago | Q47: 219 | R47: Santiago | S47: 232 | T47: Clemente Car | U47: 252 | V47: Clemente Car | W47: 276 | X47: =W$5-W47 -> 556 | Y47: =W$17-W47 -> 329 | Z47: =W41-W47 -> 166 | AA47: Clemente Car | AB47: 309 | AC47: =AB$5-AB47 -> 607 | AD47: =AB$17-AB47 -> 350 | AE47: =AB41-AB47 -> 174
B48: Alexandre Melillo | C48: 12 | D48: Alexandre Melillo | E48: 12 | F48: Alexandre Melillo | G48: 57 | H48: Alexandre Melillo | I48: 57 | J48: SS | K48: 94 | L48: SS | M48: 130 | N48: SS | O48: 147 | P48: SS | Q48: 147 | R48: SS | S48: 147 | T48: Caetano | U48: 28 | V48: Caetano | W48: 28 | X48: - | Y48: - | Z48: - | AA48: Caetano | AB48: 28 | AC48: - | AD48: - | AE48: -
B49: Ivan Renault | C49: 9 | D49: Ivan Renault | E49: 9 | F49: Ivan Renault | G49: 17 | H49: Ivan Renault | I49: 17 | J49: Carlos Filizolla | K49: 18 | L49: Carlos Filizolla | M49: 18 | N49: Carlos Filizolla | O49: 20 | P49: Carlos Filizolla | Q49: 35 | R49: Carlos Filizolla | S49: 48 | T49: Leodegario Junior | U49: 100 | V49: Leodegario Junior | W49: 100 | X49: - | Y49: - | Z49: - | AA49: Leodegario Junior | AB49: 117 | AC49: - | AD49: - | AE49: -
B50: Morvan | C50: 14 | D50: Morvan | E50: 38 | F50: Morvan | G50: 14 | H50: Morvan | I50: 14 | J50: Marcelo Santiago | K50: 28 | L50: Marcelo Santiago | M50: 28 | N50: Marcelo Santiago | O50: 37 | P50: Marcelo Santiago | Q50: 37 | R50: Marcelo Santiago | S50: 37 | T50: Edson Ribeiro | U50: 6 | V50: Edson Ribeiro | W50: 6 | X50: - | Y50: - | Z50: - | AA50: Edson Ribeiro | AB50: 6 | AC50: - | AD50: - | AE50: -
B51: Jorge Prado | C51: 0 | D51: Jorge Prado | E51: 0 | F51: Jorge Prado | G51: 0 | H51: Jorge Prado | I51: 0 | J51: Henrique Castilho | K51: 0 | L51: Henrique Castilho | M51: 0 | N51: Henrique Castilho | O51: 0 | P51: Henrique Castilho | Q51: 0 | R51: Henrique Castilho | S51: 0 | T51: Hélio Chagas | U51: 96 | V51: Hélio Chagas | W51: 120 | X51: - | Y51: - | Z51: - | AA51: Hélio Chagas | AB51: 136 | AC51: - | AD51: - | AE51: -
B52: XXX | D52: XXX | F52: XXX | H52: XXX | J52: Marcus Reis | K52: 0 | L52: Marcus Reis | M52: 0 | N52: Marcus Reis | O52: 0 | P52: Marcus Reis | Q52: 0 | R52: Marcus Reis | S52: 0 | T52: SSSSSSS | U52: 22 | V52: SSSSSSS | W52: 22 | X52: - | Y52: - | Z52: - | AA52: SSSSSSS | AB52: 22 | AC52: - | AD52: - | AE52: -
A53: 9º | B53: Clemente Car | C53: 10 | D53: Clemente Car | E53: 36 | F53: Clemente Car | G53: 56 | H53: Clemente Car | I53: 56 | J53: Clemente Car | K53: 112 | L53: Clemente Car | M53: 133 | N53: Clemente Car | O53: 158 | P53: Clemente Car | Q53: 186 | R53: Clemente Car | S53: 210 | T53: Santiago | U53: 243 | V53: Santiago | W53: 243 | X53: =W$5-W53 -> 589 | Y53: =W$17-W53 -> 362 | Z53: =W47-W53 -> 33 | AA53: Santiago | AB53: 243 | AC53: =AB$5-AB53 -> 673 | AD53: =AB$17-AB53 -> 416 | AE53: =AB47-AB53 -> 66
B54: Caetano | C54: 0 | D54: Caetano | E54: 0 | F54: Caetano | G54: 0 | H54: Caetano | I54: 0 | J54: Caetano | K54: 28 | L54: Caetano | M54: 28 | N54: Caetano | O54: 28 | P54: Caetano | Q54: 28 | R54: Caetano | S54: 28 | T54: SS | U54: 150 | V54: SS | W54: 150 | X54: - | Y54: - | Z54: - | AA54: SS | AB54: 150 | AC54: - | AD54: - | AE54: -
B55: Leodegario Junior | C55: 0 | D55: Leodegario Junior | E55: 16 | F55: Leodegario Junior | G55: 26 | H55: Leodegario Junior | I55: 26 | J55: Leodegario Junior | K55: 26 | L55: Leodegario Junior | M55: 36 | N55: Leodegario Junior | O55: 39 | P55: Leodegario Junior | Q55: 56 | R55: Leodegario Junior | S55: 80 | T55: Carlos Filizolla | U55: 55 | V55: Carlos Filizolla | W55: 55 | X55: - | Y55: - | Z55: - | AA55: Carlos Filizolla | AB55: 55 | AC55: - | AD55: - | AE55: -
B56: Edson Ribeiro | C56: 0 | D56: Edson Ribeiro | E56: 6 | F56: Edson Ribeiro | G56: 6 | H56: Edson Ribeiro | I56: 6 | J56: Edson Ribeiro | K56: 6 | L56: Edson Ribeiro | M56: 6 | N56: Edson Ribeiro | O56: 6 | P56: Edson Ribeiro | Q56: 6 | R56: Edson Ribeiro | S56: 6 | T56: Marcelo Santiago | U56: 38 | V56: Marcelo Santiago | W56: 38 | X56: - | Y56: - | Z56: - | AA56: Marcelo Santiago | AB56: 38 | AC56: - | AD56: - | AE56: -
B57: Hélio Chagas | C57: 10 | D57: Hélio Chagas | E57: 14 | F57: Hélio Chagas | G57: 13 | H57: Hélio Chagas | I57: 13 | J57: Hélio Chagas | K57: 33 | L57: Hélio Chagas | M57: 41 | N57: Hélio Chagas | O57: 63 | P57: Hélio Chagas | Q57: 74 | R57: Hélio Chagas | S57: 74 | T57: Henrique Castilho | U57: 0 | V57: Henrique Castilho | W57: 0 | X57: - | Y57: - | Z57: - | AA57: Henrique Castilho | AB57: 0 | AC57: - | AD57: - | AE57: -
B58: SSSSSSS | C58: 0 | D58: SSSSSSS | E58: 0 | F58: SSSSSSS | G58: 11 | H58: SSSSSSS | I58: 11 | J58: SSSSSSS | K58: 19 | L58: SSSSSSS | M58: 22 | N58: SSSSSSS | O58: 22 | P58: SSSSSSS | Q58: 22 | R58: SSSSSSS | S58: 22 | T58: Marcus Reis | U58: 0 | V58: Marcus Reis | W58: 0 | X58: - | Y58: - | Z58: - | AA58: Marcus Reis | AB58: 0 | AC58: - | AD58: - | AE58: -

Sheet TROCA KART
B1: OK | C1: OK | D1: OK | E1: OK | F1: OK | G1: OK | H1: OK | I1: OK | J1: OK | K1: OK | L1: OK | M1: OK
A2: PILOTO\ETAPA | B2: 1 | C2: 2 | D2: 3 | E2: 4 | F2: 5 | G2: 6 | H2: 7 | I2: 8 | J2: 9 | K2: 10 | L2: 11 | M2: 12 | N2: Troca
A3: Alexandre Melillo | N3: 0
A4: Caetano | N4: 0
A5: Carlos Eduardo | B5: TROCA | J5: TROCA | L5: TROCA | N5: 3
A6: Carlos Filizolla | J6: TROCA | N6: 1
A7: Carlos Sampaio | K7: TROCA | L7: TROCA | N7: 2
A8: Claudio Junqueira | D8: TROCA | L8: TROCA | N8: 2
A9: Cláudio Dumont | B9: TROCA | N9: 1
A10: Cláudio Naves | N10: 0
A11: Edson Ribeiro | N11: 0
A12: Enio Júnior | N12: 0
A13: Euclides Almeida | N13: 0
A14: Fernando Lobo | N14: 0
A15: Flávio Marques | B15: TROCA | D15: TROCA | E15: TROCA | N15: 3
A16: Gijo | N16: 0
A17: Guilherme Janot | B17: TROCA | D17: TROCA | L17: TROCA | N17: 3
A18: Henrique Castilho | N18: 0
A19: Hélio Chagas | M19: TROCA | N19: 1
A20: Ivan Renault | L20: TROCA | N20: 1
A21: Jader Abreu | I21: TROCA | N21: 1
A22: Jarbas Reis | D22: TROCA | J22: TROCA | N22: 2
A23: Jorge Prado | N23: 0
A24: Leodegario Junior | N24: 0
A25: Lucio Chequer | K25: TROCA | N25: 1
A26: Luiz Otávio | N26: 0
A27: Marcelo Santiago | N27: 0
A28: Marcelo Sant'anna | B28: TROCA | N28: 1
A29: Marcelo Clemente | N29: 0
A30: SSSS | N30: 0
A31: Marcelo Junqueira | N31: 0
A32: SS | N32: 0
A33: Marcus Reis | N33: 0
A34: Maurílio Carmo | M34: TROCA | N34: 1
A35: Michel Abouud | N35: 0
A36: Morvan | I36: TROCA | N36: 1
A37: Ricardo Araújo | N37: 0
A38: Roberto Veloso | N38: 0
A39: Rodrigo Mercadante | C39: TROCA | N39: 1
A40: Rodrigo Rotheia | N40: 0
A41: SSSSSSS | N41: 0
N42: 0
N43: 0
N44: 0
N45: 0
N46: 0
N47: 0

Sheet PRESENÇAS
A1: PILOTO | B1: 1 ETAPA | C1: 2 ETAPA | D1: 3 ETAPA | E1: 4 ETAPA | F1: 5 ETAPA | G1: 6 ETAPA | H1: 7 ETAPA | I1: 8 ETAPA | J1: 9 ETAPA | K1: 10 ETAPA | L1: 11 ETAPA | M1: 12 ETAPA | N1: Faltou | O1: PUNIÇÕES
A2: Alexandre Melillo | B2: ok | C2: Faltou | D2: ok | E2: ok | F2: ok | G2: ok | H2: ok | I2: ok | J2: ok | K2: ok | L2: ok | M2: ok | N2: 1 | O2: 1
A3: Caetano | B3: Faltou | C3: ok | D3: Faltou | E3: ok | F3: ok | G3: Faltou | H3: Faltou | I3: Faltou | J3: Faltou | K3: Faltou | L3: Faltou | M3: Faltou | N3: 9 | O3: 1
A4: Carlos Eduardo | B4: ok | C4: ok | D4: ok | E4: ok | F4: ok | G4: ok | H4: Faltou | I4: ok | J4: ok | K4: ok | L4: ok | M4: ok | N4: 1 | O4: 1
A5: Carlos Filizolla | B5: ok | C5: ok | D5: Faltou | E5: ok | F5: Faltou | G5: Faltou | H5: Faltou | I5: ok | J5: ok | K5: Faltou | L5: Faltou | M5: Faltou | N5: 7 | O5: 0
A6: Carlos Sampaio | B6: ok | C6: ok | D6: ok | E6: ok | F6: ok | G6: ok | H6: ok | I6: ok | J6: ok | K6: ok | L6: ok | M6: ok | N6: 0 | O6: 0
A7: Claudio Junqueira | B7: ok | C7: ok | D7: ok | E7: ok | F7: ok | G7: ok | H7: ok | I7: ok | J7: ok | K7: ok | L7: ok | M7: Faltou | N7: 1 | O7: 1
A8: Cláudio Dumont | B8: ok | C8: ok | D8: Faltou | E8: ok | F8: ok | G8: Faltou | H8: Faltou | I8: Faltou | J8: Faltou | K8: Faltou | L8: Faltou | M8: Faltou | N8: 8 | O8: 0
A9: Cláudio Naves | B9: ok | C9: ok | D9: ok | E9: Faltou | F9: Faltou | G9: Faltou | H9: Faltou | I9: Faltou | J9: Faltou | K9: Faltou | L9: Faltou | M9: Faltou | N9: 9 | O9: 0
A10: Edson Ribeiro | B10: Faltou | C10: ok | D10: Faltou | E10: Faltou | F10: Faltou | G10: Faltou | H10: Faltou | I10: Faltou | J10: Faltou | K10: Faltou | L10: Faltou | M10: Faltou | N10: 11 | O10: 0
A11: Enio Júnior | B11: Faltou | C11: ok | D11: ok | E11: ok | F11: ok | G11: ok | H11: ok | I11: ok | J11: Faltou | K11: Faltou | L11: ok | M11: ok | N11: 3 | O11: 1
A12: Euclides Almeida | B12: Faltou | C12: ok | D12: Faltou | E12: ok | F12: ok | G12: ok | H12: ok | I12: ok | J12: ok | K12: ok | L12: ok | M12: Faltou | N12: 3 | O12: 1
A13: Fernando Lobo | B13: ok | C13: ok | D13: ok | E13: ok | F13: ok | G13: ok | H13: Faltou | I13: Faltou | J13: ok | K13: Faltou | L13: Faltou | M13: Faltou | N13: 5 | O13: 0
A14: Flávio Marques | B14: ok | C14: ok | D14: ok | E14: ok | F14: ok | G14: Faltou | H14: Faltou | I14: ok | J14: Faltou | K14: ok | L14: ok | M14: ok | N14: 3 | O14: 2
A15: Gijo | B15: Faltou | C15: ok | D15: ok | E15: ok | F15: ok | G15: ok | H15: ok | I15: Faltou | J15: Faltou | K15: Faltou | L15: ok | M15: Faltou | N15: 5 | O15: 1
A16: Guilherme Janot | B16: ok | C16: ok | D16: ok | E16: ok | F16: ok | G16: ok | H16: ok | I16: ok | J16: ok | K16: ok | L16: ok | M16: ok | N16: 0 | O16: 1
A17: Henrique Castilho | B17: Faltou | C17: Faltou | D17: Faltou | E17: Faltou | F17: Faltou | G17: Faltou | H17: Faltou | I17: Faltou | J17: Faltou | K17: Faltou | L17: Faltou | M17: Faltou | N17: 12 | O17: 0
A18: Hélio Chagas | B18: ok | C18: ok | D18: ok | E18: ok | F18: ok | G18: ok | H18: ok | I18: ok | J18: Faltou | K18: ok | L18: ok | M18: ok | N18: 1 | O18: 0
A19: Ivan Renault | B19: ok | C19: Faltou | D19: ok | E19: ok | F19: ok | G19: ok | H19: Faltou | I19: Faltou | J19: Faltou | K19: ok | L19: ok | M19: ok | N19: 4 | O19: 1
A20: Jader Abreu | B20: Faltou | C20: ok | D20: ok | E20: ok | F20: ok | G20: Faltou | H20: Faltou | I20: ok | J20: ok | K20: Faltou | L20: Faltou | M20: Faltou | N20: 6 | O20: 0
A21: Jarbas Reis | B21: ok | C21: ok | D21: ok | E21: ok | F21: ok | G21: ok | H21: ok | I21: ok | J21: ok | K21: ok | L21: ok | M21: ok | N21: 0 | O21: 0
A22: Jorge Prado | B22: Faltou | C22: Faltou | D22: Faltou | E22: ok | F22: Faltou | G22: Faltou | H22: Faltou | I22: Faltou | J22: Faltou | K22: ok | L22: Faltou | M22: ok | N22: 9 | O22: 1
A23: Leodegario Junior | B23: Faltou | C23: ok | D23: ok | E23: Faltou | F23: Faltou | G23: ok | H23: ok | I23: ok | J23: ok | K23: ok | L23: Faltou | M23: ok | N23: 4 | O23: 1
A24: Lucio Chequer | B24: ok | C24: ok | D24: ok | E24: ok | F24: Faltou | G24: ok | H24: ok | I24: ok | J24: ok | K24: ok | L24: ok | M24: ok | N24: 1 | O24: 1
A25: Luiz Otávio | B25: Faltou | C25: ok | D25: Faltou | E25: ok | F25: Faltou | G25: ok | H25: ok | I25: ok | J25: Faltou | K25: Faltou | L25: Faltou | M25: Faltou | N25: 7 | O25: 0
A26: Marcelo Santiago | B26: ok | C26: ok | D26: ok | E26: ok | F26: Faltou | G26: Faltou | H26: Faltou | I26: Faltou | J26: Faltou | K26: Faltou | L26: Faltou | M26: Faltou | N26: 8 | O26: 1
A27: Marcelo Sant'anna | B27: ok | C27: ok | D27: Faltou | E27: ok | F27: ok | G27: ok | H27: ok | I27: ok | J27: ok | K27: ok | L27: ok | M27: ok | N27: 1 | O27: 0
A28: Marcelo Clemente | B28: ok | C28: ok | D28: ok | E28: ok | F28: ok | G28: ok | H28: ok | I28: Faltou | J28: ok | K28: ok | L28: ok | M28: ok | N28: 1 | O28: 0
A29: SSSS | B29: Faltou | C29: Faltou | D29: Faltou | E29: Faltou | F29: Faltou | G29: Faltou | H29: Faltou | I29: Faltou | J29: Faltou | K29: Faltou | L29: Faltou | M29: Faltou | N29: 12 | O29: 0
A30: Marcelo Junqueira | B30: ok | C30: ok | D30: ok | E30: ok | F30: ok | G30: ok | H30: Faltou | I30: Faltou | J30: ok | K30: Faltou | L30: Faltou | M30: Faltou | N30: 5 | O30: 0
A31: SS | B31: Faltou | C31: Faltou | D31: Faltou | E31: Faltou | F31: Faltou | G31: Faltou | H31: Faltou | I31: Faltou | J31: Faltou | K31: Faltou | L31: Faltou | M31: Faltou | N31: 12 | O31: 0
A32: Marcus Reis | B32: Faltou | C32: Faltou | D32: Faltou | E32: Faltou | F32: Faltou | G32: Faltou | H32: Faltou | I32: Faltou | J32: Faltou | K32: Faltou | L32: Faltou | M32: Faltou | N32: 12 | O32: 0
A33: Maurílio Carmo | B33: Faltou | C33: Faltou | D33: ok | E33: Faltou | F33: ok | G33: ok | H33: ok | I33: ok | J33: ok | K33: ok | L33: ok | M33: ok | N33: 3 | O33: 0
A34: Michel Abouud | B34: Faltou | C34: ok | D34: Faltou | E34: ok | F34: Faltou | G34: ok | H34: ok | I34: ok | J34: Faltou | K34: Faltou | L34: ok | M34: Faltou | N34: 6 | O34: 1
A35: Morvan | B35: ok | C35: ok | D35: Faltou | E35: Faltou | F35: ok | G35: ok | H35: ok | I35: ok | J35: ok | K35: Faltou | L35: ok | M35: ok | N35: 3 | O35: 1
A36: Ricardo Araújo | B36: Faltou | C36: ok | D36: ok | E36: ok | F36: ok | G36: ok | H36: ok | I36: Faltou | J36: Faltou | K36: Faltou | L36: Faltou | M36: Faltou | N36: 6 | O36: 1
A37: Roberto Veloso | B37: Faltou | C37: Faltou | D37: ok | E37: Faltou | F37: ok | G37: ok | H37: Faltou | I37: ok | J37: ok | K37: Faltou | L37: Faltou | M37: Faltou | N37: 7 | O37: 0
A38: Rodrigo Mercadante | B38: ok | C38: ok | D38: ok | E38: ok | F38: ok | G38: ok | H38: ok | I38: ok | J38: ok | K38: Faltou | L38: ok | M38: ok | N38: 1 | O38: 0
A39: Rodrigo Rotheia | B39: ok | C39: ok | D39: ok | E39: ok | F39: ok | G39: ok | H39: Faltou | I39: Faltou | J39: Faltou | K39: Faltou | L39: Faltou | M39: Faltou | N39: 6 | O39: 0
A40: SSSSSSS | B40: Faltou | C40: Faltou | D40: Faltou | E40: Faltou | F40: Faltou | G40: Faltou | H40: Faltou | I40: Faltou | J40: Faltou | K40: Faltou | L40: Faltou | M40: Faltou | N40: 12 | O40: 0
N41: 0 | O41: 0
N42: 0 | O42: 0
N43: 0 | O43: 0
N44: 0 | O44: 0
N45: 0 | O45: 0
N46: 0 | O46: 0

Sheet TABELA
A1: 2022 | E1: OK | I1: OK | M1: OK | Q1: OK | U1: OK | Y1: OK | AC1: OK | AG1: OK | AK1: OK | AO1: OK | AS1: OK | AW1: OK
D2: 1ª etapa | H2: 2ª etapa | L2: 3ª etapa | P2: 4ª etapa | T2: 5ª etapa | X2: 6ª etapa | AB2: 7ª etapa | AF2: 8ª etapa | AJ2: 9ª etapa | AN2: 10ª etapa | AR2: 11ª etapa | AV2: 12ª etapa
L3: 17/03/2022 - 20:30
B4: Nome do (a) Piloto (a) | C4: Pontuação Geral | D4: Posição | E4: Pontos | F4: Bônus | G4: Penalidade | H4: Posição | I4: Pontos | J4: Bônus | K4: Penalidade | L4: Posição | M4: Pontos | N4: Bônus | O4: Penalidade | P4: Posição | Q4: Pontos | R4: Bônus | S4: Penalidade | T4: Posição | U4: Pontos | V4: Bônus | W4: Penalidade | X4: Posição | Y4: Pontos | Z4: Bônus | AA4: Penalidade | AB4: Posição | AC4: Pontos | AD4: Bônus | AE4: Penalidade | AF4: Posição | AG4: Pontos | AH4: Bônus | AI4: Penalidade | AJ4: Posição | AK4: Pontos | AL4: Bônus | AM4: Penalidade | AN4: Posição | AO4: Pontos | AP4: Bônus | AQ4: Penalidade | AR4: Posição | AS4: Pontos | AT4: Bônus | AU4: Penalidade | AV4: Posição | AW4: Pontos | AX4: Bônus | AY4: Penalidade | AZ4: 1º LUGAR | BA4: 2º LUGAR | BB4: 3º LUGAR | BC4: 4º LUGAR | BD4: 5º LUGAR | BE4: 6º LUGAR | BF4: 7º LUGAR | BG4: 8º LUGAR | BH4: 9º LUGAR | BI4: 10º LUGAR | BJ4: 11º LUGAR | BK4: 12º LUGAR | BL4: 13º LUGAR | BM4: 14º LUGAR | BN4: 15º LUGAR | BO4: 16º LUGAR | BP4: 17º LUGAR | BQ4: 18º LUGAR | BR4: 19º LUGAR | BS4: 20º LUGAR | BT4: 21º LUGAR | BU4: 22º LUGAR | BV4: 23º LUGAR | BW4: 24º LUGAR | BX4: 25º LUGAR | BY4: 26º LUGAR | BZ4: 27º LUGAR | CA4: 28º LUGAR | CB4: 29º LUGAR | CC4: 30º LUGAR | CD4: 31º LUGAR | CE4: 32º LUGAR | CF4: 33º LUGAR | CG4: 34º LUGAR | CH4: 35º LUGAR | CI4: 36º LUGAR | CJ4: 37º LUGAR | CK4: 38º LUGAR | CL4: 39º LUGAR | CM4: 40º LUGAR | CN4: 41º LUGAR
A5: 1 | B5: Alexandre Melillo | C5: 382 | D5: 19 | E5: 12 | I5: 0 | L5: 1 | M5: 45 | P5: 12 | Q5: 20 | T5: 1 | U5: 45 | V5: 1 | X5: 5 | Y5: 34 | AB5: 4 | AC5: 36 | AD5: 1 | AF5: 4 | AG5: 36 | AH5: 1 | AJ5: 1 | AK5: 45 | AN5: 13 | AO5: 18 | AQ5: SIM | AR5: 2 | AS5: 41 | AT5: 1 | AV5: 1 | AW5: 45 | AX5: 1 | AZ5: 4 | BA5: 1 | BB5: 0 | BC5: 2 | BD5: 1 | BE5: 0 | BF5: 0 | BG5: 0 | BH5: 0 | BI5: 0 | BJ5: 0 | BK5: 1 | BL5: 1 | BM5: 0 | BN5: 0 | BO5: 0 | BP5: 0 | BQ5: 0 | BR5: 1 | BS5: 0 | BT5: 0 | BU5: 0 | BV5: 0 | BW5: 0 | BX5: 0 | BY5: 0 | BZ5: 0 | CA5: 0 | CB5: 0 | CC5: 0 | CD5: 0 | CE5: 0 | CF5: 0 | CG5: 0 | CH5: 0 | CI5: 0 | CJ5: 0 | CK5: 0 | CL5: 0 | CM5: 0 | CN5: 0
A6: 2 | B6: Caetano | C6: 2 | E6: 0 | G6: -5 | H6: 0 | I6: 0 | K6: SIM | M6: 0 | P6: 17 | Q6: 14 | T6: 8 | U6: 28 | Y6: 0 | AA6: -5 | AC6: 0 | AE6: -5 | AG6: 0 | AI6: -5 | AK6: 0 | AM6: -5 | AO6: 0 | AQ6: -5 | AS6: 0 | AU6: -5 | AW6: 0 | AY6: -5 | AZ6: 0 | BA6: 0 | BB6: 0 | BC6: 0 | BD6: 0 | BE6: 0 | BF6: 0 | BG6: 1 | BH6: 0 | BI6: 0 | BJ6: 0 | BK6: 0 | BL6: 0 | BM6: 0 | BN6: 0 | BO6: 0 | BP6: 1 | BQ6: 0 | BR6: 0 | BS6: 0 | BT6: 0 | BU6: 0 | BV6: 0 | BW6: 0 | BX6: 0 | BY6: 0 | BZ6: 0 | CA6: 0 | CB6: 0 | CC6: 0 | CD6: 0 | CE6: 0 | CF6: 0 | CG6: 0 | CH6: 0 | CI6: 0 | CJ6: 0 | CK6: 0 | CL6: 0 | CM6: 0 | CN6: 0
A7: 3 | B7: Carlos Eduardo | C7: 248 | D7: 23 | E7: 8 | H7: 4 | I7: 36 | L7: 27 | M7: 4 | P7: 10 | Q7: 24 | T7: 3 | U7: 38 | X7: 13 | Y7: 18 | AC7: 0 | AF7: 31 | AG7: 1 | AI7: SIM | AJ7: 2 | AK7: 41 | AL7: 1 | AN7: 14 | AO7: 17 | AR7: 5 | AS7: 34 | AV7: 9 | AW7: 26 | AZ7: 0 | BA7: 1 | BB7: 1 | BC7: 1 | BD7: 1 | BE7: 0 | BF7: 0 | BG7: 0 | BH7: 1 | BI7: 1 | BJ7: 0 | BK7: 0 | BL7: 1 | BM7: 1 | BN7: 0 | BO7: 0 | BP7: 0 | BQ7: 0 | BR7: 0 | BS7: 0 | BT7: 0 | BU7: 0 | BV7: 1 | BW7: 0 | BX7: 0 | BY7: 0 | BZ7: 1 | CA7: 0 | CB7: 0 | CC7: 0 | CD7: 1 | CE7: 0 | CF7: 0 | CG7: 0 | CH7: 0 | CI7: 0 | CJ7: 0 | CK7: 0 | CL7: 0 | CM7: 0 | CN7: 0
A8: 4 | B8: Carlos Filizolla | C8: 45 | D8: 13 | E8: 18 | H8: 29 | I8: 2 | M8: 0 | P8: 24 | Q8: 7 | U8: 0 | Y8: 0 | AC8: 0 | AE8: -5 | AF8: 16 | AG8: 15 | AJ8: 18 | AK8: 13 | AO8: 0 | AS8: 0 | AW8: 0 | AY8: -5 | AZ8: 0 | BA8: 0 | BB8: 0 | BC8: 0 | BD8: 0 | BE8: 0 | BF8: 0 | BG8: 0 | BH8: 0 | BI8: 0 | BJ8: 0 | BK8: 0 | BL8: 1 | BM8: 0 | BN8: 0 | BO8: 1 | BP8: 0 | BQ8: 1 | BR8: 0 | BS8: 0 | BT8: 0 | BU8: 0 | BV8: 0 | BW8: 1 | BX8: 0 | BY8: 0 | BZ8: 0 | CA8: 0 | CB8: 1 | CC8: 0 | CD8: 0 | CE8: 0 | CF8: 0 | CG8: 0 | CH8: 0 | CI8: 0 | CJ8: 0 | CK8: 0 | CL8: 0 | CM8: 0 | CN8: 0
A9: 5 | B9: Carlos Sampaio | C9: 293 | D9: 14 | E9: 17 | H9: 17 | I9: 14 | L9: 9 | M9: 26 | P9: 19 | Q9: 12 | T9: 15 | U9: 16 | X9: 15 | Y9: 16 | AB9: 5 | AC9: 34 | AF9: 3 | AG9: 38 | AJ9: 6 | AK9: 32 | AN9: 5 | AO9: 34 | AR9: 9 | AS9: 26 | AV9: 8 | AW9: 28 | AZ9: 0 | BA9: 0 | BB9: 1 | BC9: 0 | BD9: 2 | BE9: 1 | BF9: 0 | BG9: 1 | BH9: 2 | BI9: 0 | BJ9: 0 | BK9: 0 | BL9: 0 | BM9: 1 | BN9: 2 | BO9: 0 | BP9: 1 | BQ9: 0 | BR9: 1 | BS9: 0 | BT9: 0 | BU9: 0 | BV9: 0 | BW9: 0 | BX9: 0 | BY9: 0 | BZ9: 0 | CA9: 0 | CB9: 0 | CC9: 0 | CD9: 0 | CE9: 0 | CF9: 0 | CG9: 0 | CH9: 0 | CI9: 0 | CJ9: 0 | CK9: 0 | CL9: 0 | CM9: 0 | CN9: 0
A10: 6 | B10: Claudio Junqueira | C10: 291 | D10: 9 | E10: 26 | H10: 19 | I10: 12 | L10: 3 | M10: 38 | P10: 5 | Q10: 34 | T10: 21 | U10: 10 | W10: SIM | X10: 9 | Y10: 26 | AB10: 3 | AC10: 38 | AF10: 7 | AG10: 30 | AJ10: 4 | AK10: 36 | AN10: 15 | AO10: 16 | AR10: 7 | AS10: 30 | AW10: 0 | AY10: -5 | AZ10: 0 | BA10: 0 | BB10: 2 | BC10: 1 | BD10: 1 | BE10: 0 | BF10: 2 | BG10: 0 | BH10: 2 | BI10: 0 | BJ10: 0 | BK10: 0 | BL10: 0 | BM10: 0 | BN10: 1 | BO10: 0 | BP10: 0 | BQ10: 0 | BR10: 1 | BS10: 0 | BT10: 1 | BU10: 0 | BV10: 0 | BW10: 0 | BX10: 0 | BY10: 0 | BZ10: 0 | CA10: 0 | CB10: 0 | CC10: 0 | CD10: 0 | CE10: 0 | CF10: 0 | CG10: 0 | CH10: 0 | CI10: 0 | CJ10: 0 | CK10: 0 | CL10: 0 | CM10: 0 | CN10: 0
A11: 7 | B11: Cláudio Dumont | C11: 96 | D11: 5 | E11: 34 | H11: 1 | I11: 45 | M11: 0 | P11: 2 | Q11: 41 | T11: 20 | U11: 11 | Y11: 0 | AA11: -5 | AC11: 0 | AE11: -5 | AG11: 0 | AI11: -5 | AK11: 0 | AM11: -5 | AO11: 0 | AQ11: -5 | AS11: 0 | AU11: -5 | AW11: 0 | AY11: -5 | AZ11: 1 | BA11: 1 | BB11: 0 | BC11: 0 | BD11: 1 | BE11: 0 | BF11: 0 | BG11: 0 | BH11: 0 | BI11: 0 | BJ11: 0 | BK11: 0 | BL11: 0 | BM11: 0 | BN11: 0 | BO11: 0 | BP11: 0 | BQ11: 0 | BR11: 0 | BS11: 1 | BT11: 0 | BU11: 0 | BV11: 0 | BW11: 0 | BX11: 0 | BY11: 0 | BZ11: 0 | CA11: 0 | CB11: 0 | CC11: 0 | CD11: 0 | CE11: 0 | CF11: 0 | CG11: 0 | CH11: 0 | CI11: 0 | CJ11: 0 | CK11: 0 | CL11: 0 | CM11: 0 | CN11: 0
A12: 8 | B12: Cláudio Naves | C12: 22 | D12: 18 | E12: 13 | H12: 28 | I12: 3 | L12: 25 | M12: 6 | Q12: 0 | U12: 0 | Y12: 0 | AC12: 0 | AG12: 0 | AK12: 0 | AO12: 0 | AS12: 0 | AW12: 0 | AZ12: 0 | BA12: 0 | BB12: 0 | BC12: 0 | BD12: 0 | BE12: 0 | BF12: 0 | BG12: 0 | BH12: 0 | BI12: 0 | BJ12: 0 | BK12: 0 | BL12: 0 | BM12: 0 | BN12: 0 | BO12: 0 | BP12: 0 | BQ12: 1 | BR12: 0 | BS12: 0 | BT12: 0 | BU12: 0 | BV12: 0 | BW12: 0 | BX12: 1 | BY12: 0 | BZ12: 0 | CA12: 1 | CB12: 0 | CC12: 0 | CD12: 0 | CE12: 0 | CF12: 0 | CG12: 0 | CH12: 0 | CI12: 0 | CJ12: 0 | CK12: 0 | CL12: 0 | CM12: 0 | CN12: 0
A13: 9 | B13: Edson Ribeiro | C13: 0 | E13: 0 | G13: -5 | H13: 25 | I13: 6 | M13: 0 | O13: -5 | Q13: 0 | S13: -5 | U13: 0 | W13: -5 | Y13: 0 | AA13: -5 | AC13: 0 | AE13: -5 | AG13: 0 | AI13: -5 | AK13: 0 | AM13: -5 | AO13: 0 | AQ13: -5 | AS13: 0 | AU13: -5 | AW13: 0 | AY13: -5 | AZ13: 0 | BA13: 0 | BB13: 0 | BC13: 0 | BD13: 0 | BE13: 0 | BF13: 0 | BG13: 0 | BH13: 0 | BI13: 0 | BJ13: 0 | BK13: 0 | BL13: 0 | BM13: 0 | BN13: 0 | BO13: 0 | BP13: 0 | BQ13: 0 | BR13: 0 | BS13: 0 | BT13: 0 | BU13: 0 | BV13: 0 | BW13: 0 | BX13: 1 | BY13: 0 | BZ13: 0 | CA13: 0 | CB13: 0 | CC13: 0 | CD13: 0 | CE13: 0 | CF13: 0 | CG13: 0 | CH13: 0 | CI13: 0 | CJ13: 0 | CK13: 0 | CL13: 0 | CM13: 0 | CN13: 0
A14: 10 | B14: Enio Júnior | C14: 137 | E14: 0 | H14: 24 | I14: 7 | L14: 15 | M14: 16 | P14: 18 | Q14: 13 | T14: 14 | U14: 17 | X14: 26 | Y14: 5 | AB14: 8 | AC14: 28 | AF14: 19 | AG14: 12 | AI14: SIM | AK14: 0 | AM14: -5 | AO14: 0 | AR14: 11 | AS14: 22 | AV14: 11 | AW14: 22 | AZ14: 0 | BA14: 0 | BB14: 0 | BC14: 0 | BD14: 0 | BE14: 0 | BF14: 0 | BG14: 1 | BH14: 0 | BI14: 0 | BJ14: 2 | BK14: 0 | BL14: 0 | BM14: 1 | BN14: 1 | BO14: 0 | BP14: 0 | BQ14: 1 | BR14: 1 | BS14: 0 | BT14: 0 | BU14: 0 | BV14: 0 | BW14: 1 | BX14: 0 | BY14: 1 | BZ14: 0 | CA14: 0 | CB14: 0 | CC14: 0 | CD14: 0 | CE14: 0 | CF14: 0 | CG14: 0 | CH14: 0 | CI14: 0 | CJ14: 0 | CK14: 0 | CL14: 0 | CM14: 0 | CN14: 0
A15: 11 | B15: Euclides Almeida | C15: 182 | E15: 0 | H15: 18 | I15: 13 | M15: 0 | P15: 20 | Q15: 11 | T15: 11 | U15: 22 | X15: 20 | Y15: 11 | AB15: 9 | AC15: 26 | AE15: SIM | AF15: 9 | AG15: 26 | AJ15: 13 | AK15: 18 | AN15: 3 | AO15: 38 | AR15: 14 | AS15: 17 | AW15: 0 | AZ15: 0 | BA15: 0 | BB15: 1 | BC15: 0 | BD15: 0 | BE15: 0 | BF15: 0 | BG15: 0 | BH15: 2 | BI15: 0 | BJ15: 1 | BK15: 0 | BL15: 1 | BM15: 1 | BN15: 0 | BO15: 0 | BP15: 0 | BQ15: 1 | BR15: 0 | BS15: 2 | BT15: 0 | BU15: 0 | BV15: 0 | BW15: 0 | BX15: 0 | BY15: 0 | BZ15: 0 | CA15: 0 | CB15: 0 | CC15: 0 | CD15: 0 | CE15: 0 | CF15: 0 | CG15: 0 | CH15: 0 | CI15: 0 | CJ15: 0 | CK15: 0 | CL15: 0 | CM15: 0 | CN15: 0
A16: 12 | B16: Fernando Lobo | C16: 93 | D16: 20 | E16: 11 | H16: 12 | I16: 20 | L16: 26 | M16: 5 | P16: 8 | Q16: 28 | T16: 24 | U16: 7 | X16: 16 | Y16: 15 | AC16: 0 | AG16: 0 | AI16: -5 | AJ16: 11 | AK16: 22 | AM16: -5 | AO16: 0 | AS16: 0 | AU16: -5 | AW16: 0 | AZ16: 0 | BA16: 0 | BB16: 0 | BC16: 0 | BD16: 0 | BE16: 0 | BF16: 0 | BG16: 1 | BH16: 0 | BI16: 0 | BJ16: 1 | BK16: 1 | BL16: 0 | BM16: 0 | BN16: 0 | BO16: 1 | BP16: 0 | BQ16: 0 | BR16: 0 | BS16: 1 | BT16: 0 | BU16: 0 | BV16: 0 | BW16: 1 | BX16: 0 | BY16: 1 | BZ16: 0 | CA16: 0 | CB16: 0 | CC16: 0 | CD16: 0 | CE16: 0 | CF16: 0 | CG16: 0 | CH16: 0 | CI16: 0 | CJ16: 0 | CK16: 0 | CL16: 0 | CM16: 0 | CN16: 0
A17: 13 | B17: Flávio Marques | C17: 71 | D17: 16 | E17: 15 | H17: 30 | I17: 1 | L17: 24 | M17: 7 | P17: 21 | Q17: 10 | T17: 30 | U17: 1 | W17: SIM | Y17: 0 | AA17: -5 | AC17: 0 | AF17: 15 | AG17: 16 | AK17: 0 | AM17: -5 | AN17: 34 | AO17: 1 | AQ17: SIM | AR17: 19 | AS17: 12 | AV17: 13 | AW17: 18 | AZ17: 0 | BA17: 0 | BB17: 0 | BC17: 0 | BD17: 0 | BE17: 0 | BF17: 0 | BG17: 0 | BH17: 0 | BI17: 0 | BJ17: 0 | BK17: 0 | BL17: 1 | BM17: 0 | BN17: 1 | BO17: 1 | BP17: 0 | BQ17: 0 | BR17: 1 | BS17: 0 | BT17: 1 | BU17: 0 | BV17: 0 | BW17: 1 | BX17: 0 | BY17: 0 | BZ17: 0 | CA17: 0 | CB17: 0 | CC17: 2 | CD17: 0 | CE17: 0 | CF17: 0 | CG17: 1 | CH17: 0 | CI17: 0 | CJ17: 0 | CK17: 0 | CL17: 0 | CM17: 0 | CN17: 0
A18: 14 | B18: Gijo | C18: 115 | E18: 0 | G18: -5 | H18: 20 | I18: 11 | K18: SIM | L18: 14 | M18: 17 | P18: 16 | Q18: 15 | T18: 6 | U18: 32 | X18: 7 | Y18: 30 | AB18: 10 | AC18: 24 | AG18: 0 | AI18: -5 | AK18: 0 | AM18: -5 | AO18: 0 | AQ18: -5 | AR18: 15 | AS18: 16 | AU18: -5 | AW18: 0 | AY18: -5 | AZ18: 0 | BA18: 0 | BB18: 0 | BC18: 0 | BD18: 0 | BE18: 1 | BF18: 1 | BG18: 0 | BH18: 0 | BI18: 1 | BJ18: 0 | BK18: 0 | BL18: 0 | BM18: 1 | BN18: 1 | BO18: 1 | BP18: 0 | BQ18: 0 | BR18: 0 | BS18: 1 | BT18: 0 | BU18: 0 | BV18: 0 | BW18: 0 | BX18: 0 | BY18: 0 | BZ18: 0 | CA18: 0 | CB18: 0 | CC18: 0 | CD18: 0 | CE18: 0 | CF18: 0 | CG18: 0 | CH18: 0 | CI18: 0 | CJ18: 0 | CK18: 0 | CL18: 0 | CM18: 0 | CN18: 0
A19: 15 | B19: Guilherme Janot | C19: 378 | D19: 2 | E19: 41 | H19: 7 | I19: 30 | L19: 11 | M19: 22 | P19: 14 | Q19: 17 | T19: 18 | U19: 13 | X19: 3 | Y19: 38 | AB19: 6 | AC19: 32 | AF19: 1 | AG19: 45 | AJ19: 3 | AK19: 38 | AN19: 2 | AO19: 41 | AR19: 12 | AS19: 20 | AU19: SIM | AV19: 2 | AW19: 41 | AZ19: 1 | BA19: 3 | BB19: 2 | BC19: 0 | BD19: 0 | BE19: 1 | BF19: 1 | BG19: 0 | BH19: 0 | BI19: 0 | BJ19: 1 | BK19: 1 | BL19: 0 | BM19: 1 | BN19: 0 | BO19: 0 | BP19: 0 | BQ19: 1 | BR19: 0 | BS19: 0 | BT19: 0 | BU19: 0 | BV19: 0 | BW19: 0 | BX19: 0 | BY19: 0 | BZ19: 0 | CA19: 0 | CB19: 0 | CC19: 0 | CD19: 0 | CE19: 0 | CF19: 0 | CG19: 0 | CH19: 0 | CI19: 0 | CJ19: 0 | CK19: 0 | CL19: 0 | CM19: 0 | CN19: 0
A20: 16 | B20: Henrique Castilho | C20: 0 | E20: 0 | G20: -5 | I20: 0 | K20: -5 | M20: 0 | O20: -5 | Q20: 0 | S20: -5 | U20: 0 | W20: -5 | Y20: 0 | AA20: -5 | AC20: 0 | AE20: -5 | AG20: 0 | AK20: 0 | AM20: -5 | AO20: 0 | AQ20: -5 | AS20: 0 | AW20: 0 | AY20: -5 | AZ20: 0 | BA20: 0 | BB20: 0 | BC20: 0 | BD20: 0 | BE20: 0 | BF20: 0 | BG20: 0 | BH20: 0 | BI20: 0 | BJ20: 0 | BK20: 0 | BL20: 0 | BM20: 0 | BN20: 0 | BO20: 0 | BP20: 0 | BQ20: 0 | BR20: 0 | BS20: 0 | BT20: 0 | BU20: 0 | BV20: 0 | BW20: 0 | BX20: 0 | BY20: 0 | BZ20: 0 | CA20: 0 | CB20: 0 | CC20: 0 | CD20: 0 | CE20: 0 | CF20: 0 | CG20: 0 | CH20: 0 | CI20: 0 | CJ20: 0 | CK20: 0 | CL20: 0 | CM20: 0 | CN20: 0
A21: 17 | B21: Hélio Chagas | C21: 151 | D21: 21 | E21: 10 | H21: 27 | I21: 4 | L21: 22 | M21: 9 | P21: 26 | Q21: 5 | T21: 12 | U21: 20 | X21: 23 | Y21: 8 | AB21: 12 | AC21: 20 | AF21: 18 | AG21: 13 | AK21: 0 | AN21: 11 | AO21: 22 | AR21: 10 | AS21: 24 | AV21: 15 | AW21: 16 | AZ21: 0 | BA21: 0 | BB21: 0 | BC21: 0 | BD21: 0 | BE21: 0 | BF21: 0 | BG21: 0 | BH21: 0 | BI21: 1 | BJ21: 1 | BK21: 2 | BL21: 0 | BM21: 0 | BN21: 1 | BO21: 0 | BP21: 0 | BQ21: 1 | BR21: 0 | BS21: 0 | BT21: 1 | BU21: 1 | BV21: 1 | BW21: 0 | BX21: 0 | BY21: 1 | BZ21: 1 | CA21: 0 | CB21: 0 | CC21: 0 | CD21: 0 | CE21: 0 | CF21: 0 | CG21: 0 | CH21: 0 | CI21: 0 | CJ21: 0 | CK21: 0 | CL21: 0 | CM21: 0 | CN21: 0
A22: 18 | B22: Ivan Renault | C22: 127 | D22: 22 | E22: 9 | I22: 0 | L22: 23 | M22: 8 | P22: 25 | Q22: 6 | T22: 17 | U22: 14 | X22: 24 | Y22: 7 | AA22: SIM | AC22: 0 | AG22: 0 | AI22: -5 | AK22: 0 | AN22: 7 | AO22: 30 | AR22: 8 | AS22: 28 | AV22: 7 | AW22: 30 | AZ22: 0 | BA22: 0 | BB22: 0 | BC22: 0 | BD22: 0 | BE22: 0 | BF22: 2 | BG22: 1 | BH22: 0 | BI22: 0 | BJ22: 0 | BK22: 0 | BL22: 0 | BM22: 0 | BN22: 0 | BO22: 0 | BP22: 1 | BQ22: 0 | BR22: 0 | BS22: 0 | BT22: 0 | BU22: 1 | BV22: 1 | BW22: 1 | BX22: 1 | BY22: 0 | BZ22: 0 | CA22: 0 | CB22: 0 | CC22: 0 | CD22: 0 | CE22: 0 | CF22: 0 | CG22: 0 | CH22: 0 | CI22: 0 | CJ22: 0 | CK22: 0 | CL22: 0 | CM22: 0 | CN22: 0
A23: 19 | B23: Jader Abreu | C23: 60 | E23: 0 | H23: 21 | I23: 10 | L23: 17 | M23: 14 | P23: 22 | Q23: 9 | S23: -5 | T23: 25 | U23: 6 | Y23: 0 | AC23: 0 | AF23: 17 | AG23: 14 | AJ23: 14 | AK23: 17 | AO23: 0 | AS23: 0 | AW23: 0 | AY23: -5 | AZ23: 0 | BA23: 0 | BB23: 0 | BC23: 0 | BD23: 0 | BE23: 0 | BF23: 0 | BG23: 0 | BH23: 0 | BI23: 0 | BJ23: 0 | BK23: 0 | BL23: 0 | BM23: 1 | BN23: 0 | BO23: 0 | BP23: 2 | BQ23: 0 | BR23: 0 | BS23: 0 | BT23: 1 | BU23: 1 | BV23: 0 | BW23: 0 | BX23: 1 | BY23: 0 | BZ23: 0 | CA23: 0 | CB23: 0 | CC23: 0 | CD23: 0 | CE23: 0 | CF23: 0 | CG23: 0 | CH23: 0 | CI23: 0 | CJ23: 0 | CK23: 0 | CL23: 0 | CM23: 0 | CN23: 0
A24: 20 | B24: Jarbas Reis | C24: 334 | D24: 8 | E24: 28 | H24: 8 | I24: 28 | L24: 2 | M24: 41 | P24: 3 | Q24: 38 | T24: 16 | U24: 15 | X24: 10 | Y24: 24 | AB24: 7 | AC24: 30 | AF24: 13 | AG24: 18 | AJ24: 19 | AK24: 12 | AN24: 8 | AO24: 28 | AR24: 3 | AS24: 38 | AV24: 5 | AW24: 34 | AZ24: 0 | BA24: 1 | BB24: 2 | BC24: 0 | BD24: 1 | BE24: 0 | BF24: 1 | BG24: 3 | BH24: 0 | BI24: 1 | BJ24: 0 | BK24: 0 | BL24: 1 | BM24: 0 | BN24: 0 | BO24: 1 | BP24: 0 | BQ24: 0 | BR24: 1 | BS24: 0 | BT24: 0 | BU24: 0 | BV24: 0 | BW24: 0 | BX24: 0 | BY24: 0 | BZ24: 0 | CA24: 0 | CB24: 0 | CC24: 0 | CD24: 0 | CE24: 0 | CF24: 0 | CG24: 0 | CH24: 0 | CI24: 0 | CJ24: 0 | CK24: 0 | CL24: 0 | CM24: 0 | CN24: 0
A25: 21 | B25: Jorge Prado | C25: 23 | E25: 0 | I25: 0 | M25: 0 | O25: -5 | P25: 23 | Q25: 8 | U25: 0 | W25: -5 | Y25: 0 | AC25: 0 | AG25: 0 | AI25: -5 | AK25: 0 | AM25: -5 | AN25: 10 | AO25: 24 | AS25: 0 | AV25: 20 | AW25: 11 | AY25: SIM | AZ25: 0 | BA25: 0 | BB25: 0 | BC25: 0 | BD25: 0 | BE25: 0 | BF25: 0 | BG25: 0 | BH25: 0 | BI25: 1 | BJ25: 0 | BK25: 0 | BL25: 0 | BM25: 0 | BN25: 0 | BO25: 0 | BP25: 0 | BQ25: 0 | BR25: 0 | BS25: 1 | BT25: 0 | BU25: 0 | BV25: 1 | BW25: 0 | BX25: 0 | BY25: 0 | BZ25: 0 | CA25: 0 | CB25: 0 | CC25: 0 | CD25: 0 | CE25: 0 | CF25: 0 | CG25: 0 | CH25: 0 | CI25: 0 | CJ25: 0 | CK25: 0 | CL25: 0 | CM25: 0 | CN25: 0
A26: 22 | B26: Leodegario Junior | C26: 97 | E26: 0 | G26: -5 | H26: 15 | I26: 16 | L26: 21 | M26: 10 | Q26: 0 | S26: -5 | U26: 0 | W26: -5 | X26: 21 | Y26: 10 | AB26: 28 | AC26: 3 | AE26: SIM | AF26: 14 | AG26: 17 | AJ26: 10 | AK26: 24 | AN26: 12 | AO26: 20 | AS26: 0 | AU26: -5 | AV26: 14 | AW26: 17 | AZ26: 0 | BA26: 0 | BB26: 0 | BC26: 0 | BD26: 0 | BE26: 0 | BF26: 0 | BG26: 0 | BH26: 0 | BI26: 1 | BJ26: 0 | BK26: 1 | BL26: 0 | BM26: 2 | BN26: 1 | BO26: 0 | BP26: 0 | BQ26: 0 | BR26: 0 | BS26: 0 | BT26: 2 | BU26: 0 | BV26: 0 | BW26: 0 | BX26: 0 | BY26: 0 | BZ26: 0 | CA26: 1 | CB26: 0 | CC26: 0 | CD26: 0 | CE26: 0 | CF26: 0 | CG26: 0 | CH26: 0 | CI26: 0 | CJ26: 0 | CK26: 0 | CL26: 0 | CM26: 0 | CN26: 0
A27: 23 | B27: Lucio Chequer | C27: 267 | D27: 10 | E27: 24 | H27: 9 | I27: 26 | L27: 7 | M27: 30 | P27: 6 | Q27: 32 | U27: 0 | X27: 27 | Y27: 4 | AB27: 18 | AC27: 13 | AE27: SIM | AF27: 5 | AG27: 34 | AJ27: 9 | AK27: 26 | AN27: 6 | AO27: 32 | AR27: 17 | AS27: 14 | AV27: 6 | AW27: 32 | AZ27: 0 | BA27: 0 | BB27: 0 | BC27: 0 | BD27: 1 | BE27: 3 | BF27: 1 | BG27: 0 | BH27: 2 | BI27: 1 | BJ27: 0 | BK27: 0 | BL27: 0 | BM27: 0 | BN27: 0 | BO27: 0 | BP27: 1 | BQ27: 1 | BR27: 0 | BS27: 0 | BT27: 0 | BU27: 0 | BV27: 0 | BW27: 0 | BX27: 0 | BY27: 0 | BZ27: 1 | CA27: 0 | CB27: 0 | CC27: 0 | CD27: 0 | CE27: 0 | CF27: 0 | CG27: 0 | CH27: 0 | CI27: 0 | CJ27: 0 | CK27: 0 | CL27: 0 | CM27: 0 | CN27: 0
A28: 24 | B28: Luiz Otávio | C28: 31 | E28: 0 | G28: -5 | H28: 26 | I28: 5 | M28: 0 | O28: -5 | P28: 27 | Q28: 4 | U28: 0 | W28: -5 | X28: 17 | Y28: 14 | AB28: 14 | AC28: 17 | AF28: 20 | AG28: 11 | AK28: 0 | AO28: 0 | AS28: 0 | AW28: 0 | AY28: -5 | AZ28: 0 | BA28: 0 | BB28: 0 | BC28: 0 | BD28: 0 | BE28: 0 | BF28: 0 | BG28: 0 | BH28: 0 | BI28: 0 | BJ28: 0 | BK28: 0 | BL28: 0 | BM28: 1 | BN28: 0 | BO28: 0 | BP28: 1 | BQ28: 0 | BR28: 0 | BS28: 1 | BT28: 0 | BU28: 0 | BV28: 0 | BW28: 0 | BX28: 0 | BY28: 1 | BZ28: 1 | CA28: 0 | CB28: 0 | CC28: 0 | CD28: 0 | CE28: 0 | CF28: 0 | CG28: 0 | CH28: 0 | CI28: 0 | CJ28: 0 | CK28: 0 | CL28: 0 | CM28: 0 | CN28: 0
A29: 25 | B29: Marcelo Santiago | C29: 33 | D29: 15 | E29: 16 | H29: 22 | I29: 9 | L29: 19 | M29: 12 | P29: 37 | Q29: 1 | S29: SIM | U29: 0 | Y29: 0 | AC29: 0 | AG29: 0 | AK29: 0 | AO29: 0 | AQ29: -5 | AS29: 0 | AW29: 0 | AZ29: 0 | BA29: 0 | BB29: 0 | BC29: 0 | BD29: 0 | BE29: 0 | BF29: 0 | BG29: 0 | BH29: 0 | BI29: 0 | BJ29: 0 | BK29: 0 | BL29: 0 | BM29: 0 | BN29: 1 | BO29: 0 | BP29: 0 | BQ29: 0 | BR29: 1 | BS29: 0 | BT29: 0 | BU29: 1 | BV29: 0 | BW29: 0 | BX29: 0 | BY29: 0 | BZ29: 0 | CA29: 0 | CB29: 0 | CC29: 0 | CD29: 0 | CE29: 0 | CF29: 0 | CG29: 0 | CH29: 0 | CI29: 0 | CJ29: 1 | CK29: 0 | CL29: 0 | CM29: 0 | CN29: 0
A30: 26 | B30: Marcelo Sant'anna | C30: 346 | D30: 3 | E30: 38 | H30: 5 | I30: 34 | M30: 0 | P30: 15 | Q30: 16 | T30: 4 | U30: 36 | X30: 8 | Y30: 28 | AB30: 2 | AC30: 41 | AF30: 8 | AG30: 28 | AJ30: 16 | AK30: 15 | AN30: 4 | AO30: 36 | AR30: 4 | AS30: 36 | AV30: 3 | AW30: 38 | AZ30: 0 | BA30: 1 | BB30: 2 | BC30: 3 | BD30: 1 | BE30: 0 | BF30: 0 | BG30: 2 | BH30: 0 | BI30: 0 | BJ30: 0 | BK30: 0 | BL30: 0 | BM30: 0 | BN30: 1 | BO30: 1 | BP30: 0 | BQ30: 0 | BR30: 0 | BS30: 0 | BT30: 0 | BU30: 0 | BV30: 0 | BW30: 0 | BX30: 0 | BY30: 0 | BZ30: 0 | CA30: 0 | CB30: 0 | CC30: 0 | CD30: 0 | CE30: 0 | CF30: 0 | CG30: 0 | CH30: 0 | CI30: 0 | CJ30: 0 | CK30: 0 | CL30: 0 | CM30: 0 | CN30: 0
A31: 27 | B31: Marcelo Clemente | C31: 406 | D31: 1 | E31: 45 | F31: 1 | H31: 2 | I31: 41 | L31: 5 | M31: 34 | N31: 1 | P31: 1 | Q31: 45 | R31: 1 | T31: 22 | U31: 9 | X31: 2 | Y31: 41 | Z31: 1 | AB31: 1 | AC31: 45 | AG31: 0 | AJ31: 8 | AK31: 28 | AN31: 1 | AO31: 45 | AR31: 1 | AS31: 45 | AV31: 10 | AW31: 24 | AZ31: 5 | BA31: 2 | BB31: 0 | BC31: 0 | BD31: 1 | BE31: 0 | BF31: 0 | BG31: 1 | BH31: 0 | BI31: 1 | BJ31: 0 | BK31: 0 | BL31: 0 | BM31: 0 | BN31: 0 | BO31: 0 | BP31: 0 | BQ31: 0 | BR31: 0 | BS31: 0 | BT31: 0 | BU31: 1 | BV31: 0 | BW31: 0 | BX31: 0 | BY31: 0 | BZ31: 0 | CA31: 0 | CB31: 0 | CC31: 0 | CD31: 0 | CE31: 0 | CF31: 0 | CG31: 0 | CH31: 0 | CI31: 0 | CJ31: 0 | CK31: 0 | CL31: 0 | CM31: 0 | CN31: 0
A32: 28 | B32: SSSS | C32: 0 | E32: 0 | I32: 0 | M32: 0 | Q32: 0 | U32: 0 | Y32: 0 | AC32: 0 | AG32: 0 | AK32: 0 | AO32: 0 | AS32: 0 | AW32: 0 | AZ32: 1 | BA32: 0 | BB32: 0 | BC32: 1 | BD32: 0 | BE32: 0 | BF32: 1 | BG32: 0 | BH32: 0 | BI32: 0 | BJ32: 2 | BK32: 1 | BL32: 0 | BM32: 0 | BN32: 0 | BO32: 0 | BP32: 0 | BQ32: 0 | BR32: 0 | BS32: 1 | BT32: 0 | BU32: 0 | BV32: 1 | BW32: 0 | BX32: 0 | BY32: 1 | BZ32: 0 | CA32: 1 | CB32: 0 | CC32: 0 | CD32: 0 | CE32: 0 | CF32: 0 | CG32: 0 | CH32: 0 | CI32: 0 | CJ32: 0 | CK32: 0 | CL32: 0 | CM32: 0 | CN32: 0
A33: 29 | B33: Marcelo Junqueira | C33: 131 | D33: 12 | E33: 20 | H33: 16 | I33: 15 | L33: 10 | M33: 24 | P33: 7 | Q33: 30 | T33: 9 | U33: 26 | X33: 14 | Y33: 17 | AC33: 0 | AE33: -5 | AG33: 0 | AJ33: 17 | AK33: 14 | AO33: 0 | AS33: 0 | AU33: -5 | AW33: 0 | AY33: -5 | AZ33: 0 | BA33: 0 | BB33: 0 | BC33: 0 | BD33: 0 | BE33: 0 | BF33: 1 | BG33: 0 | BH33: 1 | BI33: 1 | BJ33: 0 | BK33: 1 | BL33: 0 | BM33: 1 | BN33: 0 | BO33: 1 | BP33: 1 | BQ33: 0 | BR33: 0 | BS33: 0 | BT33: 0 | BU33: 0 | BV33: 0 | BW33: 0 | BX33: 0 | BY33: 0 | BZ33: 0 | CA33: 0 | CB33: 0 | CC33: 0 | CD33: 0 | CE33: 0 | CF33: 0 | CG33: 0 | CH33: 0 | CI33: 0 | CJ33: 0 | CK33: 0 | CL33: 0 | CM33: 0 | CN33: 0
A34: 30 | B34: SS | C34: 0 | E34: 0 | I34: 0 | M34: 0 | Q34: 0 | U34: 0 | Y34: 0 | AC34: 0 | AG34: 0 | AK34: 0 | AO34: 0 | AS34: 0 | AW34: 0 | AZ34: 1 | BA34: 0 | BB34: 0 | BC34: 2 | BD34: 1 | BE34: 1 | BF34: 1 | BG34: 1 | BH34: 0 | BI34: 0 | BJ34: 2 | BK34: 1 | BL34: 0 | BM34: 1 | BN34: 0 | BO34: 0 | BP34: 0 | BQ34: 0 | BR34: 0 | BS34: 1 | BT34: 0 | BU34: 0 | BV34: 1 | BW34: 0 | BX34: 0 | BY34: 1 | BZ34: 0 | CA34: 2 | CB34: 0 | CC34: 0 | CD34: 0 | CE34: 0 | CF34: 0 | CG34: 0 | CH34: 0 | CI34: 0 | CJ34: 0 | CK34: 0 | CL34: 0 | CM34: 0 | CN34: 0
A35: 31 | B35: Marcus Reis | C35: 0 | E35: 0 | I35: 0 | K35: -5 | M35: 0 | Q35: 0 | U35: 0 | Y35: 0 | AA35: -5 | AC35: 0 | AE35: -5 | AG35: 0 | AI35: -5 | AK35: 0 | AM35: -5 | AO35: 0 | AQ35: -5 | AS35: 0 | AU35: -5 | AW35: 0 | AY35: -5 | AZ35: 0 | BA35: 0 | BB35: 0 | BC35: 0 | BD35: 0 | BE35: 0 | BF35: 0 | BG35: 0 | BH35: 0 | BI35: 0 | BJ35: 0 | BK35: 0 | BL35: 0 | BM35: 0 | BN35: 0 | BO35: 0 | BP35: 0 | BQ35: 0 | BR35: 0 | BS35: 0 | BT35: 0 | BU35: 0 | BV35: 0 | BW35: 0 | BX35: 0 | BY35: 0 | BZ35: 0 | CA35: 0 | CB35: 0 | CC35: 0 | CD35: 0 | CE35: 0 | CF35: 0 | CG35: 0 | CH35: 0 | CI35: 0 | CJ35: 0 | CK35: 0 | CL35: 0 | CM35: 0 | CN35: 0
A36: 32 | B36: Maurílio Carmo | C36: 145 | E36: 0 | G36: -5 | I36: 0 | K36: -5 | L36: 18 | M36: 13 | Q36: 0 | S36: -5 | T36: 19 | U36: 12 | X36: 19 | Y36: 12 | AB36: 16 | AC36: 15 | AF36: 10 | AG36: 24 | AJ36: 12 | AK36: 20 | AN36: 9 | AO36: 26 | AR36: 13 | AS36: 18 | AV36: 12 | AW36: 20 | AZ36: 0 | BA36: 0 | BB36: 0 | BC36: 0 | BD36: 0 | BE36: 0 | BF36: 0 | BG36: 0 | BH36: 1 | BI36: 1 | BJ36: 0 | BK36: 2 | BL36: 1 | BM36: 0 | BN36: 0 | BO36: 1 | BP36: 0 | BQ36: 1 | BR36: 2 | BS36: 0 | BT36: 0 | BU36: 0 | BV36: 0 | BW36: 0 | BX36: 0 | BY36: 0 | BZ36: 0 | CA36: 0 | CB36: 0 | CC36: 0 | CD36: 0 | CE36: 0 | CF36: 0 | CG36: 0 | CH36: 0 | CI36: 0 | CJ36: 0 | CK36: 0 | CL36: 0 | CM36: 0 | CN36: 0
A37: 33 | B37: Michel Abouud | C37: 63 | E37: 0 | G37: -5 | H37: 23 | I37: 8 | M37: 0 | P37: 39 | Q37: 1 | S37: SIM | U37: 0 | X37: 18 | Y37: 13 | AB37: 13 | AC37: 18 | AF37: 12 | AG37: 20 | AK37: 0 | AO37: 0 | AR37: 18 | AS37: 13 | AW37: 0 | AY37: -5 | AZ37: 0 | BA37: 0 | BB37: 0 | BC37: 0 | BD37: 0 | BE37: 0 | BF37: 0 | BG37: 0 | BH37: 0 | BI37: 0 | BJ37: 0 | BK37: 1 | BL37: 1 | BM37: 0 | BN37: 0 | BO37: 0 | BP37: 0 | BQ37: 2 | BR37: 0 | BS37: 0 | BT37: 0 | BU37: 0 | BV37: 1 | BW37: 0 | BX37: 0 | BY37: 0 | BZ37: 0 | CA37: 0 | CB37: 0 | CC37: 0 | CD37: 0 | CE37: 0 | CF37: 0 | CG37: 0 | CH37: 0 | CI37: 0 | CJ37: 0 | CK37: 0 | CL37: 1 | CM37: 0 | CN37: 0
A38: 34 | B38: Morvan | C38: 144 | D38: 17 | E38: 14 | H38: 10 | I38: 24 | M38: 0 | Q38: 0 | T38: 26 | U38: 5 | X38: 11 | Y38: 22 | AB38: 11 | AC38: 22 | AF38: 11 | AG38: 22 | AJ38: 15 | AK38: 16 | AO38: 0 | AR38: 16 | AS38: 15 | AV38: 27 | AW38: 4 | AY38: SIM | AZ38: 0 | BA38: 0 | BB38: 0 | BC38: 0 | BD38: 0 | BE38: 0 | BF38: 0 | BG38: 0 | BH38: 0 | BI38: 1 | BJ38: 3 | BK38: 0 | BL38: 0 | BM38: 0 | BN38: 1 | BO38: 1 | BP38: 1 | BQ38: 0 | BR38: 0 | BS38: 0 | BT38: 0 | BU38: 0 | BV38: 0 | BW38: 0 | BX38: 0 | BY38: 1 | BZ38: 1 | CA38: 0 | CB38: 0 | CC38: 0 | CD38: 0 | CE38: 0 | CF38: 0 | CG38: 0 | CH38: 0 | CI38: 0 | CJ38: 0 | CK38: 0 | CL38: 0 | CM38: 0 | CN38: 0
A39: 35 | B39: Ricardo Araújo | C39: 76 | E39: 0 | H39: 13 | I39: 18 | L39: 16 | M39: 15 | P39: 13 | Q39: 18 | T39: 13 | U39: 18 | X39: 22 | Y39: 9 | AB39: 23 | AC39: 8 | AE39: SIM | AG39: 0 | AK39: 0 | AM39: -5 | AO39: 0 | AS39: 0 | AU39: -5 | AW39: 0 | AZ39: 0 | BA39: 0 | BB39: 0 | BC39: 0 | BD39: 0 | BE39: 0 | BF39: 0 | BG39: 0 | BH39: 0 | BI39: 0 | BJ39: 0 | BK39: 0 | BL39: 3 | BM39: 0 | BN39: 0 | BO39: 1 | BP39: 0 | BQ39: 0 | BR39: 0 | BS39: 0 | BT39: 0 | BU39: 1 | BV39: 1 | BW39: 0 | BX39: 0 | BY39: 0 | BZ39: 0 | CA39: 0 | CB39: 0 | CC39: 0 | CD39: 0 | CE39: 0 | CF39: 0 | CG39: 0 | CH39: 0 | CI39: 0 | CJ39: 0 | CK39: 0 | CL39: 0 | CM39: 0 | CN39: 0
A40: 36 | B40: Roberto Veloso | C40: 115 | E40: 0 | G40: -5 | I40: 0 | K40: -5 | L40: 13 | M40: 18 | Q40: 0 | S40: -5 | T40: 10 | U40: 24 | X40: 6 | Y40: 32 | AC40: 0 | AE40: -5 | AF40: 2 | AG40: 41 | AJ40: 7 | AK40: 30 | AO40: 0 | AQ40: -5 | AS40: 0 | AW40: 0 | AY40: -5 | AZ40: 0 | BA40: 1 | BB40: 0 | BC40: 0 | BD40: 0 | BE40: 1 | BF40: 1 | BG40: 0 | BH40: 0 | BI40: 1 | BJ40: 0 | BK40: 0 | BL40: 1 | BM40: 0 | BN40: 0 | BO40: 0 | BP40: 0 | BQ40: 0 | BR40: 0 | BS40: 0 | BT40: 0 | BU40: 0 | BV40: 0 | BW40: 0 | BX40: 0 | BY40: 0 | BZ40: 0 | CA40: 0 | CB40: 0 | CC40: 0 | CD40: 0 | CE40: 0 | CF40: 0 | CG40: 0 | CH40: 0 | CI40: 0 | CJ40: 0 | CK40: 0 | CL40: 0 | CM40: 0 | CN40: 0
A41: 37 | B41: Rodrigo Mercadante | C41: 335 | D41: 7 | E41: 30 | H41: 6 | I41: 32 | L41: 4 | M41: 36 | P41: 9 | Q41: 26 | T41: 2 | U41: 41 | X41: 12 | Y41: 20 | AB41: 15 | AC41: 16 | AF41: 6 | AG41: 32 | AJ41: 5 | AK41: 34 | AO41: 0 | AR41: 6 | AS41: 32 | AV41: 4 | AW41: 36 | AZ41: 0 | BA41: 1 | BB41: 0 | BC41: 2 | BD41: 1 | BE41: 3 | BF41: 1 | BG41: 0 | BH41: 1 | BI41: 0 | BJ41: 0 | BK41: 1 | BL41: 0 | BM41: 0 | BN41: 1 | BO41: 0 | BP41: 0 | BQ41: 0 | BR41: 0 | BS41: 0 | BT41: 0 | BU41: 0 | BV41: 0 | BW41: 0 | BX41: 0 | BY41: 0 | BZ41: 0 | CA41: 0 | CB41: 0 | CC41: 0 | CD41: 0 | CE41: 0 | CF41: 0 | CG41: 0 | CH41: 0 | CI41: 0 | CJ41: 0 | CK41: 0 | CL41: 0 | CM41: 0 | CN41: 0
A42: 38 | B42: Rodrigo Rotheia | C42: 123 | D42: 11 | E42: 22 | H42: 3 | I42: 38 | L42: 6 | M42: 32 | P42: 4 | Q42: 36 | T42: 27 | U42: 4 | X42: 25 | Y42: 6 | AC42: 0 | AE42: -5 | AG42: 0 | AK42: 0 | AO42: 0 | AS42: 0 | AU42: -5 | AW42: 0 | AY42: -5 | AZ42: 0 | BA42: 0 | BB42: 1 | BC42: 1 | BD42: 0 | BE42: 1 | BF42: 0 | BG42: 0 | BH42: 0 | BI42: 0 | BJ42: 1 | BK42: 0 | BL42: 0 | BM42: 0 | BN42: 0 | BO42: 0 | BP42: 0 | BQ42: 0 | BR42: 0 | BS42: 0 | BT42: 0 | BU42: 0 | BV42: 0 | BW42: 0 | BX42: 1 | BY42: 0 | BZ42: 1 | CA42: 0 | CB42: 0 | CC42: 0 | CD42: 0 | CE42: 0 | CF42: 0 | CG42: 0 | CH42: 0 | CI42: 0 | CJ42: 0 | CK42: 0 | CL42: 0 | CM42: 0 | CN42: 0
A43: 39 | B43: SSSSSSS | C43: 0 | E43: 0 | I43: 0 | M43: 0 | Q43: 0 | U43: 0 | Y43: 0 | AC43: 0 | AG43: 0 | AK43: 0 | AO43: 0 | AS43: 0 | AW43: 0 | AZ43: 0 | BA43: 0 | BB43: 0 | BC43: 0 | BD43: 0 | BE43: 0 | BF43: 0 | BG43: 0 | BH43: 0 | BI43: 0 | BJ43: 0 | BK43: 0 | BL43: 0 | BM43: 0 | BN43: 0 | BO43: 0 | BP43: 0 | BQ43: 0 | BR43: 0 | BS43: 1 | BT43: 0 | BU43: 0 | BV43: 1 | BW43: 0 | BX43: 0 | BY43: 0 | BZ43: 0 | CA43: 1 | CB43: 0 | CC43: 0 | CD43: 0 | CE43: 0 | CF43: 0 | CG43: 0 | CH43: 0 | CI43: 0 | CJ43: 0 | CK43: 0 | CL43: 0 | CM43: 0 | CN43: 0
A44: 40 | C44: 0 | E44: 0 | I44: 0 | M44: 0 | Q44: 0 | U44: 0 | Y44: 0 | AC44: 0 | AG44: 0 | AK44: 0 | AO44: 0 | AS44: 0 | AW44: 0 | AZ44: 0 | BA44: 0 | BB44: 0 | BC44: 0 | BD44: 0 | BE44: 0 | BF44: 0 | BG44: 0 | BH44: 0 | BI44: 0 | BJ44: 0 | BK44: 0 | BL44: 0 | BM44: 0 | BN44: 0 | BO44: 0 | BP44: 0 | BQ44: 0 | BR44: 0 | BS44: 0 | BT44: 0 | BU44: 0 | BV44: 0 | BW44: 0 | BX44: 0 | BY44: 0 | BZ44: 0 | CA44: 0 | CB44: 0 | CC44: 0 | CD44: 0 | CE44: 0 | CF44: 0 | CG44: 0 | CH44: 0 | CI44: 0 | CJ44: 0 | CK44: 0 | CL44: 0 | CM44: 0 | CN44: 0
A45: 41 | C45: 0 | E45: 0 | I45: 0 | M45: 0 | Q45: 0 | U45: 0 | Y45: 0 | AC45: 0 | AG45: 0 | AK45: 0 | AO45: 0 | AS45: 0 | AW45: 0 | AZ45: 0 | BA45: 0 | BB45: 0 | BC45: 0 | BD45: 0 | BE45: 0 | BF45: 0 | BG45: 0 | BH45: 0 | BI45: 0 | BJ45: 0 | BK45: 0 | BL45: 0 | BM45: 0 | BN45: 0 | BO45: 0 | BP45: 0 | BQ45: 0 | BR45: 0 | BS45: 0 | BT45: 0 | BU45: 0 | BV45: 0 | BW45: 0 | BX45: 0 | BY45: 0 | BZ45: 0 | CA45: 0 | CB45: 0 | CC45: 0 | CD45: 0 | CE45: 0 | CF45: 0 | CG45: 0 | CH45: 0 | CI45: 0 | CJ45: 0 | CK45: 0 | CL45: 0 | CM45: 0 | CN45: 0
A46: 42 | C46: 0 | E46: 0 | I46: 0 | M46: 0 | Q46: 0 | U46: 0 | Y46: 0 | AC46: 0 | AG46: 0 | AK46: 0 | AO46: 0 | AS46: 0 | AW46: 0 | AZ46: 0 | BA46: 0 | BB46: 0 | BC46: 0 | BD46: 0 | BE46: 0 | BF46: 0 | BG46: 0 | BH46: 0 | BI46: 0 | BJ46: 0 | BK46: 0 | BL46: 0 | BM46: 0 | BN46: 0 | BO46: 0 | BP46: 0 | BQ46: 0 | BR46: 0 | BS46: 0 | BT46: 0 | BU46: 0 | BV46: 0 | BW46: 0 | BX46: 0 | BY46: 0 | BZ46: 0 | CA46: 0 | CB46: 0 | CC46: 0 | CD46: 0 | CE46: 0 | CF46: 0 | CG46: 0 | CH46: 0 | CI46: 0 | CJ46: 0 | CK46: 0 | CL46: 0 | CM46: 0 | CN46: 0
A47: 43 | C47: 0 | E47: 0 | I47: 0 | M47: 0 | Q47: 0 | U47: 0 | Y47: 0 | AC47: 0 | AG47: 0 | AK47: 0 | AO47: 0 | AS47: 0 | AW47: 0 | AZ47: 0 | BA47: 0 | BB47: 0 | BC47: 0 | BD47: 0 | BE47: 0 | BF47: 0 | BG47: 0 | BH47: 0 | BI47: 0 | BJ47: 0 | BK47: 0 | BL47: 0 | BM47: 0 | BN47: 0 | BO47: 0 | BP47: 0 | BQ47: 0 | BR47: 0 | BS47: 0 | BT47: 0 | BU47: 0 | BV47: 0 | BW47: 0 | BX47: 0 | BY47: 0 | BZ47: 0 | CA47: 0 | CB47: 0 | CC47: 0 | CD47: 0 | CE47: 0 | CF47: 0 | CG47: 0 | CH47: 0 | CI47: 0 | CJ47: 0 | CK47: 0 | CL47: 0 | CM47: 0 | CN47: 0
A48: 44 | C48: 0 | E48: 0 | I48: 0 | M48: 0 | Q48: 0 | U48: 0 | Y48: 0 | AC48: 0 | AG48: 0 | AK48: 0 | AO48: 0 | AS48: 0 | AW48: 0 | AZ48: 0 | BA48: 0 | BB48: 0 | BC48: 0 | BD48: 0 | BE48: 0 | BF48: 0 | BG48: 0 | BH48: 0 | BI48: 0 | BJ48: 0 | BK48: 0 | BL48: 0 | BM48: 0 | BN48: 0 | BO48: 0 | BP48: 0 | BQ48: 0 | BR48: 0 | BS48: 0 | BT48: 0 | BU48: 0 | BV48: 0 | BW48: 0 | BX48: 0 | BY48: 0 | BZ48: 0 | CA48: 0 | CB48: 0 | CC48: 0 | CD48: 0 | CE48: 0 | CF48: 0 | CG48: 0 | CH48: 0 | CI48: 0 | CJ48: 0 | CK48: 0 | CL48: 0 | CM48: 0 | CN48: 0
A49: 45 | C49: 0 | E49: 0 | I49: 0 | M49: 0 | Q49: 0 | U49: 0 | Y49: 0 | AC49: 0 | AG49: 0 | AK49: 0 | AO49: 0 | AS49: 0 | AW49: 0 | AZ49: 0 | BA49: 0 | BB49: 0 | BC49: 0 | BD49: 0 | BE49: 0 | BF49: 0 | BG49: 0 | BH49: 0 | BI49: 0 | BJ49: 0 | BK49: 0 | BL49: 0 | BM49: 0 | BN49: 0 | BO49: 0 | BP49: 0 | BQ49: 0 | BR49: 0 | BS49: 0 | BT49: 0 | BU49: 0 | BV49: 0 | BW49: 0 | BX49: 0 | BY49: 0 | BZ49: 0 | CA49: 0 | CB49: 0 | CC49: 0 | CD49: 0 | CE49: 0 | CF49: 0 | CG49: 0 | CH49: 0 | CI49: 0 | CJ49: 0 | CK49: 0 | CL49: 0 | CM49: 0 | CN49: 0

Sheet Classificação Geral
A1: 2022 | E1: OK | I1: OK | M1: OK | Q1: OK | U1: OK | Y1: OK | AC1: OK | AG1: OK | AK1: OK | AO1: OK | AS1: OK | AW1: OK
D2: 1ª etapa | H2: 2ª etapa | L2: 3ª etapa | P2: 4ª etapa | T2: 5ª etapa | X2: 6ª etapa | AB2: 7ª etapa | AF2: 8ª etapa | AJ2: 9ª etapa | AN2: 10ª etapa | AR2: 11ª etapa | AV2: 12ª etapa
L3: 17/03/2022 - 20:30
B4: Nome do (a) Piloto (a) | C4: Pontuação Geral | D4: Posição | E4: Pontos | F4: Bônus | G4: Penalidade | H4: Posição | I4: Pontos | J4: Bônus | K4: Penalidade | L4: Posição | M4: Pontos | N4: Bônus | O4: Penalidade | P4: Posição | Q4: Pontos | R4: Bônus | S4: Penalidade | T4: Posição | U4: Pontos | V4: Bônus | W4: Penalidade | X4: Posição | Y4: Pontos | Z4: Bônus | AA4: Penalidade | AB4: Posição | AC4: Pontos | AD4: Bônus | AE4: Penalidade | AF4: Posição | AG4: Pontos | AH4: Bônus | AI4: Penalidade | AJ4: Posição | AK4: Pontos | AL4: Bônus | AM4: Penalidade | AN4: Posição | AO4: Pontos | AP4: Bônus | AQ4: Penalidade | AR4: Posição | AS4: Pontos | AT4: Bônus | AU4: Penalidade | AV4: Posição | AW4: Pontos | AX4: Bônus | AY4: Penalidade | AZ4: 1º LUGAR | BA4: 2º LUGAR | BB4: 3º LUGAR | BC4: 4º LUGAR | BD4: 5º LUGAR | BE4: 6º LUGAR | BF4: 7º LUGAR | BG4: 8º LUGAR | BH4: 9º LUGAR | BI4: 10º LUGAR | BJ4: 11º LUGAR | BK4: 12º LUGAR | BL4: 13º LUGAR | BM4: 14º LUGAR | BN4: 15º LUGAR | BO4: 16º LUGAR | BP4: 17º LUGAR | BQ4: 18º LUGAR | BR4: 19º LUGAR | BS4: 20º LUGAR | BT4: 21º LUGAR | BU4: 22º LUGAR | BV4: 23º LUGAR | BW4: 24º LUGAR | BX4: 25º LUGAR | BY4: 26º LUGAR | BZ4: 27º LUGAR | CA4: 28º LUGAR | CB4: 29º LUGAR | CC4: 30º LUGAR | CD4: 31º LUGAR | CE4: 32º LUGAR | CF4: 33º LUGAR | CG4: 34º LUGAR | CH4: 35º LUGAR | CI4: 36º LUGAR | CJ4: 37º LUGAR | CK4: 38º LUGAR | CL4: 39º LUGAR | CM4: 40º LUGAR | CN4: 41º LUGAR
A5: 1 | B5: Marcelo Clemente | C5: 406 | D5: 1 | E5: 45 | F5: 1 | H5: 2 | I5: 41 | L5: 5 | M5: 34 | N5: 1 | P5: 1 | Q5: 45 | R5: 1 | T5: 22 | U5: 9 | X5: 2 | Y5: 41 | Z5: 1 | AB5: 1 | AC5: 45 | AG5: 0 | AJ5: 8 | AK5: 28 | AN5: 1 | AO5: 45 | AR5: 1 | AS5: 45 | AV5: 10 | AW5: 24 | AZ5: 5 | BA5: 2 | BB5: 0 | BC5: 0 | BD5: 1 | BE5: 0 | BF5: 0 | BG5: 1 | BH5: 0 | BI5: 1 | BJ5: 0 | BK5: 0 | BL5: 0 | BM5: 0 | BN5: 0 | BO5: 0 | BP5: 0 | BQ5: 0 | BR5: 0 | BS5: 0 | BT5: 0 | BU5: 1 | BV5: 0 | BW5: 0 | BX5: 0 | BY5: 0 | BZ5: 0 | CA5: 0 | CB5: 0 | CC5: 0 | CD5: 0 | CE5: 0 | CF5: 0 | CG5: 0 | CH5: 0 | CI5: 0 | CJ5: 0 | CK5: 0 | CL5: 0 | CM5: 0 | CN5: 0
A6: 2 | B6: Alexandre Melillo | C6: 382 | D6: 19 | E6: 12 | I6: 0 | L6: 1 | M6: 45 | P6: 12 | Q6: 20 | T6: 1 | U6: 45 | V6: 1 | X6: 5 | Y6: 34 | AB6: 4 | AC6: 36 | AD6: 1 | AF6: 4 | AG6: 36 | AH6: 1 | AJ6: 1 | AK6: 45 | AN6: 13 | AO6: 18 | AQ6: SIM | AR6: 2 | AS6: 41 | AT6: 1 | AV6: 1 | AW6: 45 | AX6: 1 | AZ6: 4 | BA6: 1 | BB6: 0 | BC6: 2 | BD6: 1 | BE6: 0 | BF6: 0 | BG6: 0 | BH6: 0 | BI6: 0 | BJ6: 0 | BK6: 1 | BL6: 1 | BM6: 0 | BN6: 0 | BO6: 0 | BP6: 0 | BQ6: 0 | BR6: 1 | BS6: 0 | BT6: 0 | BU6: 0 | BV6: 0 | BW6: 0 | BX6: 0 | BY6: 0 | BZ6: 0 | CA6: 0 | CB6: 0 | CC6: 0 | CD6: 0 | CE6: 0 | CF6: 0 | CG6: 0 | CH6: 0 | CI6: 0 | CJ6: 0 | CK6: 0 | CL6: 0 | CM6: 0 | CN6: 0
A7: 3 | B7: Guilherme Janot | C7: 378 | D7: 2 | E7: 41 | H7: 7 | I7: 30 | L7: 11 | M7: 22 | P7: 14 | Q7: 17 | T7: 18 | U7: 13 | X7: 3 | Y7: 38 | AB7: 6 | AC7: 32 | AF7: 1 | AG7: 45 | AJ7: 3 | AK7: 38 | AN7: 2 | AO7: 41 | AR7: 12 | AS7: 20 | AU7: SIM | AV7: 2 | AW7: 41 | AZ7: 1 | BA7: 3 | BB7: 2 | BC7: 0 | BD7: 0 | BE7: 1 | BF7: 1 | BG7: 0 | BH7: 0 | BI7: 0 | BJ7: 1 | BK7: 1 | BL7: 0 | BM7: 1 | BN7: 0 | BO7: 0 | BP7: 0 | BQ7: 1 | BR7: 0 | BS7: 0 | BT7: 0 | BU7: 0 | BV7: 0 | BW7: 0 | BX7: 0 | BY7: 0 | BZ7: 0 | CA7: 0 | CB7: 0 | CC7: 0 | CD7: 0 | CE7: 0 | CF7: 0 | CG7: 0 | CH7: 0 | CI7: 0 | CJ7: 0 | CK7: 0 | CL7: 0 | CM7: 0 | CN7: 0
A8: 4 | B8: Marcelo Sant'anna | C8: 346 | D8: 3 | E8: 38 | H8: 5 | I8: 34 | M8: 0 | P8: 15 | Q8: 16 | T8: 4 | U8: 36 | X8: 8 | Y8: 28 | AB8: 2 | AC8: 41 | AF8: 8 | AG8: 28 | AJ8: 16 | AK8: 15 | AN8: 4 | AO8: 36 | AR8: 4 | AS8: 36 | AV8: 3 | AW8: 38 | AZ8: 0 | BA8: 1 | BB8: 2 | BC8: 3 | BD8: 1 | BE8: 0 | BF8: 0 | BG8: 2 | BH8: 0 | BI8: 0 | BJ8: 0 | BK8: 0 | BL8: 0 | BM8: 0 | BN8: 1 | BO8: 1 | BP8: 0 | BQ8: 0 | BR8: 0 | BS8: 0 | BT8: 0 | BU8: 0 | BV8: 0 | BW8: 0 | BX8: 0 | BY8: 0 | BZ8: 0 | CA8: 0 | CB8: 0 | CC8: 0 | CD8: 0 | CE8: 0 | CF8: 0 | CG8: 0 | CH8: 0 | CI8: 0 | CJ8: 0 | CK8: 0 | CL8: 0 | CM8: 0 | CN8: 0
A9: 5 | B9: Rodrigo Mercadante | C9: 335 | D9: 7 | E9: 30 | H9: 6 | I9: 32 | L9: 4 | M9: 36 | P9: 9 | Q9: 26 | T9: 2 | U9: 41 | X9: 12 | Y9: 20 | AB9: 15 | AC9: 16 | AF9: 6 | AG9: 32 | AJ9: 5 | AK9: 34 | AO9: 0 | AR9: 6 | AS9: 32 | AV9: 4 | AW9: 36 | AZ9: 0 | BA9: 1 | BB9: 0 | BC9: 2 | BD9: 1 | BE9: 3 | BF9: 1 | BG9: 0 | BH9: 1 | BI9: 0 | BJ9: 0 | BK9: 1 | BL9: 0 | BM9: 0 | BN9: 1 | BO9: 0 | BP9: 0 | BQ9: 0 | BR9: 0 | BS9: 0 | BT9: 0 | BU9: 0 | BV9: 0 | BW9: 0 | BX9: 0 | BY9: 0 | BZ9: 0 | CA9: 0 | CB9: 0 | CC9: 0 | CD9: 0 | CE9: 0 | CF9: 0 | CG9: 0 | CH9: 0 | CI9: 0 | CJ9: 0 | CK9: 0 | CL9: 0 | CM9: 0 | CN9: 0
A10: 6 | B10: Jarbas Reis | C10: 334 | D10: 8 | E10: 28 | H10: 8 | I10: 28 | L10: 2 | M10: 41 | P10: 3 | Q10: 38 | T10: 16 | U10: 15 | X10: 10 | Y10: 24 | AB10: 7 | AC10: 30 | AF10: 13 | AG10: 18 | AJ10: 19 | AK10: 12 | AN10: 8 | AO10: 28 | AR10: 3 | AS10: 38 | AV10: 5 | AW10: 34 | AZ10: 0 | BA10: 1 | BB10: 2 | BC10: 0 | BD10: 1 | BE10: 0 | BF10: 1 | BG10: 3 | BH10: 0 | BI10: 1 | BJ10: 0 | BK10: 0 | BL10: 1 | BM10: 0 | BN10: 0 | BO10: 1 | BP10: 0 | BQ10: 0 | BR10: 1 | BS10: 0 | BT10: 0 | BU10: 0 | BV10: 0 | BW10: 0 | BX10: 0 | BY10: 0 | BZ10: 0 | CA10: 0 | CB10: 0 | CC10: 0 | CD10: 0 | CE10: 0 | CF10: 0 | CG10: 0 | CH10: 0 | CI10: 0 | CJ10: 0 | CK10: 0 | CL10: 0 | CM10: 0 | CN10: 0
A11: 7 | B11: Carlos Sampaio | C11: 293 | D11: 14 | E11: 17 | H11: 17 | I11: 14 | L11: 9 | M11: 26 | P11: 19 | Q11: 12 | T11: 15 | U11: 16 | X11: 15 | Y11: 16 | AB11: 5 | AC11: 34 | AF11: 3 | AG11: 38 | AJ11: 6 | AK11: 32 | AN11: 5 | AO11: 34 | AR11: 9 | AS11: 26 | AV11: 8 | AW11: 28 | AZ11: 0 | BA11: 0 | BB11: 1 | BC11: 0 | BD11: 2 | BE11: 1 | BF11: 0 | BG11: 1 | BH11: 2 | BI11: 0 | BJ11: 0 | BK11: 0 | BL11: 0 | BM11: 1 | BN11: 2 | BO11: 0 | BP11: 1 | BQ11: 0 | BR11: 1 | BS11: 0 | BT11: 0 | BU11: 0 | BV11: 0 | BW11: 0 | BX11: 0 | BY11: 0 | BZ11: 0 | CA11: 0 | CB11: 0 | CC11: 0 | CD11: 0 | CE11: 0 | CF11: 0 | CG11: 0 | CH11: 0 | CI11: 0 | CJ11: 0 | CK11: 0 | CL11: 0 | CM11: 0 | CN11: 0
A12: 8 | B12: Claudio Junqueira | C12: 291 | D12: 9 | E12: 26 | H12: 19 | I12: 12 | L12: 3 | M12: 38 | P12: 5 | Q12: 34 | T12: 21 | U12: 10 | W12: SIM | X12: 9 | Y12: 26 | AB12: 3 | AC12: 38 | AF12: 7 | AG12: 30 | AJ12: 4 | AK12: 36 | AN12: 15 | AO12: 16 | AR12: 7 | AS12: 30 | AW12: 0 | AY12: -5 | AZ12: 0 | BA12: 0 | BB12: 2 | BC12: 1 | BD12: 1 | BE12: 0 | BF12: 2 | BG12: 0 | BH12: 2 | BI12: 0 | BJ12: 0 | BK12: 0 | BL12: 0 | BM12: 0 | BN12: 1 | BO12: 0 | BP12: 0 | BQ12: 0 | BR12: 1 | BS12: 0 | BT12: 1 | BU12: 0 | BV12: 0 | BW12: 0 | BX12: 0 | BY12: 0 | BZ12: 0 | CA12: 0 | CB12: 0 | CC12: 0 | CD12: 0 | CE12: 0 | CF12: 0 | CG12: 0 | CH12: 0 | CI12: 0 | CJ12: 0 | CK12: 0 | CL12: 0 | CM12: 0 | CN12: 0
A13: 9 | B13: Lucio Chequer | C13: 267 | D13: 10 | E13: 24 | H13: 9 | I13: 26 | L13: 7 | M13: 30 | P13: 6 | Q13: 32 | U13: 0 | X13: 27 | Y13: 4 | AB13: 18 | AC13: 13 | AE13: SIM | AF13: 5 | AG13: 34 | AJ13: 9 | AK13: 26 | AN13: 6 | AO13: 32 | AR13: 17 | AS13: 14 | AV13: 6 | AW13: 32 | AZ13: 0 | BA13: 0 | BB13: 0 | BC13: 0 | BD13: 1 | BE13: 3 | BF13: 1 | BG13: 0 | BH13: 2 | BI13: 1 | BJ13: 0 | BK13: 0 | BL13: 0 | BM13: 0 | BN13: 0 | BO13: 0 | BP13: 1 | BQ13: 1 | BR13: 0 | BS13: 0 | BT13: 0 | BU13: 0 | BV13: 0 | BW13: 0 | BX13: 0 | BY13: 0 | BZ13: 1 | CA13: 0 | CB13: 0 | CC13: 0 | CD13: 0 | CE13: 0 | CF13: 0 | CG13: 0 | CH13: 0 | CI13: 0 | CJ13: 0 | CK13: 0 | CL13: 0 | CM13: 0 | CN13: 0
A14: 10 | B14: Carlos Eduardo | C14: 248 | D14: 23 | E14: 8 | H14: 4 | I14: 36 | L14: 27 | M14: 4 | P14: 10 | Q14: 24 | T14: 3 | U14: 38 | X14: 13 | Y14: 18 | AC14: 0 | AF14: 31 | AG14: 1 | AI14: SIM | AJ14: 2 | AK14: 41 | AL14: 1 | AN14: 14 | AO14: 17 | AR14: 5 | AS14: 34 | AV14: 9 | AW14: 26 | AZ14: 0 | BA14: 1 | BB14: 1 | BC14: 1 | BD14: 1 | BE14: 0 | BF14: 0 | BG14: 0 | BH14: 1 | BI14: 1 | BJ14: 0 | BK14: 0 | BL14: 1 | BM14: 1 | BN14: 0 | BO14: 0 | BP14: 0 | BQ14: 0 | BR14: 0 | BS14: 0 | BT14: 0 | BU14: 0 | BV14: 1 | BW14: 0 | BX14: 0 | BY14: 0 | BZ14: 1 | CA14: 0 | CB14: 0 | CC14: 0 | CD14: 1 | CE14: 0 | CF14: 0 | CG14: 0 | CH14: 0 | CI14: 0 | CJ14: 0 | CK14: 0 | CL14: 0 | CM14: 0 | CN14: 0
A15: 11 | B15: Euclides Almeida | C15: 182 | E15: 0 | H15: 18 | I15: 13 | M15: 0 | P15: 20 | Q15: 11 | T15: 11 | U15: 22 | X15: 20 | Y15: 11 | AB15: 9 | AC15: 26 | AE15: SIM | AF15: 9 | AG15: 26 | AJ15: 13 | AK15: 18 | AN15: 3 | AO15: 38 | AR15: 14 | AS15: 17 | AW15: 0 | AZ15: 0 | BA15: 0 | BB15: 1 | BC15: 0 | BD15: 0 | BE15: 0 | BF15: 0 | BG15: 0 | BH15: 2 | BI15: 0 | BJ15: 1 | BK15: 0 | BL15: 1 | BM15: 1 | BN15: 0 | BO15: 0 | BP15: 0 | BQ15: 1 | BR15: 0 | BS15: 2 | BT15: 0 | BU15: 0 | BV15: 0 | BW15: 0 | BX15: 0 | BY15: 0 | BZ15: 0 | CA15: 0 | CB15: 0 | CC15: 0 | CD15: 0 | CE15: 0 | CF15: 0 | CG15: 0 | CH15: 0 | CI15: 0 | CJ15: 0 | CK15: 0 | CL15: 0 | CM15: 0 | CN15: 0
A16: 12 | B16: Hélio Chagas | C16: 151 | D16: 21 | E16: 10 | H16: 27 | I16: 4 | L16: 22 | M16: 9 | P16: 26 | Q16: 5 | T16: 12 | U16: 20 | X16: 23 | Y16: 8 | AB16: 12 | AC16: 20 | AF16: 18 | AG16: 13 | AK16: 0 | AN16: 11 | AO16: 22 | AR16: 10 | AS16: 24 | AV16: 15 | AW16: 16 | AZ16: 0 | BA16: 0 | BB16: 0 | BC16: 0 | BD16: 0 | BE16: 0 | BF16: 0 | BG16: 0 | BH16: 0 | BI16: 1 | BJ16: 1 | BK16: 2 | BL16: 0 | BM16: 0 | BN16: 1 | BO16: 0 | BP16: 0 | BQ16: 1 | BR16: 0 | BS16: 0 | BT16: 1 | BU16: 1 | BV16: 1 | BW16: 0 | BX16: 0 | BY16: 1 | BZ16: 1 | CA16: 0 | CB16: 0 | CC16: 0 | CD16: 0 | CE16: 0 | CF16: 0 | CG16: 0 | CH16: 0 | CI16: 0 | CJ16: 0 | CK16: 0 | CL16: 0 | CM16: 0 | CN16: 0
A17: 13 | B17: Maurílio Carmo | C17: 145 | E17: 0 | G17: -5 | I17: 0 | K17: -5 | L17: 18 | M17: 13 | Q17: 0 | S17: -5 | T17: 19 | U17: 12 | X17: 19 | Y17: 12 | AB17: 16 | AC17: 15 | AF17: 10 | AG17: 24 | AJ17: 12 | AK17: 20 | AN17: 9 | AO17: 26 | AR17: 13 | AS17: 18 | AV17: 12 | AW17: 20 | AZ17: 0 | BA17: 0 | BB17: 0 | BC17: 0 | BD17: 0 | BE17: 0 | BF17: 0 | BG17: 0 | BH17: 1 | BI17: 1 | BJ17: 0 | BK17: 2 | BL17: 1 | BM17: 0 | BN17: 0 | BO17: 1 | BP17: 0 | BQ17: 1 | BR17: 2 | BS17: 0 | BT17: 0 | BU17: 0 | BV17: 0 | BW17: 0 | BX17: 0 | BY17: 0 | BZ17: 0 | CA17: 0 | CB17: 0 | CC17: 0 | CD17: 0 | CE17: 0 | CF17: 0 | CG17: 0 | CH17: 0 | CI17: 0 | CJ17: 0 | CK17: 0 | CL17: 0 | CM17: 0 | CN17: 0
A18: 14 | B18: Morvan | C18: 144 | D18: 17 | E18: 14 | H18: 10 | I18: 24 | M18: 0 | Q18: 0 | T18: 26 | U18: 5 | X18: 11 | Y18: 22 | AB18: 11 | AC18: 22 | AF18: 11 | AG18: 22 | AJ18: 15 | AK18: 16 | AO18: 0 | AR18: 16 | AS18: 15 | AV18: 27 | AW18: 4 | AY18: SIM | AZ18: 0 | BA18: 0 | BB18: 0 | BC18: 0 | BD18: 0 | BE18: 0 | BF18: 0 | BG18: 0 | BH18: 0 | BI18: 1 | BJ18: 3 | BK18: 0 | BL18: 0 | BM18: 0 | BN18: 1 | BO18: 1 | BP18: 1 | BQ18: 0 | BR18: 0 | BS18: 0 | BT18: 0 | BU18: 0 | BV18: 0 | BW18: 0 | BX18: 0 | BY18: 1 | BZ18: 1 | CA18: 0 | CB18: 0 | CC18: 0 | CD18: 0 | CE18: 0 | CF18: 0 | CG18: 0 | CH18: 0 | CI18: 0 | CJ18: 0 | CK18: 0 | CL18: 0 | CM18: 0 | CN18: 0
A19: 15 | B19: Enio Júnior | C19: 137 | E19: 0 | H19: 24 | I19: 7 | L19: 15 | M19: 16 | P19: 18 | Q19: 13 | T19: 14 | U19: 17 | X19: 26 | Y19: 5 | AB19: 8 | AC19: 28 | AF19: 19 | AG19: 12 | AI19: SIM | AK19: 0 | AM19: -5 | AO19: 0 | AR19: 11 | AS19: 22 | AV19: 11 | AW19: 22 | AZ19: 0 | BA19: 0 | BB19: 0 | BC19: 0 | BD19: 0 | BE19: 0 | BF19: 0 | BG19: 1 | BH19: 0 | BI19: 0 | BJ19: 2 | BK19: 0 | BL19: 0 | BM19: 1 | BN19: 1 | BO19: 0 | BP19: 0 | BQ19: 1 | BR19: 1 | BS19: 0 | BT19: 0 | BU19: 0 | BV19: 0 | BW19: 1 | BX19: 0 | BY19: 1 | BZ19: 0 | CA19: 0 | CB19: 0 | CC19: 0 | CD19: 0 | CE19: 0 | CF19: 0 | CG19: 0 | CH19: 0 | CI19: 0 | CJ19: 0 | CK19: 0 | CL19: 0 | CM19: 0 | CN19: 0
A20: 16 | B20: Marcelo Junqueira | C20: 131 | D20: 12 | E20: 20 | H20: 16 | I20: 15 | L20: 10 | M20: 24 | P20: 7 | Q20: 30 | T20: 9 | U20: 26 | X20: 14 | Y20: 17 | AC20: 0 | AE20: -5 | AG20: 0 | AJ20: 17 | AK20: 14 | AO20: 0 | AS20: 0 | AU20: -5 | AW20: 0 | AY20: -5 | AZ20: 0 | BA20: 0 | BB20: 0 | BC20: 0 | BD20: 0 | BE20: 0 | BF20: 1 | BG20: 0 | BH20: 1 | BI20: 1 | BJ20: 0 | BK20: 1 | BL20: 0 | BM20: 1 | BN20: 0 | BO20: 1 | BP20: 1 | BQ20: 0 | BR20: 0 | BS20: 0 | BT20: 0 | BU20: 0 | BV20: 0 | BW20: 0 | BX20: 0 | BY20: 0 | BZ20: 0 | CA20: 0 | CB20: 0 | CC20: 0 | CD20: 0 | CE20: 0 | CF20: 0 | CG20: 0 | CH20: 0 | CI20: 0 | CJ20: 0 | CK20: 0 | CL20: 0 | CM20: 0 | CN20: 0
A21: 17 | B21: Ivan Renault | C21: 127 | D21: 22 | E21: 9 | I21: 0 | L21: 23 | M21: 8 | P21: 25 | Q21: 6 | T21: 17 | U21: 14 | X21: 24 | Y21: 7 | AA21: SIM | AC21: 0 | AG21: 0 | AI21: -5 | AK21: 0 | AN21: 7 | AO21: 30 | AR21: 8 | AS21: 28 | AV21: 7 | AW21: 30 | AZ21: 0 | BA21: 0 | BB21: 0 | BC21: 0 | BD21: 0 | BE21: 0 | BF21: 2 | BG21: 1 | BH21: 0 | BI21: 0 | BJ21: 0 | BK21: 0 | BL21: 0 | BM21: 0 | BN21: 0 | BO21: 0 | BP21: 1 | BQ21: 0 | BR21: 0 | BS21: 0 | BT21: 0 | BU21: 1 | BV21: 1 | BW21: 1 | BX21: 1 | BY21: 0 | BZ21: 0 | CA21: 0 | CB21: 0 | CC21: 0 | CD21: 0 | CE21: 0 | CF21: 0 | CG21: 0 | CH21: 0 | CI21: 0 | CJ21: 0 | CK21: 0 | CL21: 0 | CM21: 0 | CN21: 0
A22: 18 | B22: Rodrigo Rotheia | C22: 123 | D22: 11 | E22: 22 | H22: 3 | I22: 38 | L22: 6 | M22: 32 | P22: 4 | Q22: 36 | T22: 27 | U22: 4 | X22: 25 | Y22: 6 | AC22: 0 | AE22: -5 | AG22: 0 | AK22: 0 | AO22: 0 | AS22: 0 | AU22: -5 | AW22: 0 | AY22: -5 | AZ22: 0 | BA22: 0 | BB22: 1 | BC22: 1 | BD22: 0 | BE22: 1 | BF22: 0 | BG22: 0 | BH22: 0 | BI22: 0 | BJ22: 1 | BK22: 0 | BL22: 0 | BM22: 0 | BN22: 0 | BO22: 0 | BP22: 0 | BQ22: 0 | BR22: 0 | BS22: 0 | BT22: 0 | BU22: 0 | BV22: 0 | BW22: 0 | BX22: 1 | BY22: 0 | BZ22: 1 | CA22: 0 | CB22: 0 | CC22: 0 | CD22: 0 | CE22: 0 | CF22: 0 | CG22: 0 | CH22: 0 | CI22: 0 | CJ22: 0 | CK22: 0 | CL22: 0 | CM22: 0 | CN22: 0
A23: 19 | B23: Roberto Veloso | C23: 115 | E23: 0 | G23: -5 | I23: 0 | K23: -5 | L23: 13 | M23: 18 | Q23: 0 | S23: -5 | T23: 10 | U23: 24 | X23: 6 | Y23: 32 | AC23: 0 | AE23: -5 | AF23: 2 | AG23: 41 | AJ23: 7 | AK23: 30 | AO23: 0 | AQ23: -5 | AS23: 0 | AW23: 0 | AY23: -5 | AZ23: 0 | BA23: 1 | BB23: 0 | BC23: 0 | BD23: 0 | BE23: 1 | BF23: 1 | BG23: 0 | BH23: 0 | BI23: 1 | BJ23: 0 | BK23: 0 | BL23: 1 | BM23: 0 | BN23: 0 | BO23: 0 | BP23: 0 | BQ23: 0 | BR23: 0 | BS23: 0 | BT23: 0 | BU23: 0 | BV23: 0 | BW23: 0 | BX23: 0 | BY23: 0 | BZ23: 0 | CA23: 0 | CB23: 0 | CC23: 0 | CD23: 0 | CE23: 0 | CF23: 0 | CG23: 0 | CH23: 0 | CI23: 0 | CJ23: 0 | CK23: 0 | CL23: 0 | CM23: 0 | CN23: 0
A24: 20 | B24: Gijo | C24: 115 | E24: 0 | G24: -5 | H24: 20 | I24: 11 | K24: SIM | L24: 14 | M24: 17 | P24: 16 | Q24: 15 | T24: 6 | U24: 32 | X24: 7 | Y24: 30 | AB24: 10 | AC24: 24 | AG24: 0 | AI24: -5 | AK24: 0 | AM24: -5 | AO24: 0 | AQ24: -5 | AR24: 15 | AS24: 16 | AU24: -5 | AW24: 0 | AY24: -5 | AZ24: 0 | BA24: 0 | BB24: 0 | BC24: 0 | BD24: 0 | BE24: 1 | BF24: 1 | BG24: 0 | BH24: 0 | BI24: 1 | BJ24: 0 | BK24: 0 | BL24: 0 | BM24: 1 | BN24: 1 | BO24: 1 | BP24: 0 | BQ24: 0 | BR24: 0 | BS24: 1 | BT24: 0 | BU24: 0 | BV24: 0 | BW24: 0 | BX24: 0 | BY24: 0 | BZ24: 0 | CA24: 0 | CB24: 0 | CC24: 0 | CD24: 0 | CE24: 0 | CF24: 0 | CG24: 0 | CH24: 0 | CI24: 0 | CJ24: 0 | CK24: 0 | CL24: 0 | CM24: 0 | CN24: 0
A25: 21 | B25: Leodegario Junior | C25: 97 | E25: 0 | G25: -5 | H25: 15 | I25: 16 | L25: 21 | M25: 10 | Q25: 0 | S25: -5 | U25: 0 | W25: -5 | X25: 21 | Y25: 10 | AB25: 28 | AC25: 3 | AE25: SIM | AF25: 14 | AG25: 17 | AJ25: 10 | AK25: 24 | AN25: 12 | AO25: 20 | AS25: 0 | AU25: -5 | AV25: 14 | AW25: 17 | AZ25: 0 | BA25: 0 | BB25: 0 | BC25: 0 | BD25: 0 | BE25: 0 | BF25: 0 | BG25: 0 | BH25: 0 | BI25: 1 | BJ25: 0 | BK25: 1 | BL25: 0 | BM25: 2 | BN25: 1 | BO25: 0 | BP25: 0 | BQ25: 0 | BR25: 0 | BS25: 0 | BT25: 2 | BU25: 0 | BV25: 0 | BW25: 0 | BX25: 0 | BY25: 0 | BZ25: 0 | CA25: 1 | CB25: 0 | CC25: 0 | CD25: 0 | CE25: 0 | CF25: 0 | CG25: 0 | CH25: 0 | CI25: 0 | CJ25: 0 | CK25: 0 | CL25: 0 | CM25: 0 | CN25: 0
A26: 22 | B26: Cláudio Dumont | C26: 96 | D26: 5 | E26: 34 | H26: 1 | I26: 45 | M26: 0 | P26: 2 | Q26: 41 | T26: 20 | U26: 11 | Y26: 0 | AA26: -5 | AC26: 0 | AE26: -5 | AG26: 0 | AI26: -5 | AK26: 0 | AM26: -5 | AO26: 0 | AQ26: -5 | AS26: 0 | AU26: -5 | AW26: 0 | AY26: -5 | AZ26: 1 | BA26: 1 | BB26: 0 | BC26: 0 | BD26: 1 | BE26: 0 | BF26: 0 | BG26: 0 | BH26: 0 | BI26: 0 | BJ26: 0 | BK26: 0 | BL26: 0 | BM26: 0 | BN26: 0 | BO26: 0 | BP26: 0 | BQ26: 0 | BR26: 0 | BS26: 1 | BT26: 0 | BU26: 0 | BV26: 0 | BW26: 0 | BX26: 0 | BY26: 0 | BZ26: 0 | CA26: 0 | CB26: 0 | CC26: 0 | CD26: 0 | CE26: 0 | CF26: 0 | CG26: 0 | CH26: 0 | CI26: 0 | CJ26: 0 | CK26: 0 | CL26: 0 | CM26: 0 | CN26: 0
A27: 23 | B27: Fernando Lobo | C27: 93 | D27: 20 | E27: 11 | H27: 12 | I27: 20 | L27: 26 | M27: 5 | P27: 8 | Q27: 28 | T27: 24 | U27: 7 | X27: 16 | Y27: 15 | AC27: 0 | AG27: 0 | AI27: -5 | AJ27: 11 | AK27: 22 | AM27: -5 | AO27: 0 | AS27: 0 | AU27: -5 | AW27: 0 | AZ27: 0 | BA27: 0 | BB27: 0 | BC27: 0 | BD27: 0 | BE27: 0 | BF27: 0 | BG27: 1 | BH27: 0 | BI27: 0 | BJ27: 1 | BK27: 1 | BL27: 0 | BM27: 0 | BN27: 0 | BO27: 1 | BP27: 0 | BQ27: 0 | BR27: 0 | BS27: 1 | BT27: 0 | BU27: 0 | BV27: 0 | BW27: 1 | BX27: 0 | BY27: 1 | BZ27: 0 | CA27: 0 | CB27: 0 | CC27: 0 | CD27: 0 | CE27: 0 | CF27: 0 | CG27: 0 | CH27: 0 | CI27: 0 | CJ27: 0 | CK27: 0 | CL27: 0 | CM27: 0 | CN27: 0
A28: 24 | B28: Ricardo Araújo | C28: 76 | E28: 0 | H28: 13 | I28: 18 | L28: 16 | M28: 15 | P28: 13 | Q28: 18 | T28: 13 | U28: 18 | X28: 22 | Y28: 9 | AB28: 23 | AC28: 8 | AE28: SIM | AG28: 0 | AK28: 0 | AM28: -5 | AO28: 0 | AS28: 0 | AU28: -5 | AW28: 0 | AZ28: 0 | BA28: 0 | BB28: 0 | BC28: 0 | BD28: 0 | BE28: 0 | BF28: 0 | BG28: 0 | BH28: 0 | BI28: 0 | BJ28: 0 | BK28: 0 | BL28: 3 | BM28: 0 | BN28: 0 | BO28: 1 | BP28: 0 | BQ28: 0 | BR28: 0 | BS28: 0 | BT28: 0 | BU28: 1 | BV28: 1 | BW28: 0 | BX28: 0 | BY28: 0 | BZ28: 0 | CA28: 0 | CB28: 0 | CC28: 0 | CD28: 0 | CE28: 0 | CF28: 0 | CG28: 0 | CH28: 0 | CI28: 0 | CJ28: 0 | CK28: 0 | CL28: 0 | CM28: 0 | CN28: 0
A29: 25 | B29: Flávio Marques | C29: 71 | D29: 16 | E29: 15 | H29: 30 | I29: 1 | L29: 24 | M29: 7 | P29: 21 | Q29: 10 | T29: 30 | U29: 1 | W29: SIM | Y29: 0 | AA29: -5 | AC29: 0 | AF29: 15 | AG29: 16 | AK29: 0 | AM29: -5 | AN29: 34 | AO29: 1 | AQ29: SIM | AR29: 19 | AS29: 12 | AV29: 13 | AW29: 18 | AZ29: 0 | BA29: 0 | BB29: 0 | BC29: 0 | BD29: 0 | BE29: 0 | BF29: 0 | BG29: 0 | BH29: 0 | BI29: 0 | BJ29: 0 | BK29: 0 | BL29: 1 | BM29: 0 | BN29: 1 | BO29: 1 | BP29: 0 | BQ29: 0 | BR29: 1 | BS29: 0 | BT29: 1 | BU29: 0 | BV29: 0 | BW29: 1 | BX29: 0 | BY29: 0 | BZ29: 0 | CA29: 0 | CB29: 0 | CC29: 2 | CD29: 0 | CE29: 0 | CF29: 0 | CG29: 1 | CH29: 0 | CI29: 0 | CJ29: 0 | CK29: 0 | CL29: 0 | CM29: 0 | CN29: 0
A30: 26 | B30: Michel Abouud | C30: 63 | E30: 0 | G30: -5 | H30: 23 | I30: 8 | M30: 0 | P30: 39 | Q30: 1 | S30: SIM | U30: 0 | X30: 18 | Y30: 13 | AB30: 13 | AC30: 18 | AF30: 12 | AG30: 20 | AK30: 0 | AO30: 0 | AR30: 18 | AS30: 13 | AW30: 0 | AY30: -5 | AZ30: 0 | BA30: 0 | BB30: 0 | BC30: 0 | BD30: 0 | BE30: 0 | BF30: 0 | BG30: 0 | BH30: 0 | BI30: 0 | BJ30: 0 | BK30: 1 | BL30: 1 | BM30: 0 | BN30: 0 | BO30: 0 | BP30: 0 | BQ30: 2 | BR30: 0 | BS30: 0 | BT30: 0 | BU30: 0 | BV30: 1 | BW30: 0 | BX30: 0 | BY30: 0 | BZ30: 0 | CA30: 0 | CB30: 0 | CC30: 0 | CD30: 0 | CE30: 0 | CF30: 0 | CG30: 0 | CH30: 0 | CI30: 0 | CJ30: 0 | CK30: 0 | CL30: 1 | CM30: 0 | CN30: 0
A31: 27 | B31: Jader Abreu | C31: 60 | E31: 0 | H31: 21 | I31: 10 | L31: 17 | M31: 14 | P31: 22 | Q31: 9 | S31: -5 | T31: 25 | U31: 6 | Y31: 0 | AC31: 0 | AF31: 17 | AG31: 14 | AJ31: 14 | AK31: 17 | AO31: 0 | AS31: 0 | AW31: 0 | AY31: -5 | AZ31: 0 | BA31: 0 | BB31: 0 | BC31: 0 | BD31: 0 | BE31: 0 | BF31: 0 | BG31: 0 | BH31: 0 | BI31: 0 | BJ31: 0 | BK31: 0 | BL31: 0 | BM31: 1 | BN31: 0 | BO31: 0 | BP31: 2 | BQ31: 0 | BR31: 0 | BS31: 0 | BT31: 1 | BU31: 1 | BV31: 0 | BW31: 0 | BX31: 1 | BY31: 0 | BZ31: 0 | CA31: 0 | CB31: 0 | CC31: 0 | CD31: 0 | CE31: 0 | CF31: 0 | CG31: 0 | CH31: 0 | CI31: 0 | CJ31: 0 | CK31: 0 | CL31: 0 | CM31: 0 | CN31: 0
A32: 28 | B32: Carlos Filizolla | C32: 45 | D32: 13 | E32: 18 | H32: 29 | I32: 2 | M32: 0 | P32: 24 | Q32: 7 | U32: 0 | Y32: 0 | AC32: 0 | AE32: -5 | AF32: 16 | AG32: 15 | AJ32: 18 | AK32: 13 | AO32: 0 | AS32: 0 | AW32: 0 | AY32: -5 | AZ32: 0 | BA32: 0 | BB32: 0 | BC32: 0 | BD32: 0 | BE32: 0 | BF32: 0 | BG32: 0 | BH32: 0 | BI32: 0 | BJ32: 0 | BK32: 0 | BL32: 1 | BM32: 0 | BN32: 0 | BO32: 1 | BP32: 0 | BQ32: 1 | BR32: 0 | BS32: 0 | BT32: 0 | BU32: 0 | BV32: 0 | BW32: 1 | BX32: 0 | BY32: 0 | BZ32: 0 | CA32: 0 | CB32: 1 | CC32: 0 | CD32: 0 | CE32: 0 | CF32: 0 | CG32: 0 | CH32: 0 | CI32: 0 | CJ32: 0 | CK32: 0 | CL32: 0 | CM32: 0 | CN32: 0
A33: 29 | B33: Marcelo Santiago | C33: 33 | D33: 15 | E33: 16 | H33: 22 | I33: 9 | L33: 19 | M33: 12 | P33: 37 | Q33: 1 | S33: SIM | U33: 0 | Y33: 0 | AC33: 0 | AG33: 0 | AK33: 0 | AO33: 0 | AQ33: -5 | AS33: 0 | AW33: 0 | AZ33: 0 | BA33: 0 | BB33: 0 | BC33: 0 | BD33: 0 | BE33: 0 | BF33: 0 | BG33: 0 | BH33: 0 | BI33: 0 | BJ33: 0 | BK33: 0 | BL33: 0 | BM33: 0 | BN33: 1 | BO33: 0 | BP33: 0 | BQ33: 0 | BR33: 1 | BS33: 0 | BT33: 0 | BU33: 1 | BV33: 0 | BW33: 0 | BX33: 0 | BY33: 0 | BZ33: 0 | CA33: 0 | CB33: 0 | CC33: 0 | CD33: 0 | CE33: 0 | CF33: 0 | CG33: 0 | CH33: 0 | CI33: 0 | CJ33: 1 | CK33: 0 | CL33: 0 | CM33: 0 | CN33: 0
A34: 30 | B34: Luiz Otávio | C34: 31 | E34: 0 | G34: -5 | H34: 26 | I34: 5 | M34: 0 | O34: -5 | P34: 27 | Q34: 4 | U34: 0 | W34: -5 | X34: 17 | Y34: 14 | AB34: 14 | AC34: 17 | AF34: 20 | AG34: 11 | AK34: 0 | AO34: 0 | AS34: 0 | AW34: 0 | AY34: -5 | AZ34: 0 | BA34: 0 | BB34: 0 | BC34: 0 | BD34: 0 | BE34: 0 | BF34: 0 | BG34: 0 | BH34: 0 | BI34: 0 | BJ34: 0 | BK34: 0 | BL34: 0 | BM34: 1 | BN34: 0 | BO34: 0 | BP34: 1 | BQ34: 0 | BR34: 0 | BS34: 1 | BT34: 0 | BU34: 0 | BV34: 0 | BW34: 0 | BX34: 0 | BY34: 1 | BZ34: 1 | CA34: 0 | CB34: 0 | CC34: 0 | CD34: 0 | CE34: 0 | CF34: 0 | CG34: 0 | CH34: 0 | CI34: 0 | CJ34: 0 | CK34: 0 | CL34: 0 | CM34: 0 | CN34: 0
A35: 31 | B35: Jorge Prado | C35: 23 | E35: 0 | I35: 0 | M35: 0 | O35: -5 | P35: 23 | Q35: 8 | U35: 0 | W35: -5 | Y35: 0 | AC35: 0 | AG35: 0 | AI35: -5 | AK35: 0 | AM35: -5 | AN35: 10 | AO35: 24 | AS35: 0 | AV35: 20 | AW35: 11 | AY35: SIM | AZ35: 0 | BA35: 0 | BB35: 0 | BC35: 0 | BD35: 0 | BE35: 0 | BF35: 0 | BG35: 0 | BH35: 0 | BI35: 1 | BJ35: 0 | BK35: 0 | BL35: 0 | BM35: 0 | BN35: 0 | BO35: 0 | BP35: 0 | BQ35: 0 | BR35: 0 | BS35: 1 | BT35: 0 | BU35: 0 | BV35: 1 | BW35: 0 | BX35: 0 | BY35: 0 | BZ35: 0 | CA35: 0 | CB35: 0 | CC35: 0 | CD35: 0 | CE35: 0 | CF35: 0 | CG35: 0 | CH35: 0 | CI35: 0 | CJ35: 0 | CK35: 0 | CL35: 0 | CM35: 0 | CN35: 0
A36: 32 | B36: Cláudio Naves | C36: 22 | D36: 18 | E36: 13 | H36: 28 | I36: 3 | L36: 25 | M36: 6 | Q36: 0 | U36: 0 | Y36: 0 | AC36: 0 | AG36: 0 | AK36: 0 | AO36: 0 | AS36: 0 | AW36: 0 | AZ36: 0 | BA36: 0 | BB36: 0 | BC36: 0 | BD36: 0 | BE36: 0 | BF36: 0 | BG36: 0 | BH36: 0 | BI36: 0 | BJ36: 0 | BK36: 0 | BL36: 0 | BM36: 0 | BN36: 0 | BO36: 0 | BP36: 0 | BQ36: 1 | BR36: 0 | BS36: 0 | BT36: 0 | BU36: 0 | BV36: 0 | BW36: 0 | BX36: 1 | BY36: 0 | BZ36: 0 | CA36: 1 | CB36: 0 | CC36: 0 | CD36: 0 | CE36: 0 | CF36: 0 | CG36: 0 | CH36: 0 | CI36: 0 | CJ36: 0 | CK36: 0 | CL36: 0 | CM36: 0 | CN36: 0
A37: 33 | B37: Caetano | C37: 2 | E37: 0 | G37: -5 | H37: 0 | I37: 0 | K37: SIM | M37: 0 | P37: 17 | Q37: 14 | T37: 8 | U37: 28 | Y37: 0 | AA37: -5 | AC37: 0 | AE37: -5 | AG37: 0 | AI37: -5 | AK37: 0 | AM37: -5 | AO37: 0 | AQ37: -5 | AS37: 0 | AU37: -5 | AW37: 0 | AY37: -5 | AZ37: 0 | BA37: 0 | BB37: 0 | BC37: 0 | BD37: 0 | BE37: 0 | BF37: 0 | BG37: 1 | BH37: 0 | BI37: 0 | BJ37: 0 | BK37: 0 | BL37: 0 | BM37: 0 | BN37: 0 | BO37: 0 | BP37: 1 | BQ37: 0 | BR37: 0 | BS37: 0 | BT37: 0 | BU37: 0 | BV37: 0 | BW37: 0 | BX37: 0 | BY37: 0 | BZ37: 0 | CA37: 0 | CB37: 0 | CC37: 0 | CD37: 0 | CE37: 0 | CF37: 0 | CG37: 0 | CH37: 0 | CI37: 0 | CJ37: 0 | CK37: 0 | CL37: 0 | CM37: 0 | CN37: 0
A38: 34 | B38: SS | C38: 0 | E38: 0 | I38: 0 | M38: 0 | Q38: 0 | U38: 0 | Y38: 0 | AC38: 0 | AG38: 0 | AK38: 0 | AO38: 0 | AS38: 0 | AW38: 0 | AZ38: 1 | BA38: 0 | BB38: 0 | BC38: 2 | BD38: 1 | BE38: 1 | BF38: 1 | BG38: 1 | BH38: 0 | BI38: 0 | BJ38: 2 | BK38: 1 | BL38: 0 | BM38: 1 | BN38: 0 | BO38: 0 | BP38: 0 | BQ38: 0 | BR38: 0 | BS38: 1 | BT38: 0 | BU38: 0 | BV38: 1 | BW38: 0 | BX38: 0 | BY38: 1 | BZ38: 0 | CA38: 2 | CB38: 0 | CC38: 0 | CD38: 0 | CE38: 0 | CF38: 0 | CG38: 0 | CH38: 0 | CI38: 0 | CJ38: 0 | CK38: 0 | CL38: 0 | CM38: 0 | CN38: 0
A39: 35 | B39: SSSS | C39: 0 | E39: 0 | I39: 0 | M39: 0 | Q39: 0 | U39: 0 | Y39: 0 | AC39: 0 | AG39: 0 | AK39: 0 | AO39: 0 | AS39: 0 | AW39: 0 | AZ39: 1 | BA39: 0 | BB39: 0 | BC39: 1 | BD39: 0 | BE39: 0 | BF39: 1 | BG39: 0 | BH39: 0 | BI39: 0 | BJ39: 2 | BK39: 1 | BL39: 0 | BM39: 0 | BN39: 0 | BO39: 0 | BP39: 0 | BQ39: 0 | BR39: 0 | BS39: 1 | BT39: 0 | BU39: 0 | BV39: 1 | BW39: 0 | BX39: 0 | BY39: 1 | BZ39: 0 | CA39: 1 | CB39: 0 | CC39: 0 | CD39: 0 | CE39: 0 | CF39: 0 | CG39: 0 | CH39: 0 | CI39: 0 | CJ39: 0 | CK39: 0 | CL39: 0 | CM39: 0 | CN39: 0
A40: 36 | B40: SSSSSSS | C40: 0 | E40: 0 | I40: 0 | M40: 0 | Q40: 0 | U40: 0 | Y40: 0 | AC40: 0 | AG40: 0 | AK40: 0 | AO40: 0 | AS40: 0 | AW40: 0 | AZ40: 0 | BA40: 0 | BB40: 0 | BC40: 0 | BD40: 0 | BE40: 0 | BF40: 0 | BG40: 0 | BH40: 0 | BI40: 0 | BJ40: 0 | BK40: 0 | BL40: 0 | BM40: 0 | BN40: 0 | BO40: 0 | BP40: 0 | BQ40: 0 | BR40: 0 | BS40: 1 | BT40: 0 | BU40: 0 | BV40: 1 | BW40: 0 | BX40: 0 | BY40: 0 | BZ40: 0 | CA40: 1 | CB40: 0 | CC40: 0 | CD40: 0 | CE40: 0 | CF40: 0 | CG40: 0 | CH40: 0 | CI40: 0 | CJ40: 0 | CK40: 0 | CL40: 0 | CM40: 0 | CN40: 0
A41: 37 | B41: Edson Ribeiro | C41: 0 | E41: 0 | G41: -5 | H41: 25 | I41: 6 | M41: 0 | O41: -5 | Q41: 0 | S41: -5 | U41: 0 | W41: -5 | Y41: 0 | AA41: -5 | AC41: 0 | AE41: -5 | AG41: 0 | AI41: -5 | AK41: 0 | AM41: -5 | AO41: 0 | AQ41: -5 | AS41: 0 | AU41: -5 | AW41: 0 | AY41: -5 | AZ41: 0 | BA41: 0 | BB41: 0 | BC41: 0 | BD41: 0 | BE41: 0 | BF41: 0 | BG41: 0 | BH41: 0 | BI41: 0 | BJ41: 0 | BK41: 0 | BL41: 0 | BM41: 0 | BN41: 0 | BO41: 0 | BP41: 0 | BQ41: 0 | BR41: 0 | BS41: 0 | BT41: 0 | BU41: 0 | BV41: 0 | BW41: 0 | BX41: 1 | BY41: 0 | BZ41: 0 | CA41: 0 | CB41: 0 | CC41: 0 | CD41: 0 | CE41: 0 | CF41: 0 | CG41: 0 | CH41: 0 | CI41: 0 | CJ41: 0 | CK41: 0 | CL41: 0 | CM41: 0 | CN41: 0
A42: 38 | B42: Henrique Castilho | C42: 0 | E42: 0 | G42: -5 | I42: 0 | K42: -5 | M42: 0 | O42: -5 | Q42: 0 | S42: -5 | U42: 0 | W42: -5 | Y42: 0 | AA42: -5 | AC42: 0 | AE42: -5 | AG42: 0 | AK42: 0 | AM42: -5 | AO42: 0 | AQ42: -5 | AS42: 0 | AW42: 0 | AY42: -5 | AZ42: 0 | BA42: 0 | BB42: 0 | BC42: 0 | BD42: 0 | BE42: 0 | BF42: 0 | BG42: 0 | BH42: 0 | BI42: 0 | BJ42: 0 | BK42: 0 | BL42: 0 | BM42: 0 | BN42: 0 | BO42: 0 | BP42: 0 | BQ42: 0 | BR42: 0 | BS42: 0 | BT42: 0 | BU42: 0 | BV42: 0 | BW42: 0 | BX42: 0 | BY42: 0 | BZ42: 0 | CA42: 0 | CB42: 0 | CC42: 0 | CD42: 0 | CE42: 0 | CF42: 0 | CG42: 0 | CH42: 0 | CI42: 0 | CJ42: 0 | CK42: 0 | CL42: 0 | CM42: 0 | CN42: 0
A43: 39 | B43: Marcus Reis | C43: 0 | E43: 0 | I43: 0 | K43: -5 | M43: 0 | Q43: 0 | U43: 0 | Y43: 0 | AA43: -5 | AC43: 0 | AE43: -5 | AG43: 0 | AI43: -5 | AK43: 0 | AM43: -5 | AO43: 0 | AQ43: -5 | AS43: 0 | AU43: -5 | AW43: 0 | AY43: -5 | AZ43: 0 | BA43: 0 | BB43: 0 | BC43: 0 | BD43: 0 | BE43: 0 | BF43: 0 | BG43: 0 | BH43: 0 | BI43: 0 | BJ43: 0 | BK43: 0 | BL43: 0 | BM43: 0 | BN43: 0 | BO43: 0 | BP43: 0 | BQ43: 0 | BR43: 0 | BS43: 0 | BT43: 0 | BU43: 0 | BV43: 0 | BW43: 0 | BX43: 0 | BY43: 0 | BZ43: 0 | CA43: 0 | CB43: 0 | CC43: 0 | CD43: 0 | CE43: 0 | CF43: 0 | CG43: 0 | CH43: 0 | CI43: 0 | CJ43: 0 | CK43: 0 | CL43: 0 | CM43: 0 | CN43: 0
A44: 40 | C44: 0 | E44: 0 | I44: 0 | M44: 0 | Q44: 0 | U44: 0 | Y44: 0 | AC44: 0 | AG44: 0 | AK44: 0 | AO44: 0 | AS44: 0 | AW44: 0 | AZ44: 0 | BA44: 0 | BB44: 0 | BC44: 0 | BD44: 0 | BE44: 0 | BF44: 0 | BG44: 0 | BH44: 0 | BI44: 0 | BJ44: 0 | BK44: 0 | BL44: 0 | BM44: 0 | BN44: 0 | BO44: 0 | BP44: 0 | BQ44: 0 | BR44: 0 | BS44: 0 | BT44: 0 | BU44: 0 | BV44: 0 | BW44: 0 | BX44: 0 | BY44: 0 | BZ44: 0 | CA44: 0 | CB44: 0 | CC44: 0 | CD44: 0 | CE44: 0 | CF44: 0 | CG44: 0 | CH44: 0 | CI44: 0 | CJ44: 0 | CK44: 0 | CL44: 0 | CM44: 0 | CN44: 0
A45: 41 | C45: 0 | E45: 0 | I45: 0 | M45: 0 | Q45: 0 | U45: 0 | Y45: 0 | AC45: 0 | AG45: 0 | AK45: 0 | AO45: 0 | AS45: 0 | AW45: 0 | AZ45: 0 | BA45: 0 | BB45: 0 | BC45: 0 | BD45: 0 | BE45: 0 | BF45: 0 | BG45: 0 | BH45: 0 | BI45: 0 | BJ45: 0 | BK45: 0 | BL45: 0 | BM45: 0 | BN45: 0 | BO45: 0 | BP45: 0 | BQ45: 0 | BR45: 0 | BS45: 0 | BT45: 0 | BU45: 0 | BV45: 0 | BW45: 0 | BX45: 0 | BY45: 0 | BZ45: 0 | CA45: 0 | CB45: 0 | CC45: 0 | CD45: 0 | CE45: 0 | CF45: 0 | CG45: 0 | CH45: 0 | CI45: 0 | CJ45: 0 | CK45: 0 | CL45: 0 | CM45: 0 | CN45: 0
A46: 42 | C46: 0 | E46: 0 | I46: 0 | M46: 0 | Q46: 0 | U46: 0 | Y46: 0 | AC46: 0 | AG46: 0 | AK46: 0 | AO46: 0 | AS46: 0 | AW46: 0 | AZ46: 0 | BA46: 0 | BB46: 0 | BC46: 0 | BD46: 0 | BE46: 0 | BF46: 0 | BG46: 0 | BH46: 0 | BI46: 0 | BJ46: 0 | BK46: 0 | BL46: 0 | BM46: 0 | BN46: 0 | BO46: 0 | BP46: 0 | BQ46: 0 | BR46: 0 | BS46: 0 | BT46: 0 | BU46: 0 | BV46: 0 | BW46: 0 | BX46: 0 | BY46: 0 | BZ46: 0 | CA46: 0 | CB46: 0 | CC46: 0 | CD46: 0 | CE46: 0 | CF46: 0 | CG46: 0 | CH46: 0 | CI46: 0 | CJ46: 0 | CK46: 0 | CL46: 0 | CM46: 0 | CN46: 0
A47: 43 | C47: 0 | E47: 0 | I47: 0 | M47: 0 | Q47: 0 | U47: 0 | Y47: 0 | AC47: 0 | AG47: 0 | AK47: 0 | AO47: 0 | AS47: 0 | AW47: 0 | AZ47: 0 | BA47: 0 | BB47: 0 | BC47: 0 | BD47: 0 | BE47: 0 | BF47: 0 | BG47: 0 | BH47: 0 | BI47: 0 | BJ47: 0 | BK47: 0 | BL47: 0 | BM47: 0 | BN47: 0 | BO47: 0 | BP47: 0 | BQ47: 0 | BR47: 0 | BS47: 0 | BT47: 0 | BU47: 0 | BV47: 0 | BW47: 0 | BX47: 0 | BY47: 0 | BZ47: 0 | CA47: 0 | CB47: 0 | CC47: 0 | CD47: 0 | CE47: 0 | CF47: 0 | CG47: 0 | CH47: 0 | CI47: 0 | CJ47: 0 | CK47: 0 | CL47: 0 | CM47: 0 | CN47: 0
A48: 44 | C48: 0 | E48: 0 | I48: 0 | M48: 0 | Q48: 0 | U48: 0 | Y48: 0 | AC48: 0 | AG48: 0 | AK48: 0 | AO48: 0 | AS48: 0 | AW48: 0 | AZ48: 0 | BA48: 0 | BB48: 0 | BC48: 0 | BD48: 0 | BE48: 0 | BF48: 0 | BG48: 0 | BH48: 0 | BI48: 0 | BJ48: 0 | BK48: 0 | BL48: 0 | BM48: 0 | BN48: 0 | BO48: 0 | BP48: 0 | BQ48: 0 | BR48: 0 | BS48: 0 | BT48: 0 | BU48: 0 | BV48: 0 | BW48: 0 | BX48: 0 | BY48: 0 | BZ48: 0 | CA48: 0 | CB48: 0 | CC48: 0 | CD48: 0 | CE48: 0 | CF48: 0 | CG48: 0 | CH48: 0 | CI48: 0 | CJ48: 0 | CK48: 0 | CL48: 0 | CM48: 0 | CN48: 0
A49: 45 | C49: 0 | E49: 0 | I49: 0 | M49: 0 | Q49: 0 | U49: 0 | Y49: 0 | AC49: 0 | AG49: 0 | AK49: 0 | AO49: 0 | AS49: 0 | AW49: 0 | AZ49: 0 | BA49: 0 | BB49: 0 | BC49: 0 | BD49: 0 | BE49: 0 | BF49: 0 | BG49: 0 | BH49: 0 | BI49: 0 | BJ49: 0 | BK49: 0 | BL49: 0 | BM49: 0 | BN49: 0 | BO49: 0 | BP49: 0 | BQ49: 0 | BR49: 0 | BS49: 0 | BT49: 0 | BU49: 0 | BV49: 0 | BW49: 0 | BX49: 0 | BY49: 0 | BZ49: 0 | CA49: 0 | CB49: 0 | CC49: 0 | CD49: 0 | CE49: 0 | CF49: 0 | CG49: 0 | CH49: 0 | CI49: 0 | CJ49: 0 | CK49: 0 | CL49: 0 | CM49: 0 | CN49: 0

Sheet Class. elimin. 2 piores res
A1: 2022 | E1: OK | I1: OK | M1: OK | Q1: OK | U1: OK | Y1: OK | AC1: OK | AG1: OK | AK1: OK | AO1: OK | AS1: OK | AW1: OK
D2: 1ª etapa | H2: 2ª etapa | L2: 3ª etapa | P2: 4ª etapa | T2: 5ª etapa | X2: 6ª etapa | AB2: 7ª etapa | AF2: 8ª etapa | AJ2: 9ª etapa | AN2: 10ª etapa | AR2: 11ª etapa | AV2: 12ª etapa
L3: 17/03/2022 - 20:30
B4: Nome do (a) Piloto (a) | C4: Pontuação Geral | D4: Posição | E4: Pontos | F4: Bônus | G4: Penalidade | H4: Posição | I4: Pontos | J4: Bônus | K4: Penalidade | L4: Posição | M4: Pontos | N4: Bônus | O4: Penalidade | P4: Posição | Q4: Pontos | R4: Bônus | S4: Penalidade | T4: Posição | U4: Pontos | V4: Bônus | W4: Penalidade | X4: Posição | Y4: Pontos | Z4: Bônus | AA4: Penalidade | AB4: Posição | AC4: Pontos | AD4: Bônus | AE4: Penalidade | AF4: Posição | AG4: Pontos | AH4: Bônus | AI4: Penalidade | AJ4: Posição | AK4: Pontos | AL4: Bônus | AM4: Penalidade | AN4: Posição | AO4: Pontos | AP4: Bônus | AQ4: Penalidade | AR4: Posição | AS4: Pontos | AT4: Bônus | AU4: Penalidade | AV4: Posição | AW4: Pontos | AX4: Bônus | AY4: Penalidade | AZ4: 1º LUGAR | BA4: 2º LUGAR | BB4: 3º LUGAR | BC4: 4º LUGAR | BD4: 5º LUGAR | BE4: 6º LUGAR | BF4: 7º LUGAR | BG4: 8º LUGAR | BH4: 9º LUGAR | BI4: 10º LUGAR | BJ4: 11º LUGAR | BK4: 12º LUGAR | BL4: 13º LUGAR | BM4: 14º LUGAR | BN4: 15º LUGAR | BO4: 16º LUGAR | BP4: 17º LUGAR | BQ4: 18º LUGAR | BR4: 19º LUGAR | BS4: 20º LUGAR | BT4: 21º LUGAR | BU4: 22º LUGAR | BV4: 23º LUGAR | BW4: 24º LUGAR | BX4: 25º LUGAR | BY4: 26º LUGAR | BZ4: 27º LUGAR | CA4: 28º LUGAR | CB4: 29º LUGAR | CC4: 30º LUGAR | CD4: 31º LUGAR | CE4: 32º LUGAR | CF4: 33º LUGAR | CG4: 34º LUGAR | CH4: 35º LUGAR | CI4: 36º LUGAR | CJ4: 37º LUGAR | CK4: 38º LUGAR | CL4: 39º LUGAR | CM4: 40º LUGAR | CN4: 41º LUGAR
A5: 1 | B5: Marcelo Clemente | C5: 397 | D5: 1 | E5: 45 | F5: 1 | H5: 2 | I5: 41 | L5: 5 | M5: 34 | N5: 1 | P5: 1 | Q5: 45 | R5: 1 | T5: 22 | U5: 9* | X5: 2 | Y5: 41 | Z5: 1 | AB5: 1 | AC5: 45 | AG5: 0* | AJ5: 8 | AK5: 28 | AN5: 1 | AO5: 45 | AR5: 1 | AS5: 45 | AV5: 10 | AW5: 24 | AZ5: 5 | BA5: 2 | BB5: 0 | BC5: 0 | BD5: 1 | BE5: 0 | BF5: 0 | BG5: 1 | BH5: 0 | BI5: 1 | BJ5: 0 | BK5: 0 | BL5: 0 | BM5: 0 | BN5: 0 | BO5: 0 | BP5: 0 | BQ5: 0 | BR5: 0 | BS5: 0 | BT5: 0 | BU5: 1 | BV5: 0 | BW5: 0 | BX5: 0 | BY5: 0 | BZ5: 0 | CA5: 0 | CB5: 0 | CC5: 0 | CD5: 0 | CE5: 0 | CF5: 0 | CG5: 0 | CH5: 0 | CI5: 0 | CJ5: 0 | CK5: 0 | CL5: 0 | CM5: 0 | CN5: 0
A6: 2 | B6: Alexandre Melillo | C6: 370 | D6: 19 | E6: 12* | I6: 0* | L6: 1 | M6: 45 | P6: 12 | Q6: 20 | T6: 1 | U6: 45 | V6: 1 | X6: 5 | Y6: 34 | AB6: 4 | AC6: 36 | AD6: 1 | AF6: 4 | AG6: 36 | AH6: 1 | AJ6: 1 | AK6: 45 | AN6: 13 | AO6: 18 | AQ6: SIM | AR6: 2 | AS6: 41 | AT6: 1 | AV6: 1 | AW6: 45 | AX6: 1 | AZ6: 4 | BA6: 1 | BB6: 0 | BC6: 2 | BD6: 1 | BE6: 0 | BF6: 0 | BG6: 0 | BH6: 0 | BI6: 0 | BJ6: 0 | BK6: 1 | BL6: 1 | BM6: 0 | BN6: 0 | BO6: 0 | BP6: 0 | BQ6: 0 | BR6: 1 | BS6: 0 | BT6: 0 | BU6: 0 | BV6: 0 | BW6: 0 | BX6: 0 | BY6: 0 | BZ6: 0 | CA6: 0 | CB6: 0 | CC6: 0 | CD6: 0 | CE6: 0 | CF6: 0 | CG6: 0 | CH6: 0 | CI6: 0 | CJ6: 0 | CK6: 0 | CL6: 0 | CM6: 0 | CN6: 0
A7: 3 | B7: Guilherme Janot | C7: 348 | D7: 2 | E7: 41 | H7: 7 | I7: 30 | L7: 11 | M7: 22 | P7: 14 | Q7: 17* | T7: 18 | U7: 13* | X7: 3 | Y7: 38 | AB7: 6 | AC7: 32 | AF7: 1 | AG7: 45 | AJ7: 3 | AK7: 38 | AN7: 2 | AO7: 41 | AR7: 12 | AS7: 20 | AU7: SIM | AV7: 2 | AW7: 41 | AZ7: 1 | BA7: 3 | BB7: 2 | BC7: 0 | BD7: 0 | BE7: 1 | BF7: 1 | BG7: 0 | BH7: 0 | BI7: 0 | BJ7: 1 | BK7: 1 | BL7: 0 | BM7: 1 | BN7: 0 | BO7: 0 | BP7: 0 | BQ7: 1 | BR7: 0 | BS7: 0 | BT7: 0 | BU7: 0 | BV7: 0 | BW7: 0 | BX7: 0 | BY7: 0 | BZ7: 0 | CA7: 0 | CB7: 0 | CC7: 0 | CD7: 0 | CE7: 0 | CF7: 0 | CG7: 0 | CH7: 0 | CI7: 0 | CJ7: 0 | CK7: 0 | CL7: 0 | CM7: 0 | CN7: 0
A8: 4 | B8: Marcelo Sant'anna | C8: 331 | D8: 3 | E8: 38 | H8: 5 | I8: 34 | M8: 0* | P8: 15 | Q8: 16 | T8: 4 | U8: 36 | X8: 8 | Y8: 28 | AB8: 2 | AC8: 41 | AF8: 8 | AG8: 28 | AJ8: 16 | AK8: 15* | AN8: 4 | AO8: 36 | AR8: 4 | AS8: 36 | AV8: 3 | AW8: 38 | AZ8: 0 | BA8: 1 | BB8: 2 | BC8: 3 | BD8: 1 | BE8: 0 | BF8: 0 | BG8: 2 | BH8: 0 | BI8: 0 | BJ8: 0 | BK8: 0 | BL8: 0 | BM8: 0 | BN8: 1 | BO8: 1 | BP8: 0 | BQ8: 0 | BR8: 0 | BS8: 0 | BT8: 0 | BU8: 0 | BV8: 0 | BW8: 0 | BX8: 0 | BY8: 0 | BZ8: 0 | CA8: 0 | CB8: 0 | CC8: 0 | CD8: 0 | CE8: 0 | CF8: 0 | CG8: 0 | CH8: 0 | CI8: 0 | CJ8: 0 | CK8: 0 | CL8: 0 | CM8: 0 | CN8: 0
A9: 5 | B9: Rodrigo Mercadante | C9: 319 | D9: 7 | E9: 30 | H9: 6 | I9: 32 | L9: 4 | M9: 36 | P9: 9 | Q9: 26 | T9: 2 | U9: 41 | X9: 12 | Y9: 20 | AB9: 15 | AC9: 16* | AF9: 6 | AG9: 32 | AJ9: 5 | AK9: 34 | AO9: 0* | AR9: 6 | AS9: 32 | AV9: 4 | AW9: 36 | AZ9: 0 | BA9: 1 | BB9: 0 | BC9: 2 | BD9: 1 | BE9: 3 | BF9: 1 | BG9: 0 | BH9: 1 | BI9: 0 | BJ9: 0 | BK9: 1 | BL9: 0 | BM9: 0 | BN9: 1 | BO9: 0 | BP9: 0 | BQ9: 0 | BR9: 0 | BS9: 0 | BT9: 0 | BU9: 0 | BV9: 0 | BW9: 0 | BX9: 0 | BY9: 0 | BZ9: 0 | CA9: 0 | CB9: 0 | CC9: 0 | CD9: 0 | CE9: 0 | CF9: 0 | CG9: 0 | CH9: 0 | CI9: 0 | CJ9: 0 | CK9: 0 | CL9: 0 | CM9: 0 | CN9: 0
A10: 6 | B10: Jarbas Reis | C10: 307 | D10: 8 | E10: 28 | H10: 8 | I10: 28 | L10: 2 | M10: 41 | P10: 3 | Q10: 38 | T10: 16 | U10: 15* | X10: 10 | Y10: 24 | AB10: 7 | AC10: 30 | AF10: 13 | AG10: 18 | AJ10: 19 | AK10: 12* | AN10: 8 | AO10: 28 | AR10: 3 | AS10: 38 | AV10: 5 | AW10: 34 | AZ10: 0 | BA10: 1 | BB10: 2 | BC10: 0 | BD10: 1 | BE10: 0 | BF10: 1 | BG10: 3 | BH10: 0 | BI10: 1 | BJ10: 0 | BK10: 0 | BL10: 1 | BM10: 0 | BN10: 0 | BO10: 1 | BP10: 0 | BQ10: 0 | BR10: 1 | BS10: 0 | BT10: 0 | BU10: 0 | BV10: 0 | BW10: 0 | BX10: 0 | BY10: 0 | BZ10: 0 | CA10: 0 | CB10: 0 | CC10: 0 | CD10: 0 | CE10: 0 | CF10: 0 | CG10: 0 | CH10: 0 | CI10: 0 | CJ10: 0 | CK10: 0 | CL10: 0 | CM10: 0 | CN10: 0
A11: 7 | B11: Claudio Junqueira | C11: 279 | D11: 9 | E11: 26 | H11: 19 | I11: 12* | L11: 3 | M11: 38 | P11: 5 | Q11: 34 | T11: 21 | U11: 10 | W11: SIM | X11: 9 | Y11: 26 | AB11: 3 | AC11: 38 | AF11: 7 | AG11: 30 | AJ11: 4 | AK11: 36 | AN11: 15 | AO11: 16 | AR11: 7 | AS11: 30 | AW11: 0* | AY11: -5 | AZ11: 0 | BA11: 0 | BB11: 2 | BC11: 1 | BD11: 1 | BE11: 0 | BF11: 2 | BG11: 0 | BH11: 2 | BI11: 0 | BJ11: 0 | BK11: 0 | BL11: 0 | BM11: 0 | BN11: 1 | BO11: 0 | BP11: 0 | BQ11: 0 | BR11: 1 | BS11: 0 | BT11: 1 | BU11: 0 | BV11: 0 | BW11: 0 | BX11: 0 | BY11: 0 | BZ11: 0 | CA11: 0 | CB11: 0 | CC11: 0 | CD11: 0 | CE11: 0 | CF11: 0 | CG11: 0 | CH11: 0 | CI11: 0 | CJ11: 0 | CK11: 0 | CL11: 0 | CM11: 0 | CN11: 0
A12: 8 | B12: Carlos Sampaio | C12: 267 | D12: 14 | E12: 17 | H12: 17 | I12: 14* | L12: 9 | M12: 26 | P12: 19 | Q12: 12* | T12: 15 | U12: 16 | X12: 15 | Y12: 16 | AB12: 5 | AC12: 34 | AF12: 3 | AG12: 38 | AJ12: 6 | AK12: 32 | AN12: 5 | AO12: 34 | AR12: 9 | AS12: 26 | AV12: 8 | AW12: 28 | AZ12: 0 | BA12: 0 | BB12: 1 | BC12: 0 | BD12: 2 | BE12: 1 | BF12: 0 | BG12: 1 | BH12: 2 | BI12: 0 | BJ12: 0 | BK12: 0 | BL12: 0 | BM12: 1 | BN12: 2 | BO12: 0 | BP12: 1 | BQ12: 0 | BR12: 1 | BS12: 0 | BT12: 0 | BU12: 0 | BV12: 0 | BW12: 0 | BX12: 0 | BY12: 0 | BZ12: 0 | CA12: 0 | CB12: 0 | CC12: 0 | CD12: 0 | CE12: 0 | CF12: 0 | CG12: 0 | CH12: 0 | CI12: 0 | CJ12: 0 | CK12: 0 | CL12: 0 | CM12: 0 | CN12: 0
A13: 9 | B13: Lucio Chequer | C13: 263 | D13: 10 | E13: 24 | H13: 9 | I13: 26 | L13: 7 | M13: 30 | P13: 6 | Q13: 32 | U13: 0* | X13: 27 | Y13: 4* | AB13: 18 | AC13: 13 | AE13: SIM | AF13: 5 | AG13: 34 | AJ13: 9 | AK13: 26 | AN13: 6 | AO13: 32 | AR13: 17 | AS13: 14 | AV13: 6 | AW13: 32 | AZ13: 0 | BA13: 0 | BB13: 0 | BC13: 0 | BD13: 1 | BE13: 3 | BF13: 1 | BG13: 0 | BH13: 2 | BI13: 1 | BJ13: 0 | BK13: 0 | BL13: 0 | BM13: 0 | BN13: 0 | BO13: 0 | BP13: 1 | BQ13: 1 | BR13: 0 | BS13: 0 | BT13: 0 | BU13: 0 | BV13: 0 | BW13: 0 | BX13: 0 | BY13: 0 | BZ13: 1 | CA13: 0 | CB13: 0 | CC13: 0 | CD13: 0 | CE13: 0 | CF13: 0 | CG13: 0 | CH13: 0 | CI13: 0 | CJ13: 0 | CK13: 0 | CL13: 0 | CM13: 0 | CN13: 0
A14: 10 | B14: Carlos Eduardo | C14: 244 | D14: 23 | E14: 8 | H14: 4 | I14: 36 | L14: 27 | M14: 4* | P14: 10 | Q14: 24 | T14: 3 | U14: 38 | X14: 13 | Y14: 18 | AC14: 0* | AF14: 31 | AG14: 1 | AI14: SIM | AJ14: 2 | AK14: 41 | AL14: 1 | AN14: 14 | AO14: 17 | AR14: 5 | AS14: 34 | AV14: 9 | AW14: 26 | AZ14: 0 | BA14: 1 | BB14: 1 | BC14: 1 | BD14: 1 | BE14: 0 | BF14: 0 | BG14: 0 | BH14: 1 | BI14: 1 | BJ14: 0 | BK14: 0 | BL14: 1 | BM14: 1 | BN14: 0 | BO14: 0 | BP14: 0 | BQ14: 0 | BR14: 0 | BS14: 0 | BT14: 0 | BU14: 0 | BV14: 1 | BW14: 0 | BX14: 0 | BY14: 0 | BZ14: 1 | CA14: 0 | CB14: 0 | CC14: 0 | CD14: 1 | CE14: 0 | CF14: 0 | CG14: 0 | CH14: 0 | CI14: 0 | CJ14: 0 | CK14: 0 | CL14: 0 | CM14: 0 | CN14: 0
A15: 11 | B15: Euclides Almeida | C15: 182 | E15: 0* | H15: 18 | I15: 13 | M15: 0* | P15: 20 | Q15: 11 | T15: 11 | U15: 22 | X15: 20 | Y15: 11 | AB15: 9 | AC15: 26 | AE15: SIM | AF15: 9 | AG15: 26 | AJ15: 13 | AK15: 18 | AN15: 3 | AO15: 38 | AR15: 14 | AS15: 17 | AW15: 0 | AZ15: 0 | BA15: 0 | BB15: 1 | BC15: 0 | BD15: 0 | BE15: 0 | BF15: 0 | BG15: 0 | BH15: 2 | BI15: 0 | BJ15: 1 | BK15: 0 | BL15: 1 | BM15: 1 | BN15: 0 | BO15: 0 | BP15: 0 | BQ15: 1 | BR15: 0 | BS15: 2 | BT15: 0 | BU15: 0 | BV15: 0 | BW15: 0 | BX15: 0 | BY15: 0 | BZ15: 0 | CA15: 0 | CB15: 0 | CC15: 0 | CD15: 0 | CE15: 0 | CF15: 0 | CG15: 0 | CH15: 0 | CI15: 0 | CJ15: 0 | CK15: 0 | CL15: 0 | CM15: 0 | CN15: 0
A16: 12 | B16: Hélio Chagas | C16: 147 | D16: 21 | E16: 10 | H16: 27 | I16: 4* | L16: 22 | M16: 9 | P16: 26 | Q16: 5 | T16: 12 | U16: 20 | X16: 23 | Y16: 8 | AB16: 12 | AC16: 20 | AF16: 18 | AG16: 13 | AK16: 0* | AN16: 11 | AO16: 22 | AR16: 10 | AS16: 24 | AV16: 15 | AW16: 16 | AZ16: 0 | BA16: 0 | BB16: 0 | BC16: 0 | BD16: 0 | BE16: 0 | BF16: 0 | BG16: 0 | BH16: 0 | BI16: 1 | BJ16: 1 | BK16: 2 | BL16: 0 | BM16: 0 | BN16: 1 | BO16: 0 | BP16: 0 | BQ16: 1 | BR16: 0 | BS16: 0 | BT16: 1 | BU16: 1 | BV16: 1 | BW16: 0 | BX16: 0 | BY16: 1 | BZ16: 1 | CA16: 0 | CB16: 0 | CC16: 0 | CD16: 0 | CE16: 0 | CF16: 0 | CG16: 0 | CH16: 0 | CI16: 0 | CJ16: 0 | CK16: 0 | CL16: 0 | CM16: 0 | CN16: 0
A17: 13 | B17: Maurílio Carmo | C17: 145 | E17: 0* | G17: -5 | I17: 0* | K17: -5 | L17: 18 | M17: 13 | Q17: 0 | S17: -5 | T17: 19 | U17: 12 | X17: 19 | Y17: 12 | AB17: 16 | AC17: 15 | AF17: 10 | AG17: 24 | AJ17: 12 | AK17: 20 | AN17: 9 | AO17: 26 | AR17: 13 | AS17: 18 | AV17: 12 | AW17: 20 | AZ17: 0 | BA17: 0 | BB17: 0 | BC17: 0 | BD17: 0 | BE17: 0 | BF17: 0 | BG17: 0 | BH17: 1 | BI17: 1 | BJ17: 0 | BK17: 2 | BL17: 1 | BM17: 0 | BN17: 0 | BO17: 1 | BP17: 0 | BQ17: 1 | BR17: 2 | BS17: 0 | BT17: 0 | BU17: 0 | BV17: 0 | BW17: 0 | BX17: 0 | BY17: 0 | BZ17: 0 | CA17: 0 | CB17: 0 | CC17: 0 | CD17: 0 | CE17: 0 | CF17: 0 | CG17: 0 | CH17: 0 | CI17: 0 | CJ17: 0 | CK17: 0 | CL17: 0 | CM17: 0 | CN17: 0
A18: 14 | B18: Morvan | C18: 144 | D18: 17 | E18: 14 | H18: 10 | I18: 24 | M18: 0* | Q18: 0* | T18: 26 | U18: 5 | X18: 11 | Y18: 22 | AB18: 11 | AC18: 22 | AF18: 11 | AG18: 22 | AJ18: 15 | AK18: 16 | AO18: 0 | AR18: 16 | AS18: 15 | AV18: 27 | AW18: 4 | AY18: SIM | AZ18: 0 | BA18: 0 | BB18: 0 | BC18: 0 | BD18: 0 | BE18: 0 | BF18: 0 | BG18: 0 | BH18: 0 | BI18: 1 | BJ18: 3 | BK18: 0 | BL18: 0 | BM18: 0 | BN18: 1 | BO18: 1 | BP18: 1 | BQ18: 0 | BR18: 0 | BS18: 0 | BT18: 0 | BU18: 0 | BV18: 0 | BW18: 0 | BX18: 0 | BY18: 1 | BZ18: 1 | CA18: 0 | CB18: 0 | CC18: 0 | CD18: 0 | CE18: 0 | CF18: 0 | CG18: 0 | CH18: 0 | CI18: 0 | CJ18: 0 | CK18: 0 | CL18: 0 | CM18: 0 | CN18: 0
A19: 15 | B19: Enio Júnior | C19: 137 | E19: 0* | H19: 24 | I19: 7 | L19: 15 | M19: 16 | P19: 18 | Q19: 13 | T19: 14 | U19: 17 | X19: 26 | Y19: 5 | AB19: 8 | AC19: 28 | AF19: 19 | AG19: 12 | AI19: SIM | AK19: 0* | AM19: -5 | AO19: 0 | AR19: 11 | AS19: 22 | AV19: 11 | AW19: 22 | AZ19: 0 | BA19: 0 | BB19: 0 | BC19: 0 | BD19: 0 | BE19: 0 | BF19: 0 | BG19: 1 | BH19: 0 | BI19: 0 | BJ19: 2 | BK19: 0 | BL19: 0 | BM19: 1 | BN19: 1 | BO19: 0 | BP19: 0 | BQ19: 1 | BR19: 1 | BS19: 0 | BT19: 0 | BU19: 0 | BV19: 0 | BW19: 1 | BX19: 0 | BY19: 1 | BZ19: 0 | CA19: 0 | CB19: 0 | CC19: 0 | CD19: 0 | CE19: 0 | CF19: 0 | CG19: 0 | CH19: 0 | CI19: 0 | CJ19: 0 | CK19: 0 | CL19: 0 | CM19: 0 | CN19: 0
A20: 16 | B20: Marcelo Junqueira | C20: 131 | D20: 12 | E20: 20 | H20: 16 | I20: 15 | L20: 10 | M20: 24 | P20: 7 | Q20: 30 | T20: 9 | U20: 26 | X20: 14 | Y20: 17 | AC20: 0* | AE20: -5 | AG20: 0* | AJ20: 17 | AK20: 14 | AO20: 0 | AS20: 0 | AU20: -5 | AW20: 0 | AY20: -5 | AZ20: 0 | BA20: 0 | BB20: 0 | BC20: 0 | BD20: 0 | BE20: 0 | BF20: 1 | BG20: 0 | BH20: 1 | BI20: 1 | BJ20: 0 | BK20: 1 | BL20: 0 | BM20: 1 | BN20: 0 | BO20: 1 | BP20: 1 | BQ20: 0 | BR20: 0 | BS20: 0 | BT20: 0 | BU20: 0 | BV20: 0 | BW20: 0 | BX20: 0 | BY20: 0 | BZ20: 0 | CA20: 0 | CB20: 0 | CC20: 0 | CD20: 0 | CE20: 0 | CF20: 0 | CG20: 0 | CH20: 0 | CI20: 0 | CJ20: 0 | CK20: 0 | CL20: 0 | CM20: 0 | CN20: 0
A21: 17 | B21: Ivan Renault | C21: 127 | D21: 22 | E21: 9 | I21: 0* | L21: 23 | M21: 8 | P21: 25 | Q21: 6 | T21: 17 | U21: 14 | X21: 24 | Y21: 7 | AA21: SIM | AC21: 0* | AG21: 0 | AI21: -5 | AK21: 0 | AN21: 7 | AO21: 30 | AR21: 8 | AS21: 28 | AV21: 7 | AW21: 30 | AZ21: 0 | BA21: 0 | BB21: 0 | BC21: 0 | BD21: 0 | BE21: 0 | BF21: 2 | BG21: 1 | BH21: 0 | BI21: 0 | BJ21: 0 | BK21: 0 | BL21: 0 | BM21: 0 | BN21: 0 | BO21: 0 | BP21: 1 | BQ21: 0 | BR21: 0 | BS21: 0 | BT21: 0 | BU21: 1 | BV21: 1 | BW21: 1 | BX21: 1 | BY21: 0 | BZ21: 0 | CA21: 0 | CB21: 0 | CC21: 0 | CD21: 0 | CE21: 0 | CF21: 0 | CG21: 0 | CH21: 0 | CI21: 0 | CJ21: 0 | CK21: 0 | CL21: 0 | CM21: 0 | CN21: 0
A22: 18 | B22: Rodrigo Rotheia | C22: 123 | D22: 11 | E22: 22 | H22: 3 | I22: 38 | L22: 6 | M22: 32 | P22: 4 | Q22: 36 | T22: 27 | U22: 4 | X22: 25 | Y22: 6 | AC22: 0* | AE22: -5 | AG22: 0* | AK22: 0 | AO22: 0 | AS22: 0 | AU22: -5 | AW22: 0 | AY22: -5 | AZ22: 0 | BA22: 0 | BB22: 1 | BC22: 1 | BD22: 0 | BE22: 1 | BF22: 0 | BG22: 0 | BH22: 0 | BI22: 0 | BJ22: 1 | BK22: 0 | BL22: 0 | BM22: 0 | BN22: 0 | BO22: 0 | BP22: 0 | BQ22: 0 | BR22: 0 | BS22: 0 | BT22: 0 | BU22: 0 | BV22: 0 | BW22: 0 | BX22: 1 | BY22: 0 | BZ22: 1 | CA22: 0 | CB22: 0 | CC22: 0 | CD22: 0 | CE22: 0 | CF22: 0 | CG22: 0 | CH22: 0 | CI22: 0 | CJ22: 0 | CK22: 0 | CL22: 0 | CM22: 0 | CN22: 0
A23: 19 | B23: Roberto Veloso | C23: 115 | E23: 0* | G23: -5 | I23: 0* | K23: -5 | L23: 13 | M23: 18 | Q23: 0 | S23: -5 | T23: 10 | U23: 24 | X23: 6 | Y23: 32 | AC23: 0 | AE23: -5 | AF23: 2 | AG23: 41 | AJ23: 7 | AK23: 30 | AO23: 0 | AQ23: -5 | AS23: 0 | AW23: 0 | AY23: -5 | AZ23: 0 | BA23: 1 | BB23: 0 | BC23: 0 | BD23: 0 | BE23: 1 | BF23: 1 | BG23: 0 | BH23: 0 | BI23: 1 | BJ23: 0 | BK23: 0 | BL23: 1 | BM23: 0 | BN23: 0 | BO23: 0 | BP23: 0 | BQ23: 0 | BR23: 0 | BS23: 0 | BT23: 0 | BU23: 0 | BV23: 0 | BW23: 0 | BX23: 0 | BY23: 0 | BZ23: 0 | CA23: 0 | CB23: 0 | CC23: 0 | CD23: 0 | CE23: 0 | CF23: 0 | CG23: 0 | CH23: 0 | CI23: 0 | CJ23: 0 | CK23: 0 | CL23: 0 | CM23: 0 | CN23: 0
A24: 20 | B24: Gijo | C24: 115 | E24: 0* | G24: -5 | H24: 20 | I24: 11 | K24: SIM | L24: 14 | M24: 17 | P24: 16 | Q24: 15 | T24: 6 | U24: 32 | X24: 7 | Y24: 30 | AB24: 10 | AC24: 24 | AG24: 0* | AI24: -5 | AK24: 0 | AM24: -5 | AO24: 0 | AQ24: -5 | AR24: 15 | AS24: 16 | AU24: -5 | AW24: 0 | AY24: -5 | AZ24: 0 | BA24: 0 | BB24: 0 | BC24: 0 | BD24: 0 | BE24: 1 | BF24: 1 | BG24: 0 | BH24: 0 | BI24: 1 | BJ24: 0 | BK24: 0 | BL24: 0 | BM24: 1 | BN24: 1 | BO24: 1 | BP24: 0 | BQ24: 0 | BR24: 0 | BS24: 1 | BT24: 0 | BU24: 0 | BV24: 0 | BW24: 0 | BX24: 0 | BY24: 0 | BZ24: 0 | CA24: 0 | CB24: 0 | CC24: 0 | CD24: 0 | CE24: 0 | CF24: 0 | CG24: 0 | CH24: 0 | CI24: 0 | CJ24: 0 | CK24: 0 | CL24: 0 | CM24: 0 | CN24: 0
A25: 21 | B25: Leodegario Junior | C25: 97 | E25: 0* | G25: -5 | H25: 15 | I25: 16 | L25: 21 | M25: 10 | Q25: 0* | S25: -5 | U25: 0 | W25: -5 | X25: 21 | Y25: 10 | AB25: 28 | AC25: 3 | AE25: SIM | AF25: 14 | AG25: 17 | AJ25: 10 | AK25: 24 | AN25: 12 | AO25: 20 | AS25: 0 | AU25: -5 | AV25: 14 | AW25: 17 | AZ25: 0 | BA25: 0 | BB25: 0 | BC25: 0 | BD25: 0 | BE25: 0 | BF25: 0 | BG25: 0 | BH25: 0 | BI25: 1 | BJ25: 0 | BK25: 1 | BL25: 0 | BM25: 2 | BN25: 1 | BO25: 0 | BP25: 0 | BQ25: 0 | BR25: 0 | BS25: 0 | BT25: 2 | BU25: 0 | BV25: 0 | BW25: 0 | BX25: 0 | BY25: 0 | BZ25: 0 | CA25: 1 | CB25: 0 | CC25: 0 | CD25: 0 | CE25: 0 | CF25: 0 | CG25: 0 | CH25: 0 | CI25: 0 | CJ25: 0 | CK25: 0 | CL25: 0 | CM25: 0 | CN25: 0
A26: 22 | B26: Cláudio Dumont | C26: 96 | D26: 5 | E26: 34 | H26: 1 | I26: 45 | M26: 0* | P26: 2 | Q26: 41 | T26: 20 | U26: 11 | Y26: 0* | AA26: -5 | AC26: 0 | AE26: -5 | AG26: 0 | AI26: -5 | AK26: 0 | AM26: -5 | AO26: 0 | AQ26: -5 | AS26: 0 | AU26: -5 | AW26: 0 | AY26: -5 | AZ26: 1 | BA26: 1 | BB26: 0 | BC26: 0 | BD26: 1 | BE26: 0 | BF26: 0 | BG26: 0 | BH26: 0 | BI26: 0 | BJ26: 0 | BK26: 0 | BL26: 0 | BM26: 0 | BN26: 0 | BO26: 0 | BP26: 0 | BQ26: 0 | BR26: 0 | BS26: 1 | BT26: 0 | BU26: 0 | BV26: 0 | BW26: 0 | BX26: 0 | BY26: 0 | BZ26: 0 | CA26: 0 | CB26: 0 | CC26: 0 | CD26: 0 | CE26: 0 | CF26: 0 | CG26: 0 | CH26: 0 | CI26: 0 | CJ26: 0 | CK26: 0 | CL26: 0 | CM26: 0 | CN26: 0
A27: 23 | B27: Fernando Lobo | C27: 93 | D27: 20 | E27: 11 | H27: 12 | I27: 20 | L27: 26 | M27: 5 | P27: 8 | Q27: 28 | T27: 24 | U27: 7 | X27: 16 | Y27: 15 | AC27: 0* | AG27: 0* | AI27: -5 | AJ27: 11 | AK27: 22 | AM27: -5 | AO27: 0 | AS27: 0 | AU27: -5 | AW27: 0 | AZ27: 0 | BA27: 0 | BB27: 0 | BC27: 0 | BD27: 0 | BE27: 0 | BF27: 0 | BG27: 1 | BH27: 0 | BI27: 0 | BJ27: 1 | BK27: 1 | BL27: 0 | BM27: 0 | BN27: 0 | BO27: 1 | BP27: 0 | BQ27: 0 | BR27: 0 | BS27: 1 | BT27: 0 | BU27: 0 | BV27: 0 | BW27: 1 | BX27: 0 | BY27: 1 | BZ27: 0 | CA27: 0 | CB27: 0 | CC27: 0 | CD27: 0 | CE27: 0 | CF27: 0 | CG27: 0 | CH27: 0 | CI27: 0 | CJ27: 0 | CK27: 0 | CL27: 0 | CM27: 0 | CN27: 0
A28: 24 | B28: Ricardo Araújo | C28: 76 | E28: 0* | H28: 13 | I28: 18 | L28: 16 | M28: 15 | P28: 13 | Q28: 18 | T28: 13 | U28: 18 | X28: 22 | Y28: 9 | AB28: 23 | AC28: 8 | AE28: SIM | AG28: 0* | AK28: 0 | AM28: -5 | AO28: 0 | AS28: 0 | AU28: -5 | AW28: 0 | AZ28: 0 | BA28: 0 | BB28: 0 | BC28: 0 | BD28: 0 | BE28: 0 | BF28: 0 | BG28: 0 | BH28: 0 | BI28: 0 | BJ28: 0 | BK28: 0 | BL28: 3 | BM28: 0 | BN28: 0 | BO28: 1 | BP28: 0 | BQ28: 0 | BR28: 0 | BS28: 0 | BT28: 0 | BU28: 1 | BV28: 1 | BW28: 0 | BX28: 0 | BY28: 0 | BZ28: 0 | CA28: 0 | CB28: 0 | CC28: 0 | CD28: 0 | CE28: 0 | CF28: 0 | CG28: 0 | CH28: 0 | CI28: 0 | CJ28: 0 | CK28: 0 | CL28: 0 | CM28: 0 | CN28: 0
A29: 25 | B29: Flávio Marques | C29: 71 | D29: 16 | E29: 15 | H29: 30 | I29: 1 | L29: 24 | M29: 7 | P29: 21 | Q29: 10 | T29: 30 | U29: 1 | W29: SIM | Y29: 0* | AA29: -5 | AC29: 0* | AF29: 15 | AG29: 16 | AK29: 0 | AM29: -5 | AN29: 34 | AO29: 1 | AQ29: SIM | AR29: 19 | AS29: 12 | AV29: 13 | AW29: 18 | AZ29: 0 | BA29: 0 | BB29: 0 | BC29: 0 | BD29: 0 | BE29: 0 | BF29: 0 | BG29: 0 | BH29: 0 | BI29: 0 | BJ29: 0 | BK29: 0 | BL29: 1 | BM29: 0 | BN29: 1 | BO29: 1 | BP29: 0 | BQ29: 0 | BR29: 1 | BS29: 0 | BT29: 1 | BU29: 0 | BV29: 0 | BW29: 1 | BX29: 0 | BY29: 0 | BZ29: 0 | CA29: 0 | CB29: 0 | CC29: 2 | CD29: 0 | CE29: 0 | CF29: 0 | CG29: 1 | CH29: 0 | CI29: 0 | CJ29: 0 | CK29: 0 | CL29: 0 | CM29: 0 | CN29: 0
A30: 26 | B30: Michel Abouud | C30: 63 | E30: 0* | G30: -5 | H30: 23 | I30: 8 | M30: 0* | P30: 39 | Q30: 1 | S30: SIM | U30: 0 | X30: 18 | Y30: 13 | AB30: 13 | AC30: 18 | AF30: 12 | AG30: 20 | AK30: 0 | AO30: 0 | AR30: 18 | AS30: 13 | AW30: 0 | AY30: -5 | AZ30: 0 | BA30: 0 | BB30: 0 | BC30: 0 | BD30: 0 | BE30: 0 | BF30: 0 | BG30: 0 | BH30: 0 | BI30: 0 | BJ30: 0 | BK30: 1 | BL30: 1 | BM30: 0 | BN30: 0 | BO30: 0 | BP30: 0 | BQ30: 2 | BR30: 0 | BS30: 0 | BT30: 0 | BU30: 0 | BV30: 1 | BW30: 0 | BX30: 0 | BY30: 0 | BZ30: 0 | CA30: 0 | CB30: 0 | CC30: 0 | CD30: 0 | CE30: 0 | CF30: 0 | CG30: 0 | CH30: 0 | CI30: 0 | CJ30: 0 | CK30: 0 | CL30: 1 | CM30: 0 | CN30: 0
A31: 27 | B31: Jader Abreu | C31: 60 | E31: 0* | H31: 21 | I31: 10 | L31: 17 | M31: 14 | P31: 22 | Q31: 9 | S31: -5 | T31: 25 | U31: 6 | Y31: 0* | AC31: 0 | AF31: 17 | AG31: 14 | AJ31: 14 | AK31: 17 | AO31: 0 | AS31: 0 | AW31: 0 | AY31: -5 | AZ31: 0 | BA31: 0 | BB31: 0 | BC31: 0 | BD31: 0 | BE31: 0 | BF31: 0 | BG31: 0 | BH31: 0 | BI31: 0 | BJ31: 0 | BK31: 0 | BL31: 0 | BM31: 1 | BN31: 0 | BO31: 0 | BP31: 2 | BQ31: 0 | BR31: 0 | BS31: 0 | BT31: 1 | BU31: 1 | BV31: 0 | BW31: 0 | BX31: 1 | BY31: 0 | BZ31: 0 | CA31: 0 | CB31: 0 | CC31: 0 | CD31: 0 | CE31: 0 | CF31: 0 | CG31: 0 | CH31: 0 | CI31: 0 | CJ31: 0 | CK31: 0 | CL31: 0 | CM31: 0 | CN31: 0
A32: 28 | B32: Carlos Filizolla | C32: 45 | D32: 13 | E32: 18 | H32: 29 | I32: 2 | M32: 0* | P32: 24 | Q32: 7 | U32: 0* | Y32: 0 | AC32: 0 | AE32: -5 | AF32: 16 | AG32: 15 | AJ32: 18 | AK32: 13 | AO32: 0 | AS32: 0 | AW32: 0 | AY32: -5 | AZ32: 0 | BA32: 0 | BB32: 0 | BC32: 0 | BD32: 0 | BE32: 0 | BF32: 0 | BG32: 0 | BH32: 0 | BI32: 0 | BJ32: 0 | BK32: 0 | BL32: 1 | BM32: 0 | BN32: 0 | BO32: 1 | BP32: 0 | BQ32: 1 | BR32: 0 | BS32: 0 | BT32: 0 | BU32: 0 | BV32: 0 | BW32: 1 | BX32: 0 | BY32: 0 | BZ32: 0 | CA32: 0 | CB32: 1 | CC32: 0 | CD32: 0 | CE32: 0 | CF32: 0 | CG32: 0 | CH32: 0 | CI32: 0 | CJ32: 0 | CK32: 0 | CL32: 0 | CM32: 0 | CN32: 0
A33: 29 | B33: Marcelo Santiago | C33: 33 | D33: 15 | E33: 16 | H33: 22 | I33: 9 | L33: 19 | M33: 12 | P33: 37 | Q33: 1 | S33: SIM | U33: 0* | Y33: 0* | AC33: 0 | AG33: 0 | AK33: 0 | AO33: 0 | AQ33: -5 | AS33: 0 | AW33: 0 | AZ33: 0 | BA33: 0 | BB33: 0 | BC33: 0 | BD33: 0 | BE33: 0 | BF33: 0 | BG33: 0 | BH33: 0 | BI33: 0 | BJ33: 0 | BK33: 0 | BL33: 0 | BM33: 0 | BN33: 1 | BO33: 0 | BP33: 0 | BQ33: 0 | BR33: 1 | BS33: 0 | BT33: 0 | BU33: 1 | BV33: 0 | BW33: 0 | BX33: 0 | BY33: 0 | BZ33: 0 | CA33: 0 | CB33: 0 | CC33: 0 | CD33: 0 | CE33: 0 | CF33: 0 | CG33: 0 | CH33: 0 | CI33: 0 | CJ33: 1 | CK33: 0 | CL33: 0 | CM33: 0 | CN33: 0
A34: 30 | B34: Luiz Otávio | C34: 31 | E34: 0* | G34: -5 | H34: 26 | I34: 5 | M34: 0* | O34: -5 | P34: 27 | Q34: 4 | U34: 0 | W34: -5 | X34: 17 | Y34: 14 | AB34: 14 | AC34: 17 | AF34: 20 | AG34: 11 | AK34: 0 | AO34: 0 | AS34: 0 | AW34: 0 | AY34: -5 | AZ34: 0 | BA34: 0 | BB34: 0 | BC34: 0 | BD34: 0 | BE34: 0 | BF34: 0 | BG34: 0 | BH34: 0 | BI34: 0 | BJ34: 0 | BK34: 0 | BL34: 0 | BM34: 1 | BN34: 0 | BO34: 0 | BP34: 1 | BQ34: 0 | BR34: 0 | BS34: 1 | BT34: 0 | BU34: 0 | BV34: 0 | BW34: 0 | BX34: 0 | BY34: 1 | BZ34: 1 | CA34: 0 | CB34: 0 | CC34: 0 | CD34: 0 | CE34: 0 | CF34: 0 | CG34: 0 | CH34: 0 | CI34: 0 | CJ34: 0 | CK34: 0 | CL34: 0 | CM34: 0 | CN34: 0
A35: 31 | B35: Jorge Prado | C35: 23 | E35: 0* | I35: 0* | M35: 0 | O35: -5 | P35: 23 | Q35: 8 | U35: 0 | W35: -5 | Y35: 0 | AC35: 0 | AG35: 0 | AI35: -5 | AK35: 0 | AM35: -5 | AN35: 10 | AO35: 24 | AS35: 0 | AV35: 20 | AW35: 11 | AY35: SIM | AZ35: 0 | BA35: 0 | BB35: 0 | BC35: 0 | BD35: 0 | BE35: 0 | BF35: 0 | BG35: 0 | BH35: 0 | BI35: 1 | BJ35: 0 | BK35: 0 | BL35: 0 | BM35: 0 | BN35: 0 | BO35: 0 | BP35: 0 | BQ35: 0 | BR35: 0 | BS35: 1 | BT35: 0 | BU35: 0 | BV35: 1 | BW35: 0 | BX35: 0 | BY35: 0 | BZ35: 0 | CA35: 0 | CB35: 0 | CC35: 0 | CD35: 0 | CE35: 0 | CF35: 0 | CG35: 0 | CH35: 0 | CI35: 0 | CJ35: 0 | CK35: 0 | CL35: 0 | CM35: 0 | CN35: 0
A36: 32 | B36: Cláudio Naves | C36: 22 | D36: 18 | E36: 13 | H36: 28 | I36: 3 | L36: 25 | M36: 6 | Q36: 0* | U36: 0* | Y36: 0 | AC36: 0 | AG36: 0 | AK36: 0 | AO36: 0 | AS36: 0 | AW36: 0 | AZ36: 0 | BA36: 0 | BB36: 0 | BC36: 0 | BD36: 0 | BE36: 0 | BF36: 0 | BG36: 0 | BH36: 0 | BI36: 0 | BJ36: 0 | BK36: 0 | BL36: 0 | BM36: 0 | BN36: 0 | BO36: 0 | BP36: 0 | BQ36: 1 | BR36: 0 | BS36: 0 | BT36: 0 | BU36: 0 | BV36: 0 | BW36: 0 | BX36: 1 | BY36: 0 | BZ36: 0 | CA36: 1 | CB36: 0 | CC36: 0 | CD36: 0 | CE36: 0 | CF36: 0 | CG36: 0 | CH36: 0 | CI36: 0 | CJ36: 0 | CK36: 0 | CL36: 0 | CM36: 0 | CN36: 0
A37: 33 | B37: Caetano | C37: 2 | E37: 0* | G37: -5 | H37: 0 | I37: 0 | K37: SIM | M37: 0* | P37: 17 | Q37: 14 | T37: 8 | U37: 28 | Y37: 0 | AA37: -5 | AC37: 0 | AE37: -5 | AG37: 0 | AI37: -5 | AK37: 0 | AM37: -5 | AO37: 0 | AQ37: -5 | AS37: 0 | AU37: -5 | AW37: 0 | AY37: -5 | AZ37: 0 | BA37: 0 | BB37: 0 | BC37: 0 | BD37: 0 | BE37: 0 | BF37: 0 | BG37: 1 | BH37: 0 | BI37: 0 | BJ37: 0 | BK37: 0 | BL37: 0 | BM37: 0 | BN37: 0 | BO37: 0 | BP37: 1 | BQ37: 0 | BR37: 0 | BS37: 0 | BT37: 0 | BU37: 0 | BV37: 0 | BW37: 0 | BX37: 0 | BY37: 0 | BZ37: 0 | CA37: 0 | CB37: 0 | CC37: 0 | CD37: 0 | CE37: 0 | CF37: 0 | CG37: 0 | CH37: 0 | CI37: 0 | CJ37: 0 | CK37: 0 | CL37: 0 | CM37: 0 | CN37: 0
A38: 34 | B38: SS | C38: 0 | E38: 0* | I38: 0* | M38: 0 | Q38: 0 | U38: 0 | Y38: 0 | AC38: 0 | AG38: 0 | AK38: 0 | AO38: 0 | AS38: 0 | AW38: 0 | AZ38: 1 | BA38: 0 | BB38: 0 | BC38: 2 | BD38: 1 | BE38: 1 | BF38: 1 | BG38: 1 | BH38: 0 | BI38: 0 | BJ38: 2 | BK38: 1 | BL38: 0 | BM38: 1 | BN38: 0 | BO38: 0 | BP38: 0 | BQ38: 0 | BR38: 0 | BS38: 1 | BT38: 0 | BU38: 0 | BV38: 1 | BW38: 0 | BX38: 0 | BY38: 1 | BZ38: 0 | CA38: 2 | CB38: 0 | CC38: 0 | CD38: 0 | CE38: 0 | CF38: 0 | CG38: 0 | CH38: 0 | CI38: 0 | CJ38: 0 | CK38: 0 | CL38: 0 | CM38: 0 | CN38: 0
A39: 35 | B39: SSSS | C39: 0 | E39: 0* | I39: 0* | M39: 0 | Q39: 0 | U39: 0 | Y39: 0 | AC39: 0 | AG39: 0 | AK39: 0 | AO39: 0 | AS39: 0 | AW39: 0 | AZ39: 1 | BA39: 0 | BB39: 0 | BC39: 1 | BD39: 0 | BE39: 0 | BF39: 1 | BG39: 0 | BH39: 0 | BI39: 0 | BJ39: 2 | BK39: 1 | BL39: 0 | BM39: 0 | BN39: 0 | BO39: 0 | BP39: 0 | BQ39: 0 | BR39: 0 | BS39: 1 | BT39: 0 | BU39: 0 | BV39: 1 | BW39: 0 | BX39: 0 | BY39: 1 | BZ39: 0 | CA39: 1 | CB39: 0 | CC39: 0 | CD39: 0 | CE39: 0 | CF39: 0 | CG39: 0 | CH39: 0 | CI39: 0 | CJ39: 0 | CK39: 0 | CL39: 0 | CM39: 0 | CN39: 0
A40: 36 | B40: SSSSSSS | C40: 0 | E40: 0* | I40: 0* | M40: 0 | Q40: 0 | U40: 0 | Y40: 0 | AC40: 0 | AG40: 0 | AK40: 0 | AO40: 0 | AS40: 0 | AW40: 0 | AZ40: 0 | BA40: 0 | BB40: 0 | BC40: 0 | BD40: 0 | BE40: 0 | BF40: 0 | BG40: 0 | BH40: 0 | BI40: 0 | BJ40: 0 | BK40: 0 | BL40: 0 | BM40: 0 | BN40: 0 | BO40: 0 | BP40: 0 | BQ40: 0 | BR40: 0 | BS40: 1 | BT40: 0 | BU40: 0 | BV40: 1 | BW40: 0 | BX40: 0 | BY40: 0 | BZ40: 0 | CA40: 1 | CB40: 0 | CC40: 0 | CD40: 0 | CE40: 0 | CF40: 0 | CG40: 0 | CH40: 0 | CI40: 0 | CJ40: 0 | CK40: 0 | CL40: 0 | CM40: 0 | CN40: 0
A41: 37 | B41: Edson Ribeiro | C41: 0 | E41: 0* | G41: -5 | H41: 25 | I41: 6 | M41: 0* | O41: -5 | Q41: 0 | S41: -5 | U41: 0 | W41: -5 | Y41: 0 | AA41: -5 | AC41: 0 | AE41: -5 | AG41: 0 | AI41: -5 | AK41: 0 | AM41: -5 | AO41: 0 | AQ41: -5 | AS41: 0 | AU41: -5 | AW41: 0 | AY41: -5 | AZ41: 0 | BA41: 0 | BB41: 0 | BC41: 0 | BD41: 0 | BE41: 0 | BF41: 0 | BG41: 0 | BH41: 0 | BI41: 0 | BJ41: 0 | BK41: 0 | BL41: 0 | BM41: 0 | BN41: 0 | BO41: 0 | BP41: 0 | BQ41: 0 | BR41: 0 | BS41: 0 | BT41: 0 | BU41: 0 | BV41: 0 | BW41: 0 | BX41: 1 | BY41: 0 | BZ41: 0 | CA41: 0 | CB41: 0 | CC41: 0 | CD41: 0 | CE41: 0 | CF41: 0 | CG41: 0 | CH41: 0 | CI41: 0 | CJ41: 0 | CK41: 0 | CL41: 0 | CM41: 0 | CN41: 0
A42: 38 | B42: Henrique Castilho | C42: 0 | E42: 0* | G42: -5 | I42: 0* | K42: -5 | M42: 0 | O42: -5 | Q42: 0 | S42: -5 | U42: 0 | W42: -5 | Y42: 0 | AA42: -5 | AC42: 0 | AE42: -5 | AG42: 0 | AK42: 0 | AM42: -5 | AO42: 0 | AQ42: -5 | AS42: 0 | AW42: 0 | AY42: -5 | AZ42: 0 | BA42: 0 | BB42: 0 | BC42: 0 | BD42: 0 | BE42: 0 | BF42: 0 | BG42: 0 | BH42: 0 | BI42: 0 | BJ42: 0 | BK42: 0 | BL42: 0 | BM42: 0 | BN42: 0 | BO42: 0 | BP42: 0 | BQ42: 0 | BR42: 0 | BS42: 0 | BT42: 0 | BU42: 0 | BV42: 0 | BW42: 0 | BX42: 0 | BY42: 0 | BZ42: 0 | CA42: 0 | CB42: 0 | CC42: 0 | CD42: 0 | CE42: 0 | CF42: 0 | CG42: 0 | CH42: 0 | CI42: 0 | CJ42: 0 | CK42: 0 | CL42: 0 | CM42: 0 | CN42: 0
A43: 39 | B43: Marcus Reis | C43: 0 | E43: 0* | I43: 0* | K43: -5 | M43: 0 | Q43: 0 | U43: 0 | Y43: 0 | AA43: -5 | AC43: 0 | AE43: -5 | AG43: 0 | AI43: -5 | AK43: 0 | AM43: -5 | AO43: 0 | AQ43: -5 | AS43: 0 | AU43: -5 | AW43: 0 | AY43: -5 | AZ43: 0 | BA43: 0 | BB43: 0 | BC43: 0 | BD43: 0 | BE43: 0 | BF43: 0 | BG43: 0 | BH43: 0 | BI43: 0 | BJ43: 0 | BK43: 0 | BL43: 0 | BM43: 0 | BN43: 0 | BO43: 0 | BP43: 0 | BQ43: 0 | BR43: 0 | BS43: 0 | BT43: 0 | BU43: 0 | BV43: 0 | BW43: 0 | BX43: 0 | BY43: 0 | BZ43: 0 | CA43: 0 | CB43: 0 | CC43: 0 | CD43: 0 | CE43: 0 | CF43: 0 | CG43: 0 | CH43: 0 | CI43: 0 | CJ43: 0 | CK43: 0 | CL43: 0 | CM43: 0 | CN43: 0
A44: 40 | C44: 0 | E44: 0 | I44: 0 | M44: 0 | Q44: 0 | U44: 0 | Y44: 0 | AC44: 0 | AG44: 0 | AK44: 0 | AO44: 0 | AS44: 0 | AW44: 0 | AZ44: 0 | BA44: 0 | BB44: 0 | BC44: 0 | BD44: 0 | BE44: 0 | BF44: 0 | BG44: 0 | BH44: 0 | BI44: 0 | BJ44: 0 | BK44: 0 | BL44: 0 | BM44: 0 | BN44: 0 | BO44: 0 | BP44: 0 | BQ44: 0 | BR44: 0 | BS44: 0 | BT44: 0 | BU44: 0 | BV44: 0 | BW44: 0 | BX44: 0 | BY44: 0 | BZ44: 0 | CA44: 0 | CB44: 0 | CC44: 0 | CD44: 0 | CE44: 0 | CF44: 0 | CG44: 0 | CH44: 0 | CI44: 0 | CJ44: 0 | CK44: 0 | CL44: 0 | CM44: 0 | CN44: 0
A45: 41 | C45: 0 | E45: 0 | I45: 0 | M45: 0 | Q45: 0 | U45: 0 | Y45: 0 | AC45: 0 | AG45: 0 | AK45: 0 | AO45: 0 | AS45: 0 | AW45: 0 | AZ45: 0 | BA45: 0 | BB45: 0 | BC45: 0 | BD45: 0 | BE45: 0 | BF45: 0 | BG45: 0 | BH45: 0 | BI45: 0 | BJ45: 0 | BK45: 0 | BL45: 0 | BM45: 0 | BN45: 0 | BO45: 0 | BP45: 0 | BQ45: 0 | BR45: 0 | BS45: 0 | BT45: 0 | BU45: 0 | BV45: 0 | BW45: 0 | BX45: 0 | BY45: 0 | BZ45: 0 | CA45: 0 | CB45: 0 | CC45: 0 | CD45: 0 | CE45: 0 | CF45: 0 | CG45: 0 | CH45: 0 | CI45: 0 | CJ45: 0 | CK45: 0 | CL45: 0 | CM45: 0 | CN45: 0
A46: 42 | C46: 0 | E46: 0 | I46: 0 | M46: 0 | Q46: 0 | U46: 0 | Y46: 0 | AC46: 0 | AG46: 0 | AK46: 0 | AO46: 0 | AS46: 0 | AW46: 0 | AZ46: 0 | BA46: 0 | BB46: 0 | BC46: 0 | BD46: 0 | BE46: 0 | BF46: 0 | BG46: 0 | BH46: 0 | BI46: 0 | BJ46: 0 | BK46: 0 | BL46: 0 | BM46: 0 | BN46: 0 | BO46: 0 | BP46: 0 | BQ46: 0 | BR46: 0 | BS46: 0 | BT46: 0 | BU46: 0 | BV46: 0 | BW46: 0 | BX46: 0 | BY46: 0 | BZ46: 0 | CA46: 0 | CB46: 0 | CC46: 0 | CD46: 0 | CE46: 0 | CF46: 0 | CG46: 0 | CH46: 0 | CI46: 0 | CJ46: 0 | CK46: 0 | CL46: 0 | CM46: 0 | CN46: 0
A47: 43 | C47: 0 | E47: 0 | I47: 0 | M47: 0 | Q47: 0 | U47: 0 | Y47: 0 | AC47: 0 | AG47: 0 | AK47: 0 | AO47: 0 | AS47: 0 | AW47: 0 | AZ47: 0 | BA47: 0 | BB47: 0 | BC47: 0 | BD47: 0 | BE47: 0 | BF47: 0 | BG47: 0 | BH47: 0 | BI47: 0 | BJ47: 0 | BK47: 0 | BL47: 0 | BM47: 0 | BN47: 0 | BO47: 0 | BP47: 0 | BQ47: 0 | BR47: 0 | BS47: 0 | BT47: 0 | BU47: 0 | BV47: 0 | BW47: 0 | BX47: 0 | BY47: 0 | BZ47: 0 | CA47: 0 | CB47: 0 | CC47: 0 | CD47: 0 | CE47: 0 | CF47: 0 | CG47: 0 | CH47: 0 | CI47: 0 | CJ47: 0 | CK47: 0 | CL47: 0 | CM47: 0 | CN47: 0
A48: 44 | C48: 0 | E48: 0 | I48: 0 | M48: 0 | Q48: 0 | U48: 0 | Y48: 0 | AC48: 0 | AG48: 0 | AK48: 0 | AO48: 0 | AS48: 0 | AW48: 0 | AZ48: 0 | BA48: 0 | BB48: 0 | BC48: 0 | BD48: 0 | BE48: 0 | BF48: 0 | BG48: 0 | BH48: 0 | BI48: 0 | BJ48: 0 | BK48: 0 | BL48: 0 | BM48: 0 | BN48: 0 | BO48: 0 | BP48: 0 | BQ48: 0 | BR48: 0 | BS48: 0 | BT48: 0 | BU48: 0 | BV48: 0 | BW48: 0 | BX48: 0 | BY48: 0 | BZ48: 0 | CA48: 0 | CB48: 0 | CC48: 0 | CD48: 0 | CE48: 0 | CF48: 0 | CG48: 0 | CH48: 0 | CI48: 0 | CJ48: 0 | CK48: 0 | CL48: 0 | CM48: 0 | CN48: 0
A49: 45 | C49: 0 | E49: 0 | I49: 0 | M49: 0 | Q49: 0 | U49: 0 | Y49: 0 | AC49: 0 | AG49: 0 | AK49: 0 | AO49: 0 | AS49: 0 | AW49: 0 | AZ49: 0 | BA49: 0 | BB49: 0 | BC49: 0 | BD49: 0 | BE49: 0 | BF49: 0 | BG49: 0 | BH49: 0 | BI49: 0 | BJ49: 0 | BK49: 0 | BL49: 0 | BM49: 0 | BN49: 0 | BO49: 0 | BP49: 0 | BQ49: 0 | BR49: 0 | BS49: 0 | BT49: 0 | BU49: 0 | BV49: 0 | BW49: 0 | BX49: 0 | BY49: 0 | BZ49: 0 | CA49: 0 | CB49: 0 | CC49: 0 | CD49: 0 | CE49: 0 | CF49: 0 | CG49: 0 | CH49: 0 | CI49: 0 | CJ49: 0 | CK49: 0 | CL49: 0 | CM49: 0 | CN49: 0

Sheet Tabela Equipes
A1: 2022 | D1: OK | H1: OK | L1: OK | P1: OK | T1: OK | X1: OK | AB1: OK | AF1: OK | AJ1: OK | AN1: OK | AR1: OK | AV1: OK
C2: 1ª etapa | G2: 2ª etapa | K2: 3ª etapa | O2: 4ª etapa | S2: 5ª etapa | W2: 6ª etapa | AA2: 7ª etapa | AE2: 8ª etapa | AI2: 9ª etapa | AM2: 10ª etapa | AQ2: 11ª etapa | AU2: 12ª etapa
C3: 00:00:00 | G3: 00:00:00 | K3: 17/03/2022 - 20:30 | O3: 00:00:00 | S3: 00:00:00 | W3: 00:00:00 | AA3: 00:00:00 | AE3: 00:00:00 | AI3: 00:00:00 | AM3: 00:00:00 | AQ3: 00:00:00 | AU3: 00:00:00
A4: EQUIPES | B4: Pontuação Geral | C4: Posição | D4: Pontos | E4: Bônus | F4: Penalidade | G4: Posição | H4: Pontos | I4: Bônus | J4: Penalidade | K4: Posição | L4: Pontos | M4: Bônus | N4: Penalidade | O4: Posição | P4: Pontos | Q4: Bônus | R4: Penalidade | S4: Posição | T4: Pontos | U4: Bônus | V4: Penalidade | W4: Posição | X4: Pontos | Y4: Bônus | Z4: Penalidade | AA4: Posição | AB4: Pontos | AC4: Bônus | AD4: Penalidade | AE4: Posição | AF4: Pontos | AG4: Bônus | AH4: Penalidade | AI4: Posição | AJ4: Pontos | AK4: Bônus | AL4: Penalidade | AM4: Posição | AN4: Pontos | AO4: Bônus | AP4: Penalidade | AQ4: Posição | AR4: Pontos | AS4: Bônus | AT4: Penalidade | AU4: Posição | AV4: Pontos | AW4: Bônus | AX4: Penalidade
A5: Lider | B5: 781 | D5: 95 | E5: 0 | H5: 98 | I5: 0 | L5: 77 | M5: 0 | P5: 101 | Q5: 0 | T5: 73 | U5: 0 | X5: 51 | Y5: 0 | AB5: 41 | AC5: 0 | AF5: 58 | AG5: 0 | AJ5: 46 | AK5: 0 | AN5: 37 | AO5: 0 | AR5: 48 | AS5: 0 | AV5: 56 | AW5: 0
A6: Marcelo Sant'anna | B6: 346 | C6: 3 | D6: 38 | E6: 0 | G6: 5 | H6: 34 | I6: 0 | K6: 0 | L6: 0 | M6: 0 | O6: 15 | P6: 16 | Q6: 0 | S6: 4 | T6: 36 | U6: 0 | W6: 8 | X6: 28 | Y6: 0 | AA6: 2 | AB6: 41 | AC6: 0 | AE6: 8 | AF6: 28 | AG6: 0 | AI6: 16 | AJ6: 15 | AK6: 0 | AM6: 4 | AN6: 36 | AO6: 0 | AQ6: 4 | AR6: 36 | AS6: 0 | AU6: 3 | AV6: 38 | AW6: 0
A7: Flávio Marques | B7: 81 | C7: 16 | D7: 15 | E7: 0 | G7: 30 | H7: 1 | I7: 0 | K7: 24 | L7: 7 | M7: 0 | O7: 21 | P7: 10 | Q7: 0 | S7: 30 | T7: 1 | U7: 0 | W7: 0 | X7: 0 | Y7: 0 | AA7: 0 | AB7: 0 | AC7: 0 | AE7: 15 | AF7: 16 | AG7: 0 | AI7: 0 | AJ7: 0 | AK7: 0 | AM7: 34 | AN7: 1 | AO7: 0 | AQ7: 19 | AR7: 12 | AS7: 0 | AU7: 13 | AV7: 18 | AW7: 0
A8: Rodrigo Rotheia | B8: 138 | C8: 11 | D8: 22 | E8: 0 | G8: 3 | H8: 38 | I8: 0 | K8: 6 | L8: 32 | M8: 0 | O8: 4 | P8: 36 | Q8: 0 | S8: 27 | T8: 4 | U8: 0 | W8: 25 | X8: 6 | Y8: 0 | AA8: 0 | AB8: 0 | AC8: 0 | AE8: 0 | AF8: 0 | AG8: 0 | AI8: 0 | AJ8: 0 | AK8: 0 | AM8: 0 | AN8: 0 | AO8: 0 | AQ8: 0 | AR8: 0 | AS8: 0 | AU8: 0 | AV8: 0 | AW8: 0
A9: Jader Abreu | B9: 70 | C9: 0 | D9: 0 | E9: 0 | G9: 21 | H9: 10 | I9: 0 | K9: 17 | L9: 14 | M9: 0 | O9: 22 | P9: 9 | Q9: 0 | S9: 25 | T9: 6 | U9: 0 | W9: 0 | X9: 0 | Y9: 0 | AA9: 0 | AB9: 0 | AC9: 0 | AE9: 17 | AF9: 14 | AG9: 0 | AI9: 14 | AJ9: 17 | AK9: 0 | AM9: 0 | AN9: 0 | AO9: 0 | AQ9: 0 | AR9: 0 | AS9: 0 | AU9: 0 | AV9: 0 | AW9: 0
A10: Marcelo Junqueira | B10: 146 | C10: 12 | D10: 20 | E10: 0 | G10: 16 | H10: 15 | I10: 0 | K10: 10 | L10: 24 | M10: 0 | O10: 7 | P10: 30 | Q10: 0 | S10: 9 | T10: 26 | U10: 0 | W10: 14 | X10: 17 | Y10: 0 | AA10: 0 | AB10: 0 | AC10: 0 | AE10: 0 | AF10: 0 | AG10: 0 | AI10: 17 | AJ10: 14 | AK10: 0 | AM10: 0 | AN10: 0 | AO10: 0 | AQ10: 0 | AR10: 0 | AS10: 0 | AU10: 0 | AV10: 0 | AW10: 0
A11: Santiago | B11: 243 | D11: 66 | E11: 0 | H11: 28 | I11: 0 | L11: 40 | M11: 0 | P11: 11 | Q11: 0 | T11: 34 | U11: 0 | X11: 36 | Y11: 0 | AB11: 0 | AC11: 0 | AF11: 15 | AG11: 0 | AJ11: 13 | AK11: 0 | AN11: 0 | AO11: 0 | AR11: 0 | AS11: 0 | AV11: 0 | AW11: 0
A12: SS | B12: 150 | C12: 6 | D12: 32 | E12: 0 | G12: 14 | H12: 17 | I12: 0 | K12: 8 | L12: 28 | M12: 0 | O12: 28 | P12: 3 | Q12: 0 | S12: 5 | T12: 34 | U12: 0 | W12: 4 | X12: 36 | Y12: 0 | AA12: 0 | AB12: 0 | AC12: 0 | AE12: 0 | AF12: 0 | AG12: 0 | AI12: 0 | AJ12: 0 | AK12: 0 | AM12: 0 | AN12: 0 | AO12: 0 | AQ12: 0 | AR12: 0 | AS12: 0 | AU12: 0 | AV12: 0 | AW12: 0
A13: Carlos Filizolla | B13: 55 | C13: 13 | D13: 18 | E13: 0 | G13: 29 | H13: 2 | I13: 0 | K13: 0 | L13: 0 | M13: 0 | O13: 24 | P13: 7 | Q13: 0 | S13: 0 | T13: 0 | U13: 0 | W13: 0 | X13: 0 | Y13: 0 | AA13: 0 | AB13: 0 | AC13: 0 | AE13: 16 | AF13: 15 | AG13: 0 | AI13: 18 | AJ13: 13 | AK13: 0 | AM13: 0 | AN13: 0 | AO13: 0 | AQ13: 0 | AR13: 0 | AS13: 0 | AU13: 0 | AV13: 0 | AW13: 0
A14: Marcelo Santiago | B14: 38 | C14: 15 | D14: 16 | E14: 0 | G14: 22 | H14: 9 | I14: 0 | K14: 19 | L14: 12 | M14: 0 | O14: 37 | P14: 1 | Q14: 0 | S14: 0 | T14: 0 | U14: 0 | W14: 0 | X14: 0 | Y14: 0 | AA14: 0 | AB14: 0 | AC14: 0 | AE14: 0 | AF14: 0 | AG14: 0 | AI14: 0 | AJ14: 0 | AK14: 0 | AM14: 0 | AN14: 0 | AO14: 0 | AQ14: 0 | AR14: 0 | AS14: 0 | AU14: 0 | AV14: 0 | AW14: 0
A15: Henrique Castilho | B15: 0 | C15: 0 | D15: 0 | E15: 0 | G15: 0 | H15: 0 | I15: 0 | K15: 0 | L15: 0 | M15: 0 | O15: 0 | P15: 0 | Q15: 0 | S15: 0 | T15: 0 | U15: 0 | W15: 0 | X15: 0 | Y15: 0 | AA15: 0 | AB15: 0 | AC15: 0 | AE15: 0 | AF15: 0 | AG15: 0 | AI15: 0 | AJ15: 0 | AK15: 0 | AM15: 0 | AN15: 0 | AO15: 0 | AQ15: 0 | AR15: 0 | AS15: 0 | AU15: 0 | AV15: 0 | AW15: 0
A16: Marcus Reis | B16: 0 | C16: 0 | D16: 0 | E16: 0 | G16: 0 | H16: 0 | I16: 0 | K16: 0 | L16: 0 | M16: 0 | O16: 0 | P16: 0 | Q16: 0 | S16: 0 | T16: 0 | U16: 0 | W16: 0 | X16: 0 | Y16: 0 | AA16: 0 | AB16: 0 | AC16: 0 | AE16: 0 | AF16: 0 | AG16: 0 | AI16: 0 | AJ16: 0 | AK16: 0 | AM16: 0 | AN16: 0 | AO16: 0 | AQ16: 0 | AR16: 0 | AS16: 0 | AU16: 0 | AV16: 0 | AW16: 0
A17: Alpha | B17: 701 | D17: 35 | E17: 0 | H17: 24 | I17: 0 | L17: 53 | M17: 0 | P17: 34 | Q17: 0 | T17: 64 | U17: 1 | X17: 63 | Y17: 0 | AB17: 58 | AC17: 1 | AF17: 58 | AG17: 1 | AJ17: 61 | AK17: 0 | AN17: 72 | AO17: 0 | AR17: 84 | AS17: 1 | AV17: 90 | AW17: 1
A18: Alexandre Melillo | B18: 382 | C18: 19 | D18: 12 | E18: 0 | G18: 0 | H18: 0 | I18: 0 | K18: 1 | L18: 45 | M18: 0 | O18: 12 | P18: 20 | Q18: 0 | S18: 1 | T18: 45 | U18: 1 | W18: 5 | X18: 34 | Y18: 0 | AA18: 4 | AB18: 36 | AC18: 1 | AE18: 4 | AF18: 36 | AG18: 1 | AI18: 1 | AJ18: 45 | AK18: 0 | AM18: 13 | AN18: 18 | AO18: 0 | AQ18: 2 | AR18: 41 | AS18: 1 | AU18: 1 | AV18: 45 | AW18: 1
A19: Ivan Renault | B19: 132 | C19: 22 | D19: 9 | E19: 0 | G19: 0 | H19: 0 | I19: 0 | K19: 23 | L19: 8 | M19: 0 | O19: 25 | P19: 6 | Q19: 0 | S19: 17 | T19: 14 | U19: 0 | W19: 24 | X19: 7 | Y19: 0 | AA19: 0 | AB19: 0 | AC19: 0 | AE19: 0 | AF19: 0 | AG19: 0 | AI19: 0 | AJ19: 0 | AK19: 0 | AM19: 7 | AN19: 30 | AO19: 0 | AQ19: 8 | AR19: 28 | AS19: 0 | AU19: 7 | AV19: 30 | AW19: 0
A20: Morvan | B20: 144 | C20: 17 | D20: 14 | E20: 0 | G20: 10 | H20: 24 | I20: 0 | K20: 0 | L20: 0 | M20: 0 | O20: 0 | P20: 0 | Q20: 0 | S20: 26 | T20: 5 | U20: 0 | W20: 11 | X20: 22 | Y20: 0 | AA20: 11 | AB20: 22 | AC20: 0 | AE20: 11 | AF20: 22 | AG20: 0 | AI20: 15 | AJ20: 16 | AK20: 0 | AM20: 0 | AN20: 0 | AO20: 0 | AQ20: 16 | AR20: 15 | AS20: 0 | AU20: 27 | AV20: 4 | AW20: 0
A21: Jorge Prado | B21: 43 | C21: 0 | D21: 0 | E21: 0 | G21: 0 | H21: 0 | I21: 0 | K21: 0 | L21: 0 | M21: 0 | O21: 23 | P21: 8 | Q21: 0 | S21: 0 | T21: 0 | U21: 0 | W21: 0 | X21: 0 | Y21: 0 | AA21: 0 | AB21: 0 | AC21: 0 | AE21: 0 | AF21: 0 | AG21: 0 | AI21: 0 | AJ21: 0 | AK21: 0 | AM21: 10 | AN21: 24 | AO21: 0 | AQ21: 0 | AR21: 0 | AS21: 0 | AU21: 20 | AV21: 11 | AW21: 0
A22: XXX
A23: LQN | B23: 731 | D23: 62 | E23: 0 | H23: 55 | I23: 0 | L23: 58 | M23: 0 | P23: 68 | Q23: 0 | T23: 62 | U23: 0 | X23: 95 | Y23: 0 | AB23: 87 | AC23: 0 | AF23: 76 | AG23: 0 | AJ23: 54 | AK23: 0 | AN23: 54 | AO23: 0 | AR23: 60 | AS23: 0 | AV23: 0 | AW23: 0
A24: SSSS | B24: 180 | C24: 4 | D24: 36 | E24: 0 | G24: 11 | H24: 22 | I24: 0 | K24: 12 | L24: 20 | M24: 0 | O24: 11 | P24: 22 | Q24: 0 | S24: 7 | T24: 30 | U24: 0 | W24: 1 | X24: 45 | Y24: 0 | AA24: 26 | AB24: 5 | AC24: 0 | AE24: 0 | AF24: 0 | AG24: 0 | AI24: 0 | AJ24: 0 | AK24: 0 | AM24: 0 | AN24: 0 | AO24: 0 | AQ24: 0 | AR24: 0 | AS24: 0 | AU24: 0 | AV24: 0 | AW24: 0
A25: Michel Abouud | B25: 73 | C25: 0 | D25: 0 | E25: 0 | G25: 23 | H25: 8 | I25: 0 | K25: 0 | L25: 0 | M25: 0 | O25: 39 | P25: 1 | Q25: 0 | S25: 0 | T25: 0 | U25: 0 | W25: 18 | X25: 13 | Y25: 0 | AA25: 13 | AB25: 18 | AC25: 0 | AE25: 12 | AF25: 20 | AG25: 0 | AI25: 0 | AJ25: 0 | AK25: 0 | AM25: 0 | AN25: 0 | AO25: 0 | AQ25: 18 | AR25: 13 | AS25: 0 | AU25: 0 | AV25: 0 | AW25: 0
A26: Euclides Almeida | B26: 182 | C26: 0 | D26: 0 | E26: 0 | G26: 18 | H26: 13 | I26: 0 | K26: 0 | L26: 0 | M26: 0 | O26: 20 | P26: 11 | Q26: 0 | S26: 11 | T26: 22 | U26: 0 | W26: 20 | X26: 11 | Y26: 0 | AA26: 9 | AB26: 26 | AC26: 0 | AE26: 9 | AF26: 26 | AG26: 0 | AI26: 13 | AJ26: 18 | AK26: 0 | AM26: 3 | AN26: 38 | AO26: 0 | AQ26: 14 | AR26: 17 | AS26: 0 | AU26: 0 | AV26: 0 | AW26: 0
A27: Claudio Junqueira | B27: 296 | C27: 9 | D27: 26 | E27: 0 | G27: 19 | H27: 12 | I27: 0 | K27: 3 | L27: 38 | M27: 0 | O27: 5 | P27: 34 | Q27: 0 | S27: 21 | T27: 10 | U27: 0 | W27: 9 | X27: 26 | Y27: 0 | AA27: 3 | AB27: 38 | AC27: 0 | AE27: 7 | AF27: 30 | AG27: 0 | AI27: 4 | AJ27: 36 | AK27: 0 | AM27: 15 | AN27: 16 | AO27: 0 | AQ27: 7 | AR27: 30 | AS27: 0 | AU27: 0 | AV27: 0 | AW27: 0
A28: XXXX | B28: 0
A29: Frigoindaiá | B29: 858 | D29: 70 | E29: 0 | H29: 120 | I29: 0 | L29: 62 | M29: 0 | P29: 118 | Q29: 0 | T29: 96 | U29: 0 | X29: 72 | Y29: 0 | AB29: 54 | AC29: 0 | AF29: 19 | AG29: 0 | AJ29: 53 | AK29: 1 | AN29: 45 | AO29: 0 | AR29: 88 | AS29: 0 | AV29: 60 | AW29: 0
A30: Jarbas Reis | B30: 334 | C30: 8 | D30: 28 | E30: 0 | G30: 8 | H30: 28 | I30: 0 | K30: 2 | L30: 41 | M30: 0 | O30: 3 | P30: 38 | Q30: 0 | S30: 16 | T30: 15 | U30: 0 | W30: 10 | X30: 24 | Y30: 0 | AA30: 7 | AB30: 30 | AC30: 0 | AE30: 13 | AF30: 18 | AG30: 0 | AI30: 19 | AJ30: 12 | AK30: 0 | AM30: 8 | AN30: 28 | AO30: 0 | AQ30: 3 | AR30: 38 | AS30: 0 | AU30: 5 | AV30: 34 | AW30: 0
A31: Gijo | B31: 145 | C31: 0 | D31: 0 | E31: 0 | G31: 20 | H31: 11 | I31: 0 | K31: 14 | L31: 17 | M31: 0 | O31: 16 | P31: 15 | Q31: 0 | S31: 6 | T31: 32 | U31: 0 | W31: 7 | X31: 30 | Y31: 0 | AA31: 10 | AB31: 24 | AC31: 0 | AE31: 0 | AF31: 0 | AG31: 0 | AI31: 0 | AJ31: 0 | AK31: 0 | AM31: 0 | AN31: 0 | AO31: 0 | AQ31: 15 | AR31: 16 | AS31: 0 | AU31: 0 | AV31: 0 | AW31: 0
A32: Cláudio Dumont | B32: 131 | C32: 5 | D32: 34 | E32: 0 | G32: 1 | H32: 45 | I32: 0 | K32: 0 | L32: 0 | M32: 0 | O32: 2 | P32: 41 | Q32: 0 | S32: 20 | T32: 11 | U32: 0 | W32: 0 | X32: 0 | Y32: 0 | AA32: 0 | AB32: 0 | AC32: 0 | AE32: 0 | AF32: 0 | AG32: 0 | AI32: 0 | AJ32: 0 | AK32: 0 | AM32: 0 | AN32: 0 | AO32: 0 | AQ32: 0 | AR32: 0 | AS32: 0 | AU32: 0 | AV32: 0 | AW32: 0
A33: Carlos Eduardo | B33: 248 | C33: 23 | D33: 8 | E33: 0 | G33: 4 | H33: 36 | I33: 0 | K33: 27 | L33: 4 | M33: 0 | O33: 10 | P33: 24 | Q33: 0 | S33: 3 | T33: 38 | U33: 0 | W33: 13 | X33: 18 | Y33: 0 | AA33: 0 | AB33: 0 | AC33: 0 | AE33: 31 | AF33: 1 | AG33: 0 | AI33: 2 | AJ33: 41 | AK33: 1 | AM33: 14 | AN33: 17 | AO33: 0 | AQ33: 5 | AR33: 34 | AS33: 0 | AU33: 9 | AV33: 26 | AW33: 0
A34: XXXXX | B34: 0
A35: Ventura | B35: 748 | D35: 41 | E35: 0 | H35: 52 | I35: 0 | L35: 72 | M35: 0 | P35: 54 | Q35: 0 | T35: 84 | U35: 0 | X35: 79 | Y35: 0 | AB35: 31 | AC35: 0 | AF35: 97 | AG35: 0 | AJ35: 106 | AK35: 0 | AN35: 26 | AO35: 0 | AR35: 50 | AS35: 0 | AV35: 56 | AW35: 0
A36: Rodrigo Mercadante | B36: 335 | C36: 7 | D36: 30 | E36: 0 | G36: 6 | H36: 32 | I36: 0 | K36: 4 | L36: 36 | M36: 0 | O36: 9 | P36: 26 | Q36: 0 | S36: 2 | T36: 41 | U36: 0 | W36: 12 | X36: 20 | Y36: 0 | AA36: 15 | AB36: 16 | AC36: 0 | AE36: 6 | AF36: 32 | AG36: 0 | AI36: 5 | AJ36: 34 | AK36: 0 | AM36: 0 | AN36: 0 | AO36: 0 | AQ36: 6 | AR36: 32 | AS36: 0 | AU36: 4 | AV36: 36 | AW36: 0
A37: Maurílio Carmo | B37: 160 | C37: 0 | D37: 0 | E37: 0 | G37: 0 | H37: 0 | I37: 0 | K37: 18 | L37: 13 | M37: 0 | O37: 0 | P37: 0 | Q37: 0 | S37: 19 | T37: 12 | U37: 0 | W37: 19 | X37: 12 | Y37: 0 | AA37: 16 | AB37: 15 | AC37: 0 | AE37: 10 | AF37: 24 | AG37: 0 | AI37: 12 | AJ37: 20 | AK37: 0 | AM37: 9 | AN37: 26 | AO37: 0 | AQ37: 13 | AR37: 18 | AS37: 0 | AU37: 12 | AV37: 20 | AW37: 0
A38: Fernando Lobo | B38: 108 | C38: 20 | D38: 11 | E38: 0 | G38: 12 | H38: 20 | I38: 0 | K38: 26 | L38: 5 | M38: 0 | O38: 8 | P38: 28 | Q38: 0 | S38: 24 | T38: 7 | U38: 0 | W38: 16 | X38: 15 | Y38: 0 | AA38: 0 | AB38: 0 | AC38: 0 | AE38: 0 | AF38: 0 | AG38: 0 | AI38: 11 | AJ38: 22 | AK38: 0 | AM38: 0 | AN38: 0 | AO38: 0 | AQ38: 0 | AR38: 0 | AS38: 0 | AU38: 0 | AV38: 0 | AW38: 0
A39: Roberto Veloso | B39: 145 | C39: 0 | D39: 0 | E39: 0 | G39: 0 | H39: 0 | I39: 0 | K39: 13 | L39: 18 | M39: 0 | O39: 0 | P39: 0 | Q39: 0 | S39: 10 | T39: 24 | U39: 0 | W39: 6 | X39: 32 | Y39: 0 | AA39: 0 | AB39: 0 | AC39: 0 | AE39: 2 | AF39: 41 | AG39: 0 | AI39: 7 | AJ39: 30 | AK39: 0 | AM39: 0 | AN39: 0 | AO39: 0 | AQ39: 0 | AR39: 0 | AS39: 0 | AU39: 0 | AV39: 0 | AW39: 0
A40: XXXXXX | B40: 0
A41: Clemente Car | B41: 338 | D41: 10 | E41: 0 | H41: 26 | I41: 0 | L41: 30 | M41: 0 | P41: 19 | Q41: 0 | T41: 56 | U41: 0 | X41: 21 | Y41: 0 | AB41: 23 | AC41: 0 | AF41: 30 | AG41: 0 | AJ41: 24 | AK41: 0 | AN41: 42 | AO41: 0 | AR41: 24 | AS41: 0 | AV41: 33 | AW41: 0
A42: Caetano | B42: 42 | C42: 0 | D42: 0 | E42: 0 | G42: 0 | H42: 0 | I42: 0 | K42: 0 | L42: 0 | M42: 0 | O42: 17 | P42: 14 | Q42: 0 | S42: 8 | T42: 28 | U42: 0 | W42: 0 | X42: 0 | Y42: 0 | AA42: 0 | AB42: 0 | AC42: 0 | AE42: 0 | AF42: 0 | AG42: 0 | AI42: 0 | AJ42: 0 | AK42: 0 | AM42: 0 | AN42: 0 | AO42: 0 | AQ42: 0 | AR42: 0 | AS42: 0 | AU42: 0 | AV42: 0 | AW42: 0
A43: Leodegario Junior | B43: 117 | C43: 0 | D43: 0 | E43: 0 | G43: 15 | H43: 16 | I43: 0 | K43: 21 | L43: 10 | M43: 0 | O43: 0 | P43: 0 | Q43: 0 | S43: 0 | T43: 0 | U43: 0 | W43: 21 | X43: 10 | Y43: 0 | AA43: 28 | AB43: 3 | AC43: 0 | AE43: 14 | AF43: 17 | AG43: 0 | AI43: 10 | AJ43: 24 | AK43: 0 | AM43: 12 | AN43: 20 | AO43: 0 | AQ43: 0 | AR43: 0 | AS43: 0 | AU43: 14 | AV43: 17 | AW43: 0
A44: Edson Ribeiro | B44: 6 | C44: 0 | D44: 0 | E44: 0 | G44: 25 | H44: 6 | I44: 0 | K44: 0 | L44: 0 | M44: 0 | O44: 0 | P44: 0 | Q44: 0 | S44: 0 | T44: 0 | U44: 0 | W44: 0 | X44: 0 | Y44: 0 | AA44: 0 | AB44: 0 | AC44: 0 | AE44: 0 | AF44: 0 | AG44: 0 | AI44: 0 | AJ44: 0 | AK44: 0 | AM44: 0 | AN44: 0 | AO44: 0 | AQ44: 0 | AR44: 0 | AS44: 0 | AU44: 0 | AV44: 0 | AW44: 0
A45: Hélio Chagas | B45: 151 | C45: 21 | D45: 10 | E45: 0 | G45: 27 | H45: 4 | I45: 0 | K45: 22 | L45: 9 | M45: 0 | O45: 26 | P45: 5 | Q45: 0 | S45: 12 | T45: 20 | U45: 0 | W45: 23 | X45: 8 | Y45: 0 | AA45: 12 | AB45: 20 | AC45: 0 | AE45: 18 | AF45: 13 | AG45: 0 | AI45: 0 | AJ45: 0 | AK45: 0 | AM45: 11 | AN45: 22 | AO45: 0 | AQ45: 10 | AR45: 24 | AS45: 0 | AU45: 15 | AV45: 16 | AW45: 0
A46: SSSSSSS | B46: 22 | C46: 0 | D46: 0 | E46: 0 | G46: 0 | H46: 0 | I46: 0 | K46: 20 | L46: 11 | M46: 0 | O46: 0 | P46: 0 | Q46: 0 | S46: 23 | T46: 8 | U46: 0 | W46: 28 | X46: 3 | Y46: 0 | AA46: 0 | AB46: 0 | AC46: 0 | AE46: 0 | AF46: 0 | AG46: 0 | AI46: 0 | AJ46: 0 | AK46: 0 | AM46: 0 | AN46: 0 | AO46: 0 | AQ46: 0 | AR46: 0 | AS46: 0 | AU46: 0 | AV46: 0 | AW46: 0
A47: Incosel | B47: 1108 | D47: 86 | E47: 1 | H47: 88 | I47: 0 | L47: 106 | M47: 1 | P47: 102 | Q47: 1 | T47: 42 | U47: 0 | X47: 66 | Y47: 1 | AB47: 120 | AC47: 0 | AF47: 84 | AG47: 0 | AJ47: 86 | AK47: 0 | AN47: 111 | AO47: 0 | AR47: 107 | AS47: 0 | AV47: 106 | AW47: 0
A48: Carlos Sampaio | B48: 293 | C48: 14 | D48: 17 | E48: 0 | G48: 17 | H48: 14 | I48: 0 | K48: 9 | L48: 26 | M48: 0 | O48: 19 | P48: 12 | Q48: 0 | S48: 15 | T48: 16 | U48: 0 | W48: 15 | X48: 16 | Y48: 0 | AA48: 5 | AB48: 34 | AC48: 0 | AE48: 3 | AF48: 38 | AG48: 0 | AI48: 6 | AJ48: 32 | AK48: 0 | AM48: 5 | AN48: 34 | AO48: 0 | AQ48: 9 | AR48: 26 | AS48: 0 | AU48: 8 | AV48: 28 | AW48: 0
A49: Enio Júnior | B49: 142 | C49: 0 | D49: 0 | E49: 0 | G49: 24 | H49: 7 | I49: 0 | K49: 15 | L49: 16 | M49: 0 | O49: 18 | P49: 13 | Q49: 0 | S49: 14 | T49: 17 | U49: 0 | W49: 26 | X49: 5 | Y49: 0 | AA49: 8 | AB49: 28 | AC49: 0 | AE49: 19 | AF49: 12 | AG49: 0 | AI49: 0 | AJ49: 0 | AK49: 0 | AM49: 0 | AN49: 0 | AO49: 0 | AQ49: 11 | AR49: 22 | AS49: 0 | AU49: 11 | AV49: 22 | AW49: 0
A50: Marcelo Clemente | B50: 406 | C50: 1 | D50: 45 | E50: 1 | G50: 2 | H50: 41 | I50: 0 | K50: 5 | L50: 34 | M50: 1 | O50: 1 | P50: 45 | Q50: 1 | S50: 22 | T50: 9 | U50: 0 | W50: 2 | X50: 41 | Y50: 1 | AA50: 1 | AB50: 45 | AC50: 0 | AE50: 0 | AF50: 0 | AG50: 0 | AI50: 8 | AJ50: 28 | AK50: 0 | AM50: 1 | AN50: 45 | AO50: 0 | AQ50: 1 | AR50: 45 | AS50: 0 | AU50: 10 | AV50: 24 | AW50: 0
A51: Lucio Chequer | B51: 267 | C51: 10 | D51: 24 | E51: 0 | G51: 9 | H51: 26 | I51: 0 | K51: 7 | L51: 30 | M51: 0 | O51: 6 | P51: 32 | Q51: 0 | S51: 0 | T51: 0 | U51: 0 | W51: 27 | X51: 4 | Y51: 0 | AA51: 18 | AB51: 13 | AC51: 0 | AE51: 5 | AF51: 34 | AG51: 0 | AI51: 9 | AJ51: 26 | AK51: 0 | AM51: 6 | AN51: 32 | AO51: 0 | AQ51: 17 | AR51: 14 | AS51: 0 | AU51: 6 | AV51: 32 | AW51: 0
A52: XXXXXXXX | B52: 0
A53: Clinorte | B53: 537 | D53: 54 | E53: 0 | H53: 56 | I53: 0 | L53: 43 | M53: 0 | P53: 39 | Q53: 0 | T53: 31 | U53: 0 | X53: 61 | Y53: 0 | AB53: 57 | AC53: 0 | AF53: 56 | AG53: 0 | AJ53: 38 | AK53: 0 | AN53: 41 | AO53: 0 | AR53: 20 | AS53: 0 | AV53: 41 | AW53: 0
A54: Guilherme Janot | B54: 378 | C54: 2 | D54: 41 | E54: 0 | G54: 7 | H54: 30 | I54: 0 | K54: 11 | L54: 22 | M54: 0 | O54: 14 | P54: 17 | Q54: 0 | S54: 18 | T54: 13 | U54: 0 | W54: 3 | X54: 38 | Y54: 0 | AA54: 6 | AB54: 32 | AC54: 0 | AE54: 1 | AF54: 45 | AG54: 0 | AI54: 3 | AJ54: 38 | AK54: 0 | AM54: 2 | AN54: 41 | AO54: 0 | AQ54: 12 | AR54: 20 | AS54: 0 | AU54: 2 | AV54: 41 | AW54: 0
A55: Ricardo Araújo | B55: 86 | C55: 0 | D55: 0 | E55: 0 | G55: 13 | H55: 18 | I55: 0 | K55: 16 | L55: 15 | M55: 0 | O55: 13 | P55: 18 | Q55: 0 | S55: 13 | T55: 18 | U55: 0 | W55: 22 | X55: 9 | Y55: 0 | AA55: 23 | AB55: 8 | AC55: 0 | AE55: 0 | AF55: 0 | AG55: 0 | AI55: 0 | AJ55: 0 | AK55: 0 | AM55: 0 | AN55: 0 | AO55: 0 | AQ55: 0 | AR55: 0 | AS55: 0 | AU55: 0 | AV55: 0 | AW55: 0
A56: Cláudio Naves | B56: 22 | C56: 18 | D56: 13 | E56: 0 | G56: 28 | H56: 3 | I56: 0 | K56: 25 | L56: 6 | M56: 0 | O56: 0 | P56: 0 | Q56: 0 | S56: 0 | T56: 0 | U56: 0 | W56: 0 | X56: 0 | Y56: 0 | AA56: 0 | AB56: 0 | AC56: 0 | AE56: 0 | AF56: 0 | AG56: 0 | AI56: 0 | AJ56: 0 | AK56: 0 | AM56: 0 | AN56: 0 | AO56: 0 | AQ56: 0 | AR56: 0 | AS56: 0 | AU56: 0 | AV56: 0 | AW56: 0
A57: Luiz Otávio | B57: 51 | C57: 0 | D57: 0 | E57: 0 | G57: 26 | H57: 5 | I57: 0 | K57: 0 | L57: 0 | M57: 0 | O57: 27 | P57: 4 | Q57: 0 | S57: 0 | T57: 0 | U57: 0 | W57: 17 | X57: 14 | Y57: 0 | AA57: 14 | AB57: 17 | AC57: 0 | AE57: 20 | AF57: 11 | AG57: 0 | AI57: 0 | AJ57: 0 | AK57: 0 | AM57: 0 | AN57: 0 | AO57: 0 | AQ57: 0 | AR57: 0 | AS57: 0 | AU57: 0 | AV57: 0 | AW57: 0
A58: XXXXXXXXX | B58: 0

Sheet Class Elimin 2 Piores Equip
A1: 2022 | D1: OK | H1: OK | L1: OK | P1: OK | T1: OK | X1: OK | AB1: OK | AF1: OK | AJ1: OK | AN1: OK | AR1: OK | AV1: OK
C2: 1ª etapa | G2: 2ª etapa | K2: 3ª etapa | O2: 4ª etapa | S2: 5ª etapa | W2: 6ª etapa | AA2: 7ª etapa | AE2: 8ª etapa | AI2: 9ª etapa | AM2: 10ª etapa | AQ2: 11ª etapa | AU2: 12ª etapa
C3: 00:00:00 | G3: 00:00:00 | K3: 17/03/2022 - 20:30 | O3: 00:00:00 | S3: 00:00:00 | W3: 00:00:00 | AA3: 00:00:00 | AE3: 00:00:00 | AI3: 00:00:00 | AM3: 00:00:00 | AQ3: 00:00:00 | AU3: 00:00:00
A4: EQUIPES | B4: Pontuação Geral | C4: Posição | D4: Pontos | E4: Bônus | F4: Penalidade | G4: Posição | H4: Pontos | I4: Bônus | J4: Penalidade | K4: Posição | L4: Pontos | M4: Bônus | N4: Penalidade | O4: Posição | P4: Pontos | Q4: Bônus | R4: Penalidade | S4: Posição | T4: Pontos | U4: Bônus | V4: Penalidade | W4: Posição | X4: Pontos | Y4: Bônus | Z4: Penalidade | AA4: Posição | AB4: Pontos | AC4: Bônus | AD4: Penalidade | AE4: Posição | AF4: Pontos | AG4: Bônus | AH4: Penalidade | AI4: Posição | AJ4: Pontos | AK4: Bônus | AL4: Penalidade | AM4: Posição | AN4: Pontos | AO4: Bônus | AP4: Penalidade | AQ4: Posição | AR4: Pontos | AS4: Bônus | AT4: Penalidade | AU4: Posição | AV4: Pontos | AW4: Bônus | AX4: Penalidade
A5: Incosel | B5: 916 | D5: 86 | E5: 1 | H5: 81 | I5: 0 | L5: 90 | M5: 1 | P5: 90 | Q5: 1 | T5: 42* | U5: 0 | X5: 62* | Y5: 1 | AB5: 107 | AC5: 0 | AF5: 84 | AG5: 0 | AJ5: 86 | AK5: 0 | AN5: 111 | AO5: 0 | AR5: 93 | AS5: 0 | AV5: 84 | AW5: 0
A6: Carlos Sampaio | B6: 249 | C6: 14 | D6: 17 | E6: 0 | G6: 17 | H6: 14 | I6: 0 | K6: 9 | L6: 26 | M6: 0 | O6: 19 | P6: 12* | Q6: 0 | S6: 15 | T6: 16* | U6: 0 | W6: 15 | X6: 16* | Y6: 0 | AA6: 5 | AB6: 34 | AC6: 0 | AE6: 3 | AF6: 38 | AG6: 0 | AI6: 6 | AJ6: 32 | AK6: 0 | AM6: 5 | AN6: 34 | AO6: 0 | AQ6: 9 | AR6: 26 | AS6: 0 | AU6: 8 | AV6: 28 | AW6: 0
A7: Enio Júnior | B7: 75 | C7: 0 | D7: 0 | E7: 0 | G7: 24 | H7: 7* | I7: 0 | K7: 15 | L7: 16* | M7: 0 | O7: 18 | P7: 13 | Q7: 0 | S7: 14 | T7: 17* | U7: 0 | W7: 26 | X7: 5* | Y7: 0 | AA7: 8 | AB7: 28 | AC7: 0 | AE7: 19 | AF7: 12 | AG7: 0 | AI7: 0 | AJ7: 0 | AK7: 0 | AM7: 0 | AN7: 0 | AO7: 0 | AQ7: 11 | AR7: 22 | AS7: 0 | AU7: 11 | AV7: 22* | AW7: 0
A8: Marcelo Clemente | B8: 356 | C8: 1 | D8: 45 | E8: 1 | G8: 2 | H8: 41 | I8: 0 | K8: 5 | L8: 34 | M8: 1 | O8: 1 | P8: 45 | Q8: 1 | S8: 22 | T8: 9* | U8: 0 | W8: 2 | X8: 41* | Y8: 1 | AA8: 1 | AB8: 45 | AC8: 0 | AE8: 0 | AF8: 0 | AG8: 0 | AI8: 8 | AJ8: 28 | AK8: 0 | AM8: 1 | AN8: 45 | AO8: 0 | AQ8: 1 | AR8: 45 | AS8: 0 | AU8: 10 | AV8: 24 | AW8: 0
A9: Lucio Chequer | B9: 236 | C9: 10 | D9: 24 | E9: 0 | G9: 9 | H9: 26 | I9: 0 | K9: 7 | L9: 30 | M9: 0 | O9: 6 | P9: 32 | Q9: 0 | S9: 0 | T9: 0* | U9: 0 | W9: 27 | X9: 4** | Y9: 0 | AA9: 18 | AB9: 13* | AC9: 0 | AE9: 5 | AF9: 34 | AG9: 0 | AI9: 9 | AJ9: 26 | AK9: 0 | AM9: 6 | AN9: 32 | AO9: 0 | AQ9: 17 | AR9: 14* | AS9: 0 | AU9: 6 | AV9: 32 | AW9: 0
A10: XXXXXXXX | B10: 0 | T10: * | X10: *
A11: Frigoindaiá | B11: 757 | D11: 70 | E11: 0 | H11: 109 | I11: 0 | L11: 62 | M11: 0 | P11: 103 | Q11: 0 | T11: 85 | U11: 0 | X11: 72 | Y11: 0 | AB11: 54 | AC11: 0 | AF11: 19* | AG11: 0 | AJ11: 53 | AK11: 1 | AN11: 45* | AO11: 0 | AR11: 88 | AS11: 0 | AV11: 60 | AW11: 0
A12: Jarbas Reis | B12: 288 | C12: 8 | D12: 28 | E12: 0 | G12: 8 | H12: 28 | I12: 0 | K12: 2 | L12: 41 | M12: 0 | O12: 3 | P12: 38 | Q12: 0 | S12: 16 | T12: 15 | U12: 0 | W12: 10 | X12: 24 | Y12: 0 | AA12: 7 | AB12: 30 | AC12: 0 | AE12: 13 | AF12: 18* | AG12: 0 | AI12: 19 | AJ12: 12 | AK12: 0 | AM12: 8 | AN12: 28* | AO12: 0 | AQ12: 3 | AR12: 38 | AS12: 0 | AU12: 5 | AV12: 34 | AW12: 0
A13: Gijo | B13: 119 | C13: 0 | D13: 0 | E13: 0 | G13: 20 | H13: 11* | I13: 0 | K13: 14 | L13: 17 | M13: 0 | O13: 16 | P13: 15* | Q13: 0 | S13: 6 | T13: 32 | U13: 0 | W13: 7 | X13: 30 | Y13: 0 | AA13: 10 | AB13: 24 | AC13: 0 | AE13: 0 | AF13: 0* | AG13: 0 | AI13: 0 | AJ13: 0 | AK13: 0 | AM13: 0 | AN13: 0* | AO13: 0 | AQ13: 15 | AR13: 16 | AS13: 0 | AU13: 0 | AV13: 0 | AW13: 0
A14: Cláudio Dumont | B14: 120 | C14: 5 | D14: 34 | E14: 0 | G14: 1 | H14: 45 | I14: 0 | K14: 0 | L14: 0 | M14: 0 | O14: 2 | P14: 41 | Q14: 0 | S14: 20 | T14: 11* | U14: 0 | W14: 0 | X14: 0 | Y14: 0 | AA14: 0 | AB14: 0 | AC14: 0 | AE14: 0 | AF14: 0* | AG14: 0 | AI14: 0 | AJ14: 0 | AK14: 0 | AM14: 0 | AN14: 0* | AO14: 0 | AQ14: 0 | AR14: 0 | AS14: 0 | AU14: 0 | AV14: 0 | AW14: 0
A15: Carlos Eduardo | B15: 230 | C15: 23 | D15: 8 | E15: 0 | G15: 4 | H15: 36 | I15: 0 | K15: 27 | L15: 4 | M15: 0 | O15: 10 | P15: 24 | Q15: 0 | S15: 3 | T15: 38 | U15: 0 | W15: 13 | X15: 18 | Y15: 0 | AA15: 0 | AB15: 0 | AC15: 0 | AE15: 31 | AF15: 1* | AG15: 0 | AI15: 2 | AJ15: 41 | AK15: 1 | AM15: 14 | AN15: 17* | AO15: 0 | AQ15: 5 | AR15: 34 | AS15: 0 | AU15: 9 | AV15: 26 | AW15: 0
A16: XXXXX | B16: 0 | AF16: * | AN16: *
A17: LQN | B17: 659 | D17: 62 | E17: 0 | H17: 47* | I17: 0 | L17: 58 | M17: 0 | P17: 67 | Q17: 0 | T17: 62 | U17: 0 | X17: 84 | Y17: 0 | AB17: 82 | AC17: 0 | AF17: 76 | AG17: 0 | AJ17: 54 | AK17: 0 | AN17: 54 | AO17: 0 | AR17: 60 | AS17: 0 | AV17: 0* | AW17: 0
A18: SSSS | B18: 153 | C18: 4 | D18: 36 | E18: 0 | G18: 11 | H18: 22* | I18: 0 | K18: 12 | L18: 20 | M18: 0 | O18: 11 | P18: 22 | Q18: 0 | S18: 7 | T18: 30 | U18: 0 | W18: 1 | X18: 45 | Y18: 0 | AA18: 26 | AB18: 5* | AC18: 0 | AE18: 0 | AF18: 0 | AG18: 0 | AI18: 0 | AJ18: 0 | AK18: 0 | AM18: 0 | AN18: 0 | AO18: 0 | AQ18: 0 | AR18: 0 | AS18: 0 | AU18: 0 | AV18: 0* | AW18: 0
A19: Michel Abouud | B19: 64 | C19: 0 | D19: 0 | E19: 0 | G19: 23 | H19: 8** | I19: 0 | K19: 0 | L19: 0 | M19: 0 | O19: 39 | P19: 1* | Q19: 0 | S19: 0 | T19: 0 | U19: 0 | W19: 18 | X19: 13 | Y19: 0 | AA19: 13 | AB19: 18 | AC19: 0 | AE19: 12 | AF19: 20 | AG19: 0 | AI19: 0 | AJ19: 0 | AK19: 0 | AM19: 0 | AN19: 0 | AO19: 0 | AQ19: 18 | AR19: 13 | AS19: 0 | AU19: 0 | AV19: 0* | AW19: 0
A20: Euclides Almeida | B20: 158 | C20: 0 | D20: 0 | E20: 0 | G20: 18 | H20: 13* | I20: 0 | K20: 0 | L20: 0 | M20: 0 | O20: 20 | P20: 11 | Q20: 0 | S20: 11 | T20: 22 | U20: 0 | W20: 20 | X20: 11* | Y20: 0 | AA20: 9 | AB20: 26 | AC20: 0 | AE20: 9 | AF20: 26 | AG20: 0 | AI20: 13 | AJ20: 18 | AK20: 0 | AM20: 3 | AN20: 38 | AO20: 0 | AQ20: 14 | AR20: 17 | AS20: 0 | AU20: 0 | AV20: 0* | AW20: 0
A21: Claudio Junqueira | B21: 284 | C21: 9 | D21: 26 | E21: 0 | G21: 19 | H21: 12* | I21: 0 | K21: 3 | L21: 38 | M21: 0 | O21: 5 | P21: 34 | Q21: 0 | S21: 21 | T21: 10 | U21: 0 | W21: 9 | X21: 26 | Y21: 0 | AA21: 3 | AB21: 38 | AC21: 0 | AE21: 7 | AF21: 30 | AG21: 0 | AI21: 4 | AJ21: 36 | AK21: 0 | AM21: 15 | AN21: 16 | AO21: 0 | AQ21: 7 | AR21: 30 | AS21: 0 | AU21: 0 | AV21: 0* | AW21: 0
A22: XXXX | B22: 0 | H22: * | AV22: *
A23: Ventura | B23: 647 | D23: 41 | E23: 0 | H23: 52 | I23: 0 | L23: 67 | M23: 0 | P23: 54 | Q23: 0 | T23: 77 | U23: 0 | X23: 67 | Y23: 0 | AB23: 31* | AC23: 0 | AF23: 97 | AG23: 0 | AJ23: 86 | AK23: 0 | AN23: 26* | AO23: 0 | AR23: 50 | AS23: 0 | AV23: 56 | AW23: 0
A24: Rodrigo Mercadante | B24: 319 | C24: 7 | D24: 30 | E24: 0 | G24: 6 | H24: 32 | I24: 0 | K24: 4 | L24: 36 | M24: 0 | O24: 9 | P24: 26 | Q24: 0 | S24: 2 | T24: 41 | U24: 0 | W24: 12 | X24: 20 | Y24: 0 | AA24: 15 | AB24: 16* | AC24: 0 | AE24: 6 | AF24: 32 | AG24: 0 | AI24: 5 | AJ24: 34 | AK24: 0 | AM24: 0 | AN24: 0* | AO24: 0 | AQ24: 6 | AR24: 32 | AS24: 0 | AU24: 4 | AV24: 36 | AW24: 0
A25: Maurílio Carmo | B25: 87 | C25: 0 | D25: 0 | E25: 0 | G25: 0 | H25: 0 | I25: 0 | K25: 18 | L25: 13 | M25: 0 | O25: 0 | P25: 0 | Q25: 0 | S25: 19 | T25: 12 | U25: 0 | W25: 19 | X25: 12* | Y25: 0 | AA25: 16 | AB25: 15* | AC25: 0 | AE25: 10 | AF25: 24 | AG25: 0 | AI25: 12 | AJ25: 20* | AK25: 0 | AM25: 9 | AN25: 26* | AO25: 0 | AQ25: 13 | AR25: 18 | AS25: 0 | AU25: 12 | AV25: 20 | AW25: 0
A26: Fernando Lobo | B26: 96 | C26: 20 | D26: 11 | E26: 0 | G26: 12 | H26: 20 | I26: 0 | K26: 26 | L26: 5* | M26: 0 | O26: 8 | P26: 28 | Q26: 0 | S26: 24 | T26: 7* | U26: 0 | W26: 16 | X26: 15 | Y26: 0 | AA26: 0 | AB26: 0* | AC26: 0 | AE26: 0 | AF26: 0 | AG26: 0 | AI26: 11 | AJ26: 22 | AK26: 0 | AM26: 0 | AN26: 0* | AO26: 0 | AQ26: 0 | AR26: 0 | AS26: 0 | AU26: 0 | AV26: 0 | AW26: 0
A27: Roberto Veloso | B27: 145 | C27: 0 | D27: 0 | E27: 0 | G27: 0 | H27: 0 | I27: 0 | K27: 13 | L27: 18 | M27: 0 | O27: 0 | P27: 0 | Q27: 0 | S27: 10 | T27: 24 | U27: 0 | W27: 6 | X27: 32 | Y27: 0 | AA27: 0 | AB27: 0* | AC27: 0 | AE27: 2 | AF27: 41 | AG27: 0 | AI27: 7 | AJ27: 30 | AK27: 0 | AM27: 0 | AN27: 0* | AO27: 0 | AQ27: 0 | AR27: 0 | AS27: 0 | AU27: 0 | AV27: 0 | AW27: 0
A28: XXXXXX | B28: 0 | AB28: * | AN28: *
A29: Lider | B29: 646 | D29: 80 | E29: 0 | H29: 87 | I29: 0 | L29: 70 | M29: 0 | P29: 82 | Q29: 0 | T29: 68 | U29: 0 | X29: 51 | Y29: 0 | AB29: 41* | AC29: 0 | AF29: 58 | AG29: 0 | AJ29: 46 | AK29: 0 | AN29: 37* | AO29: 0 | AR29: 48 | AS29: 0 | AV29: 56 | AW29: 0
A30: Marcelo Sant'anna | B30: 269 | C30: 3 | D30: 38 | E30: 0 | G30: 5 | H30: 34 | I30: 0 | K30: 0 | L30: 0 | M30: 0 | O30: 15 | P30: 16 | Q30: 0 | S30: 4 | T30: 36 | U30: 0 | W30: 8 | X30: 28 | Y30: 0 | AA30: 2 | AB30: 41* | AC30: 0 | AE30: 8 | AF30: 28 | AG30: 0 | AI30: 16 | AJ30: 15 | AK30: 0 | AM30: 4 | AN30: 36* | AO30: 0 | AQ30: 4 | AR30: 36 | AS30: 0 | AU30: 3 | AV30: 38 | AW30: 0
A31: Flávio Marques | B31: 46 | C31: 16 | D31: 15* | E31: 0 | G31: 30 | H31: 1* | I31: 0 | K31: 24 | L31: 7* | M31: 0 | O31: 21 | P31: 10* | Q31: 0 | S31: 30 | T31: 1* | U31: 0 | W31: 0 | X31: 0 | Y31: 0 | AA31: 0 | AB31: 0* | AC31: 0 | AE31: 15 | AF31: 16 | AG31: 0 | AI31: 0 | AJ31: 0 | AK31: 0 | AM31: 34 | AN31: 1* | AO31: 0 | AQ31: 19 | AR31: 12 | AS31: 0 | AU31: 13 | AV31: 18 | AW31: 0
A32: Rodrigo Rotheia | B32: 134 | C32: 11 | D32: 22 | E32: 0 | G32: 3 | H32: 38 | I32: 0 | K32: 6 | L32: 32 | M32: 0 | O32: 4 | P32: 36 | Q32: 0 | S32: 27 | T32: 4* | U32: 0 | W32: 25 | X32: 6 | Y32: 0 | AA32: 0 | AB32: 0* | AC32: 0 | AE32: 0 | AF32: 0 | AG32: 0 | AI32: 0 | AJ32: 0 | AK32: 0 | AM32: 0 | AN32: 0* | AO32: 0 | AQ32: 0 | AR32: 0 | AS32: 0 | AU32: 0 | AV32: 0 | AW32: 0
A33: Jader Abreu | B33: 51 | C33: 0 | D33: 0 | E33: 0 | G33: 21 | H33: 10* | I33: 0 | K33: 17 | L33: 14 | M33: 0 | O33: 22 | P33: 9* | Q33: 0 | S33: 25 | T33: 6 | U33: 0 | W33: 0 | X33: 0 | Y33: 0 | AA33: 0 | AB33: 0* | AC33: 0 | AE33: 17 | AF33: 14 | AG33: 0 | AI33: 14 | AJ33: 17 | AK33: 0 | AM33: 0 | AN33: 0* | AO33: 0 | AQ33: 0 | AR33: 0 | AS33: 0 | AU33: 0 | AV33: 0 | AW33: 0
A34: Marcelo Junqueira | B34: 146 | C34: 12 | D34: 20 | E34: 0 | G34: 16 | H34: 15 | I34: 0 | K34: 10 | L34: 24 | M34: 0 | O34: 7 | P34: 30 | Q34: 0 | S34: 9 | T34: 26 | U34: 0 | W34: 14 | X34: 17 | Y34: 0 | AA34: 0 | AB34: 0* | AC34: 0 | AE34: 0 | AF34: 0 | AG34: 0 | AI34: 17 | AJ34: 14 | AK34: 0 | AM34: 0 | AN34: 0* | AO34: 0 | AQ34: 0 | AR34: 0 | AS34: 0 | AU34: 0 | AV34: 0 | AW34: 0
A35: Alpha | B35: 639 | D35: 35 | E35: 0 | H35: 24* | I35: 0 | L35: 53 | M35: 0 | P35: 34* | Q35: 0 | T35: 64 | U35: 1 | X35: 63 | Y35: 0 | AB35: 58 | AC35: 1 | AF35: 58 | AG35: 1 | AJ35: 61 | AK35: 0 | AN35: 72 | AO35: 0 | AR35: 84 | AS35: 1 | AV35: 86 | AW35: 1
A36: Alexandre Melillo | B36: 362 | C36: 19 | D36: 12 | E36: 0 | G36: 0 | H36: 0* | I36: 0 | K36: 1 | L36: 45 | M36: 0 | O36: 12 | P36: 20* | Q36: 0 | S36: 1 | T36: 45 | U36: 1 | W36: 5 | X36: 34 | Y36: 0 | AA36: 4 | AB36: 36 | AC36: 1 | AE36: 4 | AF36: 36 | AG36: 1 | AI36: 1 | AJ36: 45 | AK36: 0 | AM36: 13 | AN36: 18 | AO36: 0 | AQ36: 2 | AR36: 41 | AS36: 1 | AU36: 1 | AV36: 45 | AW36: 1
A37: Ivan Renault | B37: 126 | C37: 22 | D37: 9 | E37: 0 | G37: 0 | H37: 0* | I37: 0 | K37: 23 | L37: 8 | M37: 0 | O37: 25 | P37: 6* | Q37: 0 | S37: 17 | T37: 14 | U37: 0 | W37: 24 | X37: 7 | Y37: 0 | AA37: 0 | AB37: 0 | AC37: 0 | AE37: 0 | AF37: 0 | AG37: 0 | AI37: 0 | AJ37: 0 | AK37: 0 | AM37: 7 | AN37: 30 | AO37: 0 | AQ37: 8 | AR37: 28 | AS37: 0 | AU37: 7 | AV37: 30 | AW37: 0
A38: Morvan | B38: 116 | C38: 17 | D38: 14 | E38: 0 | G38: 10 | H38: 24* | I38: 0 | K38: 0 | L38: 0 | M38: 0 | O38: 0 | P38: 0* | Q38: 0 | S38: 26 | T38: 5 | U38: 0 | W38: 11 | X38: 22 | Y38: 0 | AA38: 11 | AB38: 22 | AC38: 0 | AE38: 11 | AF38: 22 | AG38: 0 | AI38: 15 | AJ38: 16 | AK38: 0 | AM38: 0 | AN38: 0 | AO38: 0 | AQ38: 16 | AR38: 15 | AS38: 0 | AU38: 27 | AV38: 4* | AW38: 0
A39: Jorge Prado | B39: 35 | C39: 0 | D39: 0 | E39: 0 | G39: 0 | H39: 0* | I39: 0 | K39: 0 | L39: 0 | M39: 0 | O39: 23 | P39: 8* | Q39: 0 | S39: 0 | T39: 0 | U39: 0 | W39: 0 | X39: 0 | Y39: 0 | AA39: 0 | AB39: 0 | AC39: 0 | AE39: 0 | AF39: 0 | AG39: 0 | AI39: 0 | AJ39: 0 | AK39: 0 | AM39: 10 | AN39: 24 | AO39: 0 | AQ39: 0 | AR39: 0 | AS39: 0 | AU39: 20 | AV39: 11 | AW39: 0
A40: XXX | H40: * | P40: *
A41: Clinorte | B41: 483 | D41: 54 | E41: 0 | H41: 53 | I41: 0 | L41: 43 | M41: 0 | P41: 39 | Q41: 0 | T41: 31* | U41: 0 | X41: 61 | Y41: 0 | AB41: 57 | AC41: 0 | AF41: 56 | AG41: 0 | AJ41: 38 | AK41: 0 | AN41: 41 | AO41: 0 | AR41: 20* | AS41: 0 | AV41: 41 | AW41: 0
A42: Guilherme Janot | B42: 345 | C42: 2 | D42: 41 | E42: 0 | G42: 7 | H42: 30 | I42: 0 | K42: 11 | L42: 22 | M42: 0 | O42: 14 | P42: 17 | Q42: 0 | S42: 18 | T42: 13* | U42: 0 | W42: 3 | X42: 38 | Y42: 0 | AA42: 6 | AB42: 32 | AC42: 0 | AE42: 1 | AF42: 45 | AG42: 0 | AI42: 3 | AJ42: 38 | AK42: 0 | AM42: 2 | AN42: 41 | AO42: 0 | AQ42: 12 | AR42: 20* | AS42: 0 | AU42: 2 | AV42: 41 | AW42: 0
A43: Ricardo Araújo | B43: 68 | C43: 0 | D43: 0 | E43: 0 | G43: 13 | H43: 18 | I43: 0 | K43: 16 | L43: 15 | M43: 0 | O43: 13 | P43: 18 | Q43: 0 | S43: 13 | T43: 18* | U43: 0 | W43: 22 | X43: 9 | Y43: 0 | AA43: 23 | AB43: 8 | AC43: 0 | AE43: 0 | AF43: 0 | AG43: 0 | AI43: 0 | AJ43: 0 | AK43: 0 | AM43: 0 | AN43: 0 | AO43: 0 | AQ43: 0 | AR43: 0* | AS43: 0 | AU43: 0 | AV43: 0 | AW43: 0
A44: Cláudio Naves | B44: 19 | C44: 18 | D44: 13 | E44: 0 | G44: 28 | H44: 3* | I44: 0 | K44: 25 | L44: 6 | M44: 0 | O44: 0 | P44: 0 | Q44: 0 | S44: 0 | T44: 0* | U44: 0 | W44: 0 | X44: 0 | Y44: 0 | AA44: 0 | AB44: 0 | AC44: 0 | AE44: 0 | AF44: 0 | AG44: 0 | AI44: 0 | AJ44: 0 | AK44: 0 | AM44: 0 | AN44: 0 | AO44: 0 | AQ44: 0 | AR44: 0* | AS44: 0 | AU44: 0 | AV44: 0 | AW44: 0
A45: Luiz Otávio | B45: 51 | C45: 0 | D45: 0 | E45: 0 | G45: 26 | H45: 5 | I45: 0 | K45: 0 | L45: 0 | M45: 0 | O45: 27 | P45: 4 | Q45: 0 | S45: 0 | T45: 0* | U45: 0 | W45: 17 | X45: 14 | Y45: 0 | AA45: 14 | AB45: 17 | AC45: 0 | AE45: 20 | AF45: 11 | AG45: 0 | AI45: 0 | AJ45: 0 | AK45: 0 | AM45: 0 | AN45: 0 | AO45: 0 | AQ45: 0 | AR45: 0* | AS45: 0 | AU45: 0 | AV45: 0 | AW45: 0
A46: XXXXXXXXX | B46: 0 | T46: * | AR46: *
A47: Clemente Car | B47: 309 | D47: 10* | E47: 0 | H47: 26 | I47: 0 | L47: 30 | M47: 0 | P47: 19* | Q47: 0 | T47: 56 | U47: 0 | X47: 21 | Y47: 0 | AB47: 23 | AC47: 0 | AF47: 30 | AG47: 0 | AJ47: 24 | AK47: 0 | AN47: 42 | AO47: 0 | AR47: 24 | AS47: 0 | AV47: 33 | AW47: 0
A48: Caetano | B48: 28 | C48: 0 | D48: 0* | E48: 0 | G48: 0 | H48: 0 | I48: 0 | K48: 0 | L48: 0 | M48: 0 | O48: 17 | P48: 14* | Q48: 0 | S48: 8 | T48: 28 | U48: 0 | W48: 0 | X48: 0 | Y48: 0 | AA48: 0 | AB48: 0 | AC48: 0 | AE48: 0 | AF48: 0 | AG48: 0 | AI48: 0 | AJ48: 0 | AK48: 0 | AM48: 0 | AN48: 0 | AO48: 0 | AQ48: 0 | AR48: 0 | AS48: 0 | AU48: 0 | AV48: 0 | AW48: 0
A49: Leodegario Junior | B49: 117 | C49: 0 | D49: 0* | E49: 0 | G49: 15 | H49: 16 | I49: 0 | K49: 21 | L49: 10 | M49: 0 | O49: 0 | P49: 0* | Q49: 0 | S49: 0 | T49: 0 | U49: 0 | W49: 21 | X49: 10 | Y49: 0 | AA49: 28 | AB49: 3 | AC49: 0 | AE49: 14 | AF49: 17 | AG49: 0 | AI49: 10 | AJ49: 24 | AK49: 0 | AM49: 12 | AN49: 20 | AO49: 0 | AQ49: 0 | AR49: 0 | AS49: 0 | AU49: 14 | AV49: 17 | AW49: 0
A50: Edson Ribeiro | B50: 6 | C50: 0 | D50: 0* | E50: 0 | G50: 25 | H50: 6 | I50: 0 | K50: 0 | L50: 0 | M50: 0 | O50: 0 | P50: 0* | Q50: 0 | S50: 0 | T50: 0 | U50: 0 | W50: 0 | X50: 0 | Y50: 0 | AA50: 0 | AB50: 0 | AC50: 0 | AE50: 0 | AF50: 0 | AG50: 0 | AI50: 0 | AJ50: 0 | AK50: 0 | AM50: 0 | AN50: 0 | AO50: 0 | AQ50: 0 | AR50: 0 | AS50: 0 | AU50: 0 | AV50: 0 | AW50: 0
A51: Hélio Chagas | B51: 136 | C51: 21 | D51: 10* | E51: 0 | G51: 27 | H51: 4 | I51: 0 | K51: 22 | L51: 9 | M51: 0 | O51: 26 | P51: 5* | Q51: 0 | S51: 12 | T51: 20 | U51: 0 | W51: 23 | X51: 8 | Y51: 0 | AA51: 12 | AB51: 20 | AC51: 0 | AE51: 18 | AF51: 13 | AG51: 0 | AI51: 0 | AJ51: 0 | AK51: 0 | AM51: 11 | AN51: 22 | AO51: 0 | AQ51: 10 | AR51: 24 | AS51: 0 | AU51: 15 | AV51: 16 | AW51: 0
A52: SSSSSSS | B52: 22 | C52: 0 | D52: 0* | E52: 0 | G52: 0 | H52: 0 | I52: 0 | K52: 20 | L52: 11 | M52: 0 | O52: 0 | P52: 0* | Q52: 0 | S52: 23 | T52: 8 | U52: 0 | W52: 28 | X52: 3 | Y52: 0 | AA52: 0 | AB52: 0 | AC52: 0 | AE52: 0 | AF52: 0 | AG52: 0 | AI52: 0 | AJ52: 0 | AK52: 0 | AM52: 0 | AN52: 0 | AO52: 0 | AQ52: 0 | AR52: 0 | AS52: 0 | AU52: 0 | AV52: 0 | AW52: 0
A53: Santiago | B53: 243 | D53: 66 | E53: 0 | H53: 28 | I53: 0 | L53: 40 | M53: 0 | P53: 11 | Q53: 0 | T53: 34 | U53: 0 | X53: 36 | Y53: 0 | AB53: 0 | AC53: 0 | AF53: 15 | AG53: 0 | AJ53: 13 | AK53: 0 | AN53: 0 | AO53: 0 | AR53: 0* | AS53: 0 | AV53: 0* | AW53: 0
A54: SS | B54: 150 | C54: 6 | D54: 32 | E54: 0 | G54: 14 | H54: 17 | I54: 0 | K54: 8 | L54: 28 | M54: 0 | O54: 28 | P54: 3 | Q54: 0 | S54: 5 | T54: 34 | U54: 0 | W54: 4 | X54: 36 | Y54: 0 | AA54: 0 | AB54: 0 | AC54: 0 | AE54: 0 | AF54: 0 | AG54: 0 | AI54: 0 | AJ54: 0 | AK54: 0 | AM54: 0 | AN54: 0 | AO54: 0 | AQ54: 0 | AR54: 0* | AS54: 0 | AU54: 0 | AV54: 0* | AW54: 0
A55: Carlos Filizolla | B55: 55 | C55: 13 | D55: 18 | E55: 0 | G55: 29 | H55: 2 | I55: 0 | K55: 0 | L55: 0 | M55: 0 | O55: 24 | P55: 7 | Q55: 0 | S55: 0 | T55: 0 | U55: 0 | W55: 0 | X55: 0 | Y55: 0 | AA55: 0 | AB55: 0 | AC55: 0 | AE55: 16 | AF55: 15 | AG55: 0 | AI55: 18 | AJ55: 13 | AK55: 0 | AM55: 0 | AN55: 0 | AO55: 0 | AQ55: 0 | AR55: 0* | AS55: 0 | AU55: 0 | AV55: 0* | AW55: 0
A56: Marcelo Santiago | B56: 38 | C56: 15 | D56: 16 | E56: 0 | G56: 22 | H56: 9 | I56: 0 | K56: 19 | L56: 12 | M56: 0 | O56: 37 | P56: 1 | Q56: 0 | S56: 0 | T56: 0 | U56: 0 | W56: 0 | X56: 0 | Y56: 0 | AA56: 0 | AB56: 0 | AC56: 0 | AE56: 0 | AF56: 0 | AG56: 0 | AI56: 0 | AJ56: 0 | AK56: 0 | AM56: 0 | AN56: 0 | AO56: 0 | AQ56: 0 | AR56: 0* | AS56: 0 | AU56: 0 | AV56: 0* | AW56: 0
A57: Henrique Castilho | B57: 0 | C57: 0 | D57: 0 | E57: 0 | G57: 0 | H57: 0 | I57: 0 | K57: 0 | L57: 0 | M57: 0 | O57: 0 | P57: 0 | Q57: 0 | S57: 0 | T57: 0 | U57: 0 | W57: 0 | X57: 0 | Y57: 0 | AA57: 0 | AB57: 0 | AC57: 0 | AE57: 0 | AF57: 0 | AG57: 0 | AI57: 0 | AJ57: 0 | AK57: 0 | AM57: 0 | AN57: 0 | AO57: 0 | AQ57: 0 | AR57: 0* | AS57: 0 | AU57: 0 | AV57: 0* | AW57: 0
A58: Marcus Reis | B58: 0 | C58: 0 | D58: 0 | E58: 0 | G58: 0 | H58: 0 | I58: 0 | K58: 0 | L58: 0 | M58: 0 | O58: 0 | P58: 0 | Q58: 0 | S58: 0 | T58: 0 | U58: 0 | W58: 0 | X58: 0 | Y58: 0 | AA58: 0 | AB58: 0 | AC58: 0 | AE58: 0 | AF58: 0 | AG58: 0 | AI58: 0 | AJ58: 0 | AK58: 0 | AM58: 0 | AN58: 0 | AO58: 0 | AQ58: 0 | AR58: 0* | AS58: 0 | AU58: 0 | AV58: 0* | AW58: 0

Sheet Posição x Pontos
H1: Posição | I1: Pontos
H2: 1 | I2: 45
H3: 2 | I3: 41
H4: 3 | I4: 38
H5: 4 | I5: 36
H6: 5 | I6: 34
H7: 6 | I7: 32
H8: 7 | I8: 30
H9: 8 | I9: 28
H10: 9 | I10: 26
H11: 10 | I11: 24
H12: 11 | I12: 22
H13: 12 | I13: 20
H14: 13 | I14: 18
H15: 14 | I15: 17
H16: 15 | I16: 16
H17: 16 | I17: 15
H18: 17 | I18: 14
H19: 18 | I19: 13
H20: 19 | I20: 12
H21: 20 | I21: 11
H22: 21 | I22: 10
H23: 22 | I23: 9
H24: 23 | I24: 8
H25: 24 | I25: 7
H26: 25 | I26: 6
H27: 26 | I27: 5
H28: 27 | I28: 4
H29: 28 | I29: 3
H30: 29 | I30: 2
H31: 30 | I31: 1
H32: 31 | I32: 1
H33: 32 | I33: 1
H34: 33 | I34: 1
H35: 34 | I35: 1
H36: 35 | I36: 1
H37: 36 | I37: 1
H38: 37 | I38: 1
H39: 38 | I39: 1
H40: 39 | I40: 1
H41: 40 | I41: 1
H42: 41 | I42: 1
H43: 42 | I43: 1
H44: 43 | I44: 1
H45: 44 | I45: 1
H46: 45 | I46: 1
H47: 46 | I47: 1
H48: 47 | I48: 1
H49: 48 | I49: 1
H50: 49 | I50: 1
H51: 50 | I51: 1
H52: 51 | I52: 1
H53: 52 | I53: 1
H54: 53 | I54: 1
H55: 54 | I55: 1
H56: 55 | I56: 1
H57: 56 | I57: 1
H58: 57 | I58: 1
H59: 58 | I59: 1
H60: 59 | I60: 1
H61: 60 | I61: 1
H62: 61 | I62: 1
H63: 62 | I63: 1
H64: 63 | I64: 1
H65: 64 | I65: 1
H66: 65 | I66: 1
H67: 66 | I67: 1
H68: 67 | I68: 1
H69: 68 | I69: 1
H70: 69 | I70: 1
